Body Name,Body,Service Area Catergorisation,Service Division Catergorisation,Responsible Unit,Expenses Type,Detailed Expenses Type,Expenses Code,Date,Transaction Number,Amount,Capital / Revenue,Supplier Name,Supplier ID
North East Lincolnshire Council,http://statistics.data.gov.uk/id/local-authority/00FC,Chief Executive,Chief Executive,Recharges To Corp Management,Government Departments,Third Party Prov - Govt Depts,PE101,20/10/2011,55393,"-1,755.00 ",REVENUE,AUDIT COMMISSION,100510
North East Lincolnshire Council,http://statistics.data.gov.uk/id/local-authority/00FC,Chief Executive,Chief Executive,Recharges To Corp Management,Government Departments,Third Party Prov - Govt Depts,PE101,12/10/2011,51846,"-1,755.00 ",REVENUE,AUDIT COMMISSION,100510
North East Lincolnshire Council,http://statistics.data.gov.uk/id/local-authority/00FC,Chief Executive,Chief Executive,Chief Exec & Support,Car Allowances,Travel - Employees,JF101,17/10/2011,53359,-183.03 ,REVENUE,NYS CORPORATE,102444
North East Lincolnshire Council,http://statistics.data.gov.uk/id/local-authority/00FC,Chief Executive,Chief Executive,Chief Exec & Support,Contributions To Provisions,Contributions - Third Sector,LK102,10/10/2011,38500,500.00 ,REVENUE,Redacted Personal Information,Redacted
North East Lincolnshire Council,http://statistics.data.gov.uk/id/local-authority/00FC,Chief Executive,Chief Executive,Chief Exec & Support,Contributions To Provisions,Contributions - Third Sector,LK102,13/10/2011,50908,500.00 ,REVENUE,HINDU CULTURAL SOCIETY,106966
North East Lincolnshire Council,http://statistics.data.gov.uk/id/local-authority/00FC,Chief Executive,Chief Executive,Chief Exec & Support,Direct Employee Expenses,Agency Staff,EA105,20/10/2011,54996,555.50 ,REVENUE,RANDSTAD EDUCATION LTD,102465
North East Lincolnshire Council,http://statistics.data.gov.uk/id/local-authority/00FC,Chief Executive,Chief Executive,Chief Exec & Support,Contributions To Provisions,Contributions - Third Sector,LK102,13/10/2011,52969,600.00 ,REVENUE,JOHN WHITGIFT ACADEMY,106898
North East Lincolnshire Council,http://statistics.data.gov.uk/id/local-authority/00FC,Chief Executive,Chief Executive,Chief Exec & Support,Contributions To Provisions,Contributions - Third Sector,LK102,14/10/2011,53018,650.00 ,REVENUE,CONTRACT LINCS,102361
North East Lincolnshire Council,http://statistics.data.gov.uk/id/local-authority/00FC,Chief Executive,Chief Executive,Chief Exec & Support,Contributions To Provisions,Contributions - Third Sector,LK102,06/10/2011,50582,700.00 ,REVENUE,Redacted Personal Information,Redacted
North East Lincolnshire Council,http://statistics.data.gov.uk/id/local-authority/00FC,Chief Executive,Chief Executive,Chief Exec & Support,Contributions To Provisions,Contributions - Third Sector,LK102,26/10/2011,56663,"1,000.00 ",REVENUE,ROYAL AIR FORCES ASSOCIATION,105508
North East Lincolnshire Council,http://statistics.data.gov.uk/id/local-authority/00FC,Chief Executive,Chief Executive,Chief Exec & Support,Contributions To Provisions,Contributions - Third Sector,LK102,14/10/2011,53260,"1,000.00 ",REVENUE,ROYAL AIR FORCES ASSOCIATION,105508
North East Lincolnshire Council,http://statistics.data.gov.uk/id/local-authority/00FC,Chief Executive,Chief Executive,Chief Exec & Support,Contributions To Provisions,Contributions - Third Sector,LK102,20/10/2011,55454,"1,000.00 ",REVENUE,RK PLUMBING AND HEATING,107200
North East Lincolnshire Council,http://statistics.data.gov.uk/id/local-authority/00FC,Chief Executive,Chief Executive,Recharges To Corp Management,Government Departments,Third Party Prov - Govt Depts,PE101,20/10/2011,55393,"1,231.00 ",REVENUE,AUDIT COMMISSION,100510
North East Lincolnshire Council,http://statistics.data.gov.uk/id/local-authority/00FC,Chief Executive,Chief Executive,Recharges To Corp Management,Government Departments,Third Party Prov - Govt Depts,PE101,20/10/2011,55393,"1,827.50 ",REVENUE,AUDIT COMMISSION,100510
North East Lincolnshire Council,http://statistics.data.gov.uk/id/local-authority/00FC,Chief Executive,Chief Executive,Recharges To Corp Management,Government Departments,Third Party Prov - Govt Depts,PE101,12/10/2011,51846,"1,955.00 ",REVENUE,AUDIT COMMISSION,100510
North East Lincolnshire Council,http://statistics.data.gov.uk/id/local-authority/00FC,Chief Executive,Chief Executive,Chief Exec & Support,Contributions To Provisions,Contributions - Third Sector,LK102,13/10/2011,52981,"2,199.50 ",REVENUE,RENCO NETS,107073
North East Lincolnshire Council,http://statistics.data.gov.uk/id/local-authority/00FC,Chief Executive,Chief Executive,Chief Exec & Support,Contributions To Provisions,Contributions - Third Sector,LK102,20/10/2011,55454,"2,333.33 ",REVENUE,RK PLUMBING AND HEATING,107200
North East Lincolnshire Council,http://statistics.data.gov.uk/id/local-authority/00FC,Chief Executive,Chief Executive,Recharges To Corp Management,Government Departments,Third Party Prov - Govt Depts,PE101,20/10/2011,55393,"2,380.00 ",REVENUE,AUDIT COMMISSION,100510
North East Lincolnshire Council,http://statistics.data.gov.uk/id/local-authority/00FC,Chief Executive,Chief Executive,Chief Exec & Support,Contributions To Provisions,Contributions - Third Sector,LK102,14/10/2011,53260,"2,500.00 ",REVENUE,ROYAL AIR FORCES ASSOCIATION,105508
North East Lincolnshire Council,http://statistics.data.gov.uk/id/local-authority/00FC,Chief Executive,Chief Executive,Chief Exec & Support,Contributions To Provisions,Contributions - Third Sector,LK102,25/10/2011,56776,"2,500.00 ",REVENUE,ROYAL AIR FORCES ASSOCIATION,105508
North East Lincolnshire Council,http://statistics.data.gov.uk/id/local-authority/00FC,Chief Executive,Chief Executive,Recharges To Corp Management,Government Departments,Third Party Prov - Govt Depts,PE101,20/10/2011,55393,"5,865.00 ",REVENUE,AUDIT COMMISSION,100510
North East Lincolnshire Council,http://statistics.data.gov.uk/id/local-authority/00FC,Chief Executive,Chief Executive,Recharges To Corp Management,Government Departments,Third Party Prov - Govt Depts,PE101,12/10/2011,51846,"21,945.00 ",REVENUE,AUDIT COMMISSION,100510
North East Lincolnshire Council,http://statistics.data.gov.uk/id/local-authority/00FC,Chief Executive,Chief Executive,Recharges To Corp Management,Government Departments,Third Party Prov - Govt Depts,PE101,20/10/2011,55393,"21,945.00 ",REVENUE,AUDIT COMMISSION,100510
North East Lincolnshire Council,http://statistics.data.gov.uk/id/local-authority/00FC,Other Corporate Budgets,Other Corporate Budgets,Appropriations,Indirect Employee Expenses,Ex B/Ferry Bc & Hcc Unfund Pen,EB107,03/10/2011,48892,-9.71 ,REVENUE,WEST YORKSHIRE PENSION FUND,101014
North East Lincolnshire Council,http://statistics.data.gov.uk/id/local-authority/00FC,Other Corporate Budgets,Other Corporate Budgets,Appropriations,Indirect Employee Expenses,Pension P/Ment Pension Inc Act,EB105,21/10/2011,56032,894.74 ,REVENUE,LINCOLNSHIRE COUNTY COUNCIL,100389
North East Lincolnshire Council,http://statistics.data.gov.uk/id/local-authority/00FC,Other Corporate Budgets,Other Corporate Budgets,Appropriations,Miscellaneous Expenses,Other Expenses General,LL119,12/10/2011,52062,"2,000.00 ",REVENUE,HYMANS ROBERTSON LLP,107021
North East Lincolnshire Council,http://statistics.data.gov.uk/id/local-authority/00FC,Other Corporate Budgets,Other Corporate Budgets,Appropriations,Miscellaneous Expenses,Other Expenses General,LL119,12/10/2011,52113,"4,000.00 ",REVENUE,HYMANS ROBERTSON LLP,107021
North East Lincolnshire Council,http://statistics.data.gov.uk/id/local-authority/00FC,Other Corporate Budgets,Other Corporate Budgets,Appropriations,Miscellaneous Expenses,Other Expenses General,LL119,11/10/2011,52052,"4,350.00 ",REVENUE,EAST RIDING OF YORKSHIRE COUNCIL,100654
North East Lincolnshire Council,http://statistics.data.gov.uk/id/local-authority/00FC,Other Corporate Budgets,Other Corporate Budgets,Appropriations,Indirect Employee Expenses,Pension P/Ment Pension Inc Act,EB105,25/10/2011,56018,"4,982.00 ",REVENUE,LINCOLNSHIRE COUNTY COUNCIL,100389
North East Lincolnshire Council,http://statistics.data.gov.uk/id/local-authority/00FC,Other Corporate Budgets,Other Corporate Budgets,Appropriations,Indirect Employee Expenses,Ex B/Ferry Bc & Hcc Unfund Pen,EB107,03/10/2011,48892,"7,666.48 ",REVENUE,WEST YORKSHIRE PENSION FUND,101014
North East Lincolnshire Council,http://statistics.data.gov.uk/id/local-authority/00FC,Other Corporate Budgets,Other Corporate Budgets,Appropriations,Miscellaneous Expenses,Other Expenses General,LL119,12/10/2011,51850,"9,500.00 ",REVENUE,HYMANS ROBERTSON LLP,107021
North East Lincolnshire Council,http://statistics.data.gov.uk/id/local-authority/00FC,People And Communities,Havelock Academy,Havelock Academy,Cap Auc-Build Enh Wrk,Cap Auc-Build Enh Wrk,YF102,12/10/2011,51873,"2,666.00 ",CAPITAL,EAST LINDSEY DISTRICT COUNCIL,101582
North East Lincolnshire Council,http://statistics.data.gov.uk/id/local-authority/00FC,People And Communities,Havelock Academy,Havelock Academy,Cap Auc-Build Enh Wrk,Cap Auc-Build Enh Wrk,YF102,20/10/2011,55395,"118,577.00 ",CAPITAL,KIER BUILD,102302
North East Lincolnshire Council,http://statistics.data.gov.uk/id/local-authority/00FC,People And Communities,Ctp Schemes,Ctp Schemes,Cap Land/Build-Build Enh Wrk,Cap Land/Build-Build Enh Wrk,YA102,07/10/2011,50898,"3,795.00 ",CAPITAL,HAITH'S HEATING LTD,101342
North East Lincolnshire Council,http://statistics.data.gov.uk/id/local-authority/00FC,People And Communities,Capita One,Capita One,Cap Infrastr-Prof Fees,Cap Infrastr-Prof Fees,YC103,06/10/2011,50576,Redacted Commercially Sensitive,CAPITAL,NORTHGATE INFORMATION SOLUTIONS UK LTD,101841
North East Lincolnshire Council,http://statistics.data.gov.uk/id/local-authority/00FC,People And Communities,Childrens Hlth & Family Supp,Childrens Centre Development,Communications And Computing,Computer H/Ware - Purchases,LF105,06/10/2011,50270,"-3,222.32 ",REVENUE,NTL,101502
North East Lincolnshire Council,http://statistics.data.gov.uk/id/local-authority/00FC,People And Communities,Childrens Hlth & Family Supp,Childrens Centre Development,Communications And Computing,Computer H/Ware - Purchases,LF105,06/10/2011,50258,"-1,046.55 ",REVENUE,NTL,101502
North East Lincolnshire Council,http://statistics.data.gov.uk/id/local-authority/00FC,People And Communities,Vulnerable Young People,Placement & Support,Other Agencies,Setting Up,PJ111,27/10/2011,57833,-800.00 ,REVENUE,PROSPECT FARM COUNTRY COTTAGES,101297
North East Lincolnshire Council,http://statistics.data.gov.uk/id/local-authority/00FC,People And Communities,Childrens Hlth & Family Supp,Childrens Centre Development,Communications And Computing,Computer H/Ware - Purchases,LF105,07/10/2011,50859,-569.94 ,REVENUE,NTL,101502
North East Lincolnshire Council,http://statistics.data.gov.uk/id/local-authority/00FC,People And Communities,Childrens Hlth & Family Supp,Childrens Centre Development,Communications And Computing,Computer H/Ware - Purchases,LF105,06/10/2011,50251,-569.22 ,REVENUE,NTL,101502
North East Lincolnshire Council,http://statistics.data.gov.uk/id/local-authority/00FC,People And Communities,Childrens Hlth & Family Supp,Childrens Centre Development,Communications And Computing,Computer H/Ware - Purchases,LF105,06/10/2011,50268,-565.89 ,REVENUE,NTL,101502
North East Lincolnshire Council,http://statistics.data.gov.uk/id/local-authority/00FC,People And Communities,Vulnerable Young People,Through Care & Disability,Other Agencies,Leaving Care Grant,PJ116,20/10/2011,40870,-400.00 ,REVENUE,BEVERS,102753
North East Lincolnshire Council,http://statistics.data.gov.uk/id/local-authority/00FC,People And Communities,Childrens Hlth & Family Supp,Childrens Centre Development,Energy Costs,Gas,GB101,06/10/2011,50232,-356.49 ,REVENUE,BRITISH GAS TRADING LTD,101507
North East Lincolnshire Council,http://statistics.data.gov.uk/id/local-authority/00FC,People And Communities,Childrens Hlth & Family Supp,Childrens Centre Development,Energy Costs,Gas,GB101,06/10/2011,50233,-338.96 ,REVENUE,BRITISH GAS TRADING LTD,101507
North East Lincolnshire Council,http://statistics.data.gov.uk/id/local-authority/00FC,People And Communities,Vulnerable Young People,Sen/Inclusion,Direct Employee Expenses,Pay Teachers Supply Cover,EA106,31/10/2011,58065,-166.50 ,REVENUE,TEACHING PERSONNEL LTD,101305
North East Lincolnshire Council,http://statistics.data.gov.uk/id/local-authority/00FC,People And Communities,Childrens Hlth & Family Supp,Childrens Centre Development,Communications And Computing,Computer H/Ware - Purchases,LF105,07/10/2011,50859,-144.57 ,REVENUE,NTL,101502
North East Lincolnshire Council,http://statistics.data.gov.uk/id/local-authority/00FC,People And Communities,Childrens Hlth & Family Supp,Childrens Centre Development,Energy Costs,Gas,GB101,06/10/2011,50230,-129.53 ,REVENUE,BRITISH GAS TRADING LTD,101507
North East Lincolnshire Council,http://statistics.data.gov.uk/id/local-authority/00FC,People And Communities,Childrens Hlth & Family Supp,Integrated Youth Services,Print Stationery / Gen Off Exp,Printing And Stationery,LD103,31/10/2011,58066,-100.78 ,REVENUE,LYRECO UK LIMITED,101120
North East Lincolnshire Council,http://statistics.data.gov.uk/id/local-authority/00FC,People And Communities,Vulnerable Young People,Placement & Support,Other Agencies,Child Care Payments,PJ104,11/10/2011,38693,-82.86 ,REVENUE,Redacted Personal Information,Redacted
North East Lincolnshire Council,http://statistics.data.gov.uk/id/local-authority/00FC,People And Communities,Vulnerable Young People,Safeguarding,Contract Hire-Operating Leases,Vehicles - Contract Hire,JC101,07/10/2011,50983,Redacted Commercially Sensitive,REVENUE,NORTHGATE VEHICLE HIRE,102553
North East Lincolnshire Council,http://statistics.data.gov.uk/id/local-authority/00FC,People And Communities,Vulnerable Young People,Safeguarding,Contract Hire-Operating Leases,Vehicles - Contract Hire,JC101,19/10/2011,54861,Redacted Commercially Sensitive,REVENUE,NORTHGATE VEHICLE HIRE,102553
North East Lincolnshire Council,http://statistics.data.gov.uk/id/local-authority/00FC,People And Communities,Vulnerable Young People,Placement & Support,Catering,Provisions,LB101,05/10/2011,50018,-57.00 ,REVENUE,P C VENDING SERVICES,101408
North East Lincolnshire Council,http://statistics.data.gov.uk/id/local-authority/00FC,People And Communities,Improved Health,Trading Standards,Indirect Employee Expenses,Staff Training,EB122,05/10/2011,49915,-56.62 ,REVENUE,NYS CORPORATE,102444
North East Lincolnshire Council,http://statistics.data.gov.uk/id/local-authority/00FC,People And Communities,Childrens Hlth & Family Supp,Childrens Centre Development,Energy Costs,Gas,GB101,13/10/2011,52834,-50.45 ,REVENUE,BRITISH GAS TRADING LTD,101507
North East Lincolnshire Council,http://statistics.data.gov.uk/id/local-authority/00FC,People And Communities,Vulnerable Young People,Placement & Support,Other Agencies,Setting Up,PJ111,04/10/2011,36966,-50.00 ,REVENUE,Redacted Personal Information,Redacted
North East Lincolnshire Council,http://statistics.data.gov.uk/id/local-authority/00FC,People And Communities,Vulnerable Young People,Youth Offending Team,Direct Transport Costs,Hired Transport - Employees,JA101,31/10/2011,58072,Redacted Commercially Sensitive,REVENUE,NORTHGATE VEHICLE HIRE,102553
North East Lincolnshire Council,http://statistics.data.gov.uk/id/local-authority/00FC,People And Communities,Vulnerable Young People,Placement & Support,Other Agencies,Child Care Payments,PJ104,11/10/2011,38664,-41.43 ,REVENUE,Redacted Personal Information,Redacted
North East Lincolnshire Council,http://statistics.data.gov.uk/id/local-authority/00FC,People And Communities,Vulnerable Young People,Youth Offending Team,Direct Transport Costs,Hired Transport - Employees,JA101,31/10/2011,58069,Redacted Commercially Sensitive,REVENUE,NORTHGATE VEHICLE HIRE,102553
North East Lincolnshire Council,http://statistics.data.gov.uk/id/local-authority/00FC,People And Communities,Childrens Hlth & Family Supp,Childrens Centre Development,Customer And Client Receipts,Fees/Chrgs-Std Vat 7,VC119,19/10/2011,54862,-37.21 ,REVENUE,BRITISH GAS TRADING LTD,101507
North East Lincolnshire Council,http://statistics.data.gov.uk/id/local-authority/00FC,People And Communities,Childrens Hlth & Family Supp,Childrens Centre Development,Energy Costs,Gas,GB101,13/10/2011,52835,-36.71 ,REVENUE,BRITISH GAS TRADING LTD,101507
North East Lincolnshire Council,http://statistics.data.gov.uk/id/local-authority/00FC,People And Communities,Vulnerable Young People,Safeguarding,Other Agencies,Contact,PJ126,10/10/2011,50977,-35.30 ,REVENUE,NYS CORPORATE,102444
North East Lincolnshire Council,http://statistics.data.gov.uk/id/local-authority/00FC,People And Communities,Childrens Hlth & Family Supp,Childrens Centre Development,Customer And Client Receipts,Fees/Chrgs-Std Vat 7,VC119,26/10/2011,57154,-26.80 ,REVENUE,BRITISH GAS TRADING LTD,101507
North East Lincolnshire Council,http://statistics.data.gov.uk/id/local-authority/00FC,People And Communities,Vulnerable Young People,Placement & Support,Other Agencies,Child Care Payments,PJ104,04/10/2011,36925,-25.00 ,REVENUE,Redacted Personal Information,Redacted
North East Lincolnshire Council,http://statistics.data.gov.uk/id/local-authority/00FC,People And Communities,Vulnerable Young People,Placement & Support,Other Agencies,Child Care Payments,PJ104,11/10/2011,38694,-25.00 ,REVENUE,Redacted Personal Information,Redacted
North East Lincolnshire Council,http://statistics.data.gov.uk/id/local-authority/00FC,People And Communities,Vulnerable Young People,Placement & Support,Other Agencies,Child Care Payments,PJ104,18/10/2011,40323,-25.00 ,REVENUE,Redacted Personal Information,Redacted
North East Lincolnshire Council,http://statistics.data.gov.uk/id/local-authority/00FC,People And Communities,Vulnerable Young People,Placement & Support,Other Agencies,Child Care Payments,PJ104,25/10/2011,41426,-25.00 ,REVENUE,Redacted Personal Information,Redacted
North East Lincolnshire Council,http://statistics.data.gov.uk/id/local-authority/00FC,People And Communities,Vulnerable Young People,Placement & Support,Other Agencies,Child Care Payments,PJ104,25/10/2011,41412,-24.00 ,REVENUE,Redacted Personal Information,Redacted
North East Lincolnshire Council,http://statistics.data.gov.uk/id/local-authority/00FC,People And Communities,Childrens Hlth & Family Supp,Childrens Centre Development,Equip / Furniture / Materials,Non-Teaching Resources,LA118,06/10/2011,50231,-22.99 ,REVENUE,TECHNOLOGY TEACHING SYSTEMS LTD,100996
North East Lincolnshire Council,http://statistics.data.gov.uk/id/local-authority/00FC,People And Communities,Vulnerable Young People,Placement & Support,Other Agencies,Child Care Payments,PJ104,25/10/2011,41314,-20.71 ,REVENUE,Redacted Personal Information,Redacted
North East Lincolnshire Council,http://statistics.data.gov.uk/id/local-authority/00FC,People And Communities,Vulnerable Young People,Placement & Support,Other Agencies,Child Care Payments,PJ104,25/10/2011,41314,-20.71 ,REVENUE,Redacted Personal Information,Redacted
North East Lincolnshire Council,http://statistics.data.gov.uk/id/local-authority/00FC,People And Communities,Vulnerable Young People,Placement & Support,Other Agencies,Child Care Payments,PJ104,25/10/2011,41425,-20.71 ,REVENUE,Redacted Personal Information,Redacted
North East Lincolnshire Council,http://statistics.data.gov.uk/id/local-authority/00FC,People And Communities,Vulnerable Young People,Through Care & Disability,Other Agencies,Driving Lessons,PJ132,20/10/2011,40875,-20.00 ,REVENUE,D V L A,100070
North East Lincolnshire Council,http://statistics.data.gov.uk/id/local-authority/00FC,People And Communities,Childrens Hlth & Family Supp,Integrated Youth Services,Print Stationery / Gen Off Exp,Printing And Stationery,LD103,31/10/2011,57101,-17.52 ,REVENUE,EAST RIDING OF YORKSHIRE COUNCIL,100654
North East Lincolnshire Council,http://statistics.data.gov.uk/id/local-authority/00FC,People And Communities,Improved Health,Env Commerce Food & Health,Clothes Uniforms And Laundry,Protective Clothing,LC101,21/10/2011,55930,-15.36 ,REVENUE,ARCO LTD,100509
North East Lincolnshire Council,http://statistics.data.gov.uk/id/local-authority/00FC,People And Communities,Improved Health,Ot Stores,Equip / Furniture / Materials,Health & Safety Supplies,LA116,31/10/2011,54856,-12.28 ,REVENUE,LYRECO UK LIMITED,101120
North East Lincolnshire Council,http://statistics.data.gov.uk/id/local-authority/00FC,People And Communities,Vulnerable Young People,Placement & Support,Other Agencies,Child Care Payments,PJ104,04/10/2011,36813,-10.36 ,REVENUE,Redacted Personal Information,Redacted
North East Lincolnshire Council,http://statistics.data.gov.uk/id/local-authority/00FC,People And Communities,Vulnerable Young People,Placement & Support,Equip / Furniture / Materials,Equipment - Purchase,LA101,31/10/2011,58111,-10.00 ,REVENUE,ARGOS BUSINESS SOLUTIONS,101032
North East Lincolnshire Council,http://statistics.data.gov.uk/id/local-authority/00FC,People And Communities,Improved Health,Env Commerce Food & Health,Miscellaneous Expenses,Environmental/Health Analysis,LL120,19/10/2011,54545,-8.67 ,REVENUE,EXOVA (UK) LTD,103156
North East Lincolnshire Council,http://statistics.data.gov.uk/id/local-authority/00FC,People And Communities,Strat Dir People & Communities,Schools Non Asb,Catering,Provisions,LB101,17/10/2011,53363,-6.65 ,REVENUE,ANGLIA WOODS,100805
North East Lincolnshire Council,http://statistics.data.gov.uk/id/local-authority/00FC,People And Communities,Strat Dir People & Communities,Schools Non Asb,Catering,Provisions,LB101,17/10/2011,53361,-6.33 ,REVENUE,ANGLIA WOODS,100805
North East Lincolnshire Council,http://statistics.data.gov.uk/id/local-authority/00FC,People And Communities,Improved Health,Health Promotion,Print Stationery / Gen Off Exp,Photocopier - Running Costs,LD102,06/10/2011,50228,-6.30 ,REVENUE,SECOND AVENUE RESOURCE CENTRE LIMITED,100648
North East Lincolnshire Council,http://statistics.data.gov.uk/id/local-authority/00FC,People And Communities,Strat Dir People & Communities,Schools Non Asb,Catering,Provisions,LB101,17/10/2011,53366,-4.64 ,REVENUE,ANGLIA WOODS,100805
North East Lincolnshire Council,http://statistics.data.gov.uk/id/local-authority/00FC,People And Communities,Improved Health,Health Promotion,Miscellaneous Expenses,Other Supplies & Services,LL110,20/10/2011,55455,-2.98 ,REVENUE,NELC FOOD4FITNESS FOR PETTY CASH,102602
North East Lincolnshire Council,http://statistics.data.gov.uk/id/local-authority/00FC,People And Communities,Childrens Hlth & Family Supp,Integrated Youth Services,Print Stationery / Gen Off Exp,Printing And Stationery,LD103,13/10/2011,52329,-1.08 ,REVENUE,EAST RIDING OF YORKSHIRE COUNCIL,100654
North East Lincolnshire Council,http://statistics.data.gov.uk/id/local-authority/00FC,People And Communities,Childrens Hlth & Family Supp,Childrens Centre Development,Print Stationery / Gen Off Exp,Printing And Stationery,LD103,13/10/2011,52373,-1.04 ,REVENUE,PRE SCHOOL LEARNING ALLIANCE,101437
North East Lincolnshire Council,http://statistics.data.gov.uk/id/local-authority/00FC,People And Communities,Childrens Hlth & Family Supp,Integrated Youth Services,Expenses,Course/Conf Accom - Employees,LH102,20/10/2011,54227,500.00 ,REVENUE,UKYP@BYC,107122
North East Lincolnshire Council,http://statistics.data.gov.uk/id/local-authority/00FC,People And Communities,Childrens Hlth & Family Supp,Childrens Centre Development,Catering,Provisions,LB101,31/10/2011,58287,500.00 ,REVENUE,TESCO STORES LIMITED,102576
North East Lincolnshire Council,http://statistics.data.gov.uk/id/local-authority/00FC,People And Communities,Improved Health,Ot Stores,Equip / Furniture / Materials,Health & Safety Supplies,LA116,07/10/2011,48922,500.00 ,REVENUE,WESTHOLME,100608
North East Lincolnshire Council,http://statistics.data.gov.uk/id/local-authority/00FC,People And Communities,Improved Health,Health Promotion,Private Contractors,Third Party Prov - Private,PH101,25/10/2011,56140,500.00 ,REVENUE,GRIMSBY PRO AM BOXING CLUB,107224
North East Lincolnshire Council,http://statistics.data.gov.uk/id/local-authority/00FC,People And Communities,Vulnerable Young People,Placement & Support,Equip / Furniture / Materials,Equipment - Hire,LA102,21/10/2011,55549,500.00 ,REVENUE,NOVA STUDIOS,103369
North East Lincolnshire Council,http://statistics.data.gov.uk/id/local-authority/00FC,People And Communities,Vulnerable Young People,Safeguarding,Indirect Employee Expenses,Staff Training,EB122,06/10/2011,50108,500.00 ,REVENUE,THE UNIVERSITY OF YORK,101488
North East Lincolnshire Council,http://statistics.data.gov.uk/id/local-authority/00FC,People And Communities,Vulnerable Young People,Through Care & Disability,Other Agencies,Housing Benefit,PJ134,04/10/2011,36883,500.00 ,REVENUE,Redacted Personal Information,Redacted
North East Lincolnshire Council,http://statistics.data.gov.uk/id/local-authority/00FC,People And Communities,Vulnerable Young People,Through Care & Disability,Other Agencies,Housing Benefit,PJ134,11/10/2011,38653,500.00 ,REVENUE,Redacted Personal Information,Redacted
North East Lincolnshire Council,http://statistics.data.gov.uk/id/local-authority/00FC,People And Communities,Vulnerable Young People,Through Care & Disability,Other Agencies,Housing Benefit,PJ134,18/10/2011,40282,500.00 ,REVENUE,Redacted Personal Information,Redacted
North East Lincolnshire Council,http://statistics.data.gov.uk/id/local-authority/00FC,People And Communities,Vulnerable Young People,Through Care & Disability,Other Agencies,Housing Benefit,PJ134,25/10/2011,41382,500.00 ,REVENUE,Redacted Personal Information,Redacted
North East Lincolnshire Council,http://statistics.data.gov.uk/id/local-authority/00FC,People And Communities,Vulnerable Young People,Safeguarding,Miscellaneous Expenses,Legal Fees - General,LL103,07/10/2011,50292,506.66 ,REVENUE,Redacted Personal Information,Redacted
North East Lincolnshire Council,http://statistics.data.gov.uk/id/local-authority/00FC,People And Communities,Strat Dir People & Communities,Schools Non Asb,Equip / Furniture / Materials,Equipment - Purchase,LA101,20/10/2011,55103,508.30 ,REVENUE,COMET GROUP PLC,100520
North East Lincolnshire Council,http://statistics.data.gov.uk/id/local-authority/00FC,People And Communities,Vulnerable Young People,Music Services,Other Agencies,Performers,PJ101,13/10/2011,52624,512.35 ,REVENUE,Redacted Personal Information,Redacted
North East Lincolnshire Council,http://statistics.data.gov.uk/id/local-authority/00FC,People And Communities,Vulnerable Young People,Children'S Workforce Developme,Indirect Employee Expenses,Staff Training,EB122,25/10/2011,56099,Redacted Commercially Sensitive,REVENUE,NORTH EAST LINCOLNSHIRE PRIMARY CARE TRUST,100337
North East Lincolnshire Council,http://statistics.data.gov.uk/id/local-authority/00FC,People And Communities,Vulnerable Young People,Placement & Support,Equip / Furniture / Materials,Equipment - Maintenance,LA104,20/10/2011,55342,514.38 ,REVENUE,ADOPTION UK,101206
North East Lincolnshire Council,http://statistics.data.gov.uk/id/local-authority/00FC,People And Communities,Vulnerable Young People,Placement & Support,Print Stationery / Gen Off Exp,Advertising,LD104,12/10/2011,52098,514.38 ,REVENUE,ADOPTION UK,101206
North East Lincolnshire Council,http://statistics.data.gov.uk/id/local-authority/00FC,People And Communities,Vulnerable Young People,Placement & Support,Print Stationery / Gen Off Exp,Advertising,LD104,21/10/2011,55339,514.38 ,REVENUE,ADOPTION UK,101206
North East Lincolnshire Council,http://statistics.data.gov.uk/id/local-authority/00FC,People And Communities,Vulnerable Young People,Placement & Support,Print Stationery / Gen Off Exp,Advertising,LD104,20/10/2011,55341,514.38 ,REVENUE,ADOPTION UK,101206
North East Lincolnshire Council,http://statistics.data.gov.uk/id/local-authority/00FC,People And Communities,Vulnerable Young People,Placement & Support,Print Stationery / Gen Off Exp,Advertising,LD104,12/10/2011,52100,514.38 ,REVENUE,ADOPTION UK,101206
North East Lincolnshire Council,http://statistics.data.gov.uk/id/local-authority/00FC,People And Communities,Vulnerable Young People,Placement & Support,Print Stationery / Gen Off Exp,Advertising,LD104,12/10/2011,52101,514.38 ,REVENUE,ADOPTION UK,101206
North East Lincolnshire Council,http://statistics.data.gov.uk/id/local-authority/00FC,People And Communities,Vulnerable Young People,School Access Governor Student,Contract Hire-Operating Leases,Vehicles - Contract Hire,JC101,25/10/2011,55990,Redacted Commercially Sensitive,REVENUE,MAYALLS CARS,104414
North East Lincolnshire Council,http://statistics.data.gov.uk/id/local-authority/00FC,People And Communities,Vulnerable Young People,School Access Governor Student,Contract Hire-Operating Leases,Vehicles - Contract Hire,JC101,20/10/2011,55604,Redacted Commercially Sensitive,REVENUE,COUNTRY CABS,101999
North East Lincolnshire Council,http://statistics.data.gov.uk/id/local-authority/00FC,People And Communities,Vulnerable Young People,Placement & Support,Print Stationery / Gen Off Exp,Advertising,LD104,20/10/2011,55340,525.00 ,REVENUE,ADOPTION UK,101206
North East Lincolnshire Council,http://statistics.data.gov.uk/id/local-authority/00FC,People And Communities,Vulnerable Young People,Through Care & Disability,Private Contractors,Third Party Prov - Private,PH101,11/10/2011,38708,526.00 ,REVENUE,Redacted Personal Information,Redacted
North East Lincolnshire Council,http://statistics.data.gov.uk/id/local-authority/00FC,People And Communities,Vulnerable Young People,Placement & Support,Rep Alterations Maint Building,Buildings - Repairs And Maint,GA102,31/10/2011,58170,526.26 ,REVENUE,ELLIS DIRECT LIMITED,101138
North East Lincolnshire Council,http://statistics.data.gov.uk/id/local-authority/00FC,People And Communities,Vulnerable Young People,Additional & Enhanced Needs,Print Stationery / Gen Off Exp,Printing And Stationery,LD103,10/10/2011,51315,529.27 ,REVENUE,LYRECO UK LIMITED,101120
North East Lincolnshire Council,http://statistics.data.gov.uk/id/local-authority/00FC,People And Communities,Improved Health,Ot Stores,Equip / Furniture / Materials,Health & Safety Supplies,LA116,26/10/2011,56246,534.90 ,REVENUE,HOMECRAFT ROLYAN,101655
North East Lincolnshire Council,http://statistics.data.gov.uk/id/local-authority/00FC,People And Communities,Vulnerable Young People,School Access Governor Student,Contract Hire-Operating Leases,Vehicles - Contract Hire,JC101,20/10/2011,55581,Redacted Commercially Sensitive,REVENUE,WHEELCHAIR FRIENDLY TAXI SERVICE,101915
North East Lincolnshire Council,http://statistics.data.gov.uk/id/local-authority/00FC,People And Communities,Vulnerable Young People,Placement & Support,Print Stationery / Gen Off Exp,Printing And Stationery,LD103,25/10/2011,56026,536.00 ,REVENUE,LYRECO UK LIMITED,101120
North East Lincolnshire Council,http://statistics.data.gov.uk/id/local-authority/00FC,People And Communities,Vulnerable Young People,Music Services,Other Agencies,Tuition,PJ112,19/10/2011,54864,540.00 ,REVENUE,Redacted Personal Information,Redacted
North East Lincolnshire Council,http://statistics.data.gov.uk/id/local-authority/00FC,People And Communities,Improved Health,Ot Stores,Equip / Furniture / Materials,Health & Safety Supplies,LA116,25/10/2011,55494,540.94 ,REVENUE,PICKERINGS EUROPE LIMITED,100897
North East Lincolnshire Council,http://statistics.data.gov.uk/id/local-authority/00FC,People And Communities,Childrens Hlth & Family Supp,Childrens Centre Development,Energy Costs,Electricity,GB102,20/10/2011,55109,541.42 ,REVENUE,EDWARD HENEAGE PRIMARY SCHOOL,103917
North East Lincolnshire Council,http://statistics.data.gov.uk/id/local-authority/00FC,People And Communities,Childrens Hlth & Family Supp,Integrated Youth Services,Miscellaneous Expenses,Activities - Service Users,LL114,06/10/2011,50046,Redacted Commercially Sensitive,REVENUE,SLM COMMUNITY LEISURE LTD,101266
North East Lincolnshire Council,http://statistics.data.gov.uk/id/local-authority/00FC,People And Communities,Strat Dir People & Communities,Holding Accounts,Direct Transport Costs,Vehicles - Repairs And Maint,JA105,31/10/2011,57684,554.53 ,REVENUE,FARMSTAR LTD,106447
North East Lincolnshire Council,http://statistics.data.gov.uk/id/local-authority/00FC,People And Communities,Vulnerable Young People,Additional & Enhanced Needs,Direct Employee Expenses,Agency Staff,EA105,12/10/2011,51181,555.50 ,REVENUE,RANDSTAD EDUCATION LTD,102465
North East Lincolnshire Council,http://statistics.data.gov.uk/id/local-authority/00FC,People And Communities,Vulnerable Young People,Additional & Enhanced Needs,Direct Employee Expenses,Agency Staff,EA105,26/10/2011,57075,555.50 ,REVENUE,RANDSTAD EDUCATION LTD,102465
North East Lincolnshire Council,http://statistics.data.gov.uk/id/local-authority/00FC,People And Communities,Vulnerable Young People,Additional & Enhanced Needs,Direct Employee Expenses,Agency Staff,EA105,20/10/2011,54993,555.50 ,REVENUE,RANDSTAD EDUCATION LTD,102465
North East Lincolnshire Council,http://statistics.data.gov.uk/id/local-authority/00FC,People And Communities,Vulnerable Young People,Additional & Enhanced Needs,Direct Employee Expenses,Agency Staff,EA105,12/10/2011,51182,555.50 ,REVENUE,RANDSTAD EDUCATION LTD,102465
North East Lincolnshire Council,http://statistics.data.gov.uk/id/local-authority/00FC,People And Communities,Childrens Hlth & Family Supp,Integrated Youth Services,Miscellaneous Expenses,Activities - Service Users,LL114,06/10/2011,50034,560.00 ,REVENUE,NORTH EAST LINCS MOTOR PROJECT,101121
North East Lincolnshire Council,http://statistics.data.gov.uk/id/local-authority/00FC,People And Communities,Improved Health,Health Trainers,Rents,Rent,GC101,06/10/2011,50136,560.00 ,REVENUE,THE GRIMSBY INSTITUTE OF FURTHER,102742
North East Lincolnshire Council,http://statistics.data.gov.uk/id/local-authority/00FC,People And Communities,Childrens Hlth & Family Supp,Childrens Centre Development,Water Services,Water,GE101,20/10/2011,55108,569.15 ,REVENUE,EDWARD HENEAGE PRIMARY SCHOOL,103917
North East Lincolnshire Council,http://statistics.data.gov.uk/id/local-authority/00FC,People And Communities,Improved Health,Supporting People,Other Agencies,Third Pp - Block Subsidy,PJ102,06/10/2011,50529,Redacted Commercially Sensitive,REVENUE,HOUSING 21,100320
North East Lincolnshire Council,http://statistics.data.gov.uk/id/local-authority/00FC,People And Communities,Vulnerable Young People,Through Care & Disability,Print Stationery / Gen Off Exp,Printing And Stationery,LD103,12/10/2011,51466,575.64 ,REVENUE,LYRECO UK LIMITED,101120
North East Lincolnshire Council,http://statistics.data.gov.uk/id/local-authority/00FC,People And Communities,Vulnerable Young People,School Access Governor Student,Contract Hire-Operating Leases,Vehicles - Contract Hire,JC101,21/10/2011,55939,Redacted Commercially Sensitive,REVENUE,COXONS CARS LIMITED,100578
North East Lincolnshire Council,http://statistics.data.gov.uk/id/local-authority/00FC,People And Communities,Childrens Hlth & Family Supp,Childrens Health Provision,Direct Employee Expenses,Pay,EA101,20/10/2011,55046,585.90 ,REVENUE,ESP LTD,101231
North East Lincolnshire Council,http://statistics.data.gov.uk/id/local-authority/00FC,People And Communities,Vulnerable Young People,School Access Governor Student,Contract Hire-Operating Leases,Vehicles - Contract Hire,JC101,21/10/2011,55628,Redacted Commercially Sensitive,REVENUE,MINICABS CLEETHORPES (LINCS) LTD,102124
North East Lincolnshire Council,http://statistics.data.gov.uk/id/local-authority/00FC,People And Communities,Improved Health,Smoking Cessation,Rents,Rent,GC101,20/10/2011,54592,595.00 ,REVENUE,ASHBY COMMUNITY ASSOCIATION,103002
North East Lincolnshire Council,http://statistics.data.gov.uk/id/local-authority/00FC,People And Communities,Vulnerable Young People,Children'S Workforce Developme,Indirect Employee Expenses,Staff Training,EB122,10/10/2011,51070,595.00 ,REVENUE,CARE-EX SERVICES LTD,104154
North East Lincolnshire Council,http://statistics.data.gov.uk/id/local-authority/00FC,People And Communities,Childrens Hlth & Family Supp,Integrated Youth Services,Equip / Furniture / Materials,Equipment - Purchase,LA101,20/10/2011,55077,595.65 ,REVENUE,BANAMAN,100513
North East Lincolnshire Council,http://statistics.data.gov.uk/id/local-authority/00FC,People And Communities,Improved Health,Smoking Cessation,Miscellaneous Expenses,Medical Supplies,LL109,19/10/2011,54594,599.90 ,REVENUE,LLOYDS PHARMACY,104664
North East Lincolnshire Council,http://statistics.data.gov.uk/id/local-authority/00FC,People And Communities,Childrens Hlth & Family Supp,Integrated Youth Services,Indirect Employee Expenses,Staff Training,EB122,19/10/2011,54897,600.00 ,REVENUE,FRT LTD,102358
North East Lincolnshire Council,http://statistics.data.gov.uk/id/local-authority/00FC,People And Communities,Childrens Hlth & Family Supp,Integrated Youth Services,Recharges,Payroll,TB103,12/10/2011,52368,600.00 ,REVENUE,EVOLUTION OUTDOORS LTD,107040
North East Lincolnshire Council,http://statistics.data.gov.uk/id/local-authority/00FC,People And Communities,Vulnerable Young People,Placement & Support,Rep Alterations Maint Building,Buildings - Regulations / Insp,GA103,31/10/2011,58286,600.00 ,REVENUE,Redacted Personal Information,Redacted
North East Lincolnshire Council,http://statistics.data.gov.uk/id/local-authority/00FC,People And Communities,Childrens Hlth & Family Supp,Integrated Youth Services,Direct Employee Expenses,National Insurance,EA201,28/10/2011,57949,601.44 ,REVENUE,TEACHERS PENSION,105124
North East Lincolnshire Council,http://statistics.data.gov.uk/id/local-authority/00FC,People And Communities,Childrens Hlth & Family Supp,Childrens Centre Development,Energy Costs,Electricity,GB102,10/10/2011,51002,602.18 ,REVENUE,NPOWER LIMITED,101414
North East Lincolnshire Council,http://statistics.data.gov.uk/id/local-authority/00FC,People And Communities,Childrens Hlth & Family Supp,Childrens Centre Development,Other Agencies,Child Care Payments,PJ104,25/10/2011,56101,605.16 ,REVENUE,FOR UNDER FIVES,101931
North East Lincolnshire Council,http://statistics.data.gov.uk/id/local-authority/00FC,People And Communities,Childrens Hlth & Family Supp,Childrens Centre Development,Direct Employee Expenses,Superannuation,EA301,25/10/2011,56098,607.44 ,REVENUE,EDWARD HENEAGE PRIMARY SCHOOL,103917
North East Lincolnshire Council,http://statistics.data.gov.uk/id/local-authority/00FC,People And Communities,Vulnerable Young People,Placement & Support,Other Agencies,Adoption Allowance,PJ118,11/10/2011,38589,608.64 ,REVENUE,Redacted Personal Information,Redacted
North East Lincolnshire Council,http://statistics.data.gov.uk/id/local-authority/00FC,People And Communities,Vulnerable Young People,Music Services,Equip / Furniture / Materials,Equipment - Purchase,LA101,26/10/2011,57043,619.15 ,REVENUE,JOHN SCHEERER & SONS,100727
North East Lincolnshire Council,http://statistics.data.gov.uk/id/local-authority/00FC,People And Communities,Vulnerable Young People,Music Services,Equip / Furniture / Materials,Equipment - Purchase,LA101,26/10/2011,57039,619.15 ,REVENUE,JOHN SCHEERER & SONS,100727
North East Lincolnshire Council,http://statistics.data.gov.uk/id/local-authority/00FC,People And Communities,Childrens Hlth & Family Supp,Childrens Centre Development,Water Services,Water,GE101,21/10/2011,56029,619.68 ,REVENUE,ANGLIAN WATER,100508
North East Lincolnshire Council,http://statistics.data.gov.uk/id/local-authority/00FC,People And Communities,Vulnerable Young People,Sen/Inclusion,Miscellaneous Expenses,Exam Fees,LL115,31/10/2011,57787,620.00 ,REVENUE,FRANKLIN COLLEGE,101073
North East Lincolnshire Council,http://statistics.data.gov.uk/id/local-authority/00FC,People And Communities,Vulnerable Young People,Safeguarding,Private Contractors,Third Party Prov - Private,PH101,17/10/2011,53772,621.00 ,REVENUE,QUAYSIDE CARE,101108
North East Lincolnshire Council,http://statistics.data.gov.uk/id/local-authority/00FC,People And Communities,Improved Health,Env Commerce Food & Health,Indirect Employee Expenses,Staff Training,EB122,04/10/2011,48578,625.00 ,REVENUE,ASSOCIATION OF PORT HEALTH AUTHORITIES LTD,102506
North East Lincolnshire Council,http://statistics.data.gov.uk/id/local-authority/00FC,People And Communities,Improved Health,Health Promotion,Private Contractors,Third Party Prov - Private,PH101,31/10/2011,57619,633.00 ,REVENUE,Redacted Personal Information,Redacted
North East Lincolnshire Council,http://statistics.data.gov.uk/id/local-authority/00FC,People And Communities,Vulnerable Young People,Placement & Support,Direct Transport Costs,Vehicles - Running Costs,JA104,20/10/2011,55373,638.15 ,REVENUE,ARVAL UK LIMITED,102401
North East Lincolnshire Council,http://statistics.data.gov.uk/id/local-authority/00FC,People And Communities,Vulnerable Young People,Additional & Enhanced Needs,Contributions To Provisions,Contributions - Other,LK103,05/10/2011,49973,646.00 ,REVENUE,A4E CONSULT LTD,101656
North East Lincolnshire Council,http://statistics.data.gov.uk/id/local-authority/00FC,People And Communities,Childrens Hlth & Family Supp,Integrated Youth Services,Miscellaneous Expenses,Other Supplies & Services,LL110,31/10/2011,57747,650.00 ,REVENUE,NOBLE KHAN LTD,107319
North East Lincolnshire Council,http://statistics.data.gov.uk/id/local-authority/00FC,People And Communities,Vulnerable Young People,Placement & Support,Miscellaneous Expenses,Holidays - Service Users,LL113,21/10/2011,55370,650.00 ,REVENUE,DKM ASSESSMENT & VERIFICATION LTD,101643
North East Lincolnshire Council,http://statistics.data.gov.uk/id/local-authority/00FC,People And Communities,Strat Dir People & Communities,Holding Accounts,Indirect Employee Expenses,Staff Training,EB122,10/10/2011,50430,Redacted Commercially Sensitive,REVENUE,NORTH EAST LINCOLNSHIRE PRIMARY CARE TRUST,100337
North East Lincolnshire Council,http://statistics.data.gov.uk/id/local-authority/00FC,People And Communities,Vulnerable Young People,Placement & Support,Other Agencies,Exceptional Task,PJ113,25/10/2011,41477,651.43 ,REVENUE,Redacted Personal Information,Redacted
North East Lincolnshire Council,http://statistics.data.gov.uk/id/local-authority/00FC,People And Communities,Childrens Hlth & Family Supp,Childrens Centre Development,Indirect Employee Expenses,Staff Training,EB122,10/10/2011,51109,655.00 ,REVENUE,Redacted Personal Information,Redacted
North East Lincolnshire Council,http://statistics.data.gov.uk/id/local-authority/00FC,People And Communities,Improved Health,Health Promotion,Private Contractors,Third Party Prov - Private,PH101,21/10/2011,56144,655.00 ,REVENUE,Redacted Personal Information,Redacted
North East Lincolnshire Council,http://statistics.data.gov.uk/id/local-authority/00FC,People And Communities,Childrens Hlth & Family Supp,Childrens Centre Development,Other Agencies,Child Care Payments,PJ104,25/10/2011,56100,655.38 ,REVENUE,FOR UNDER FIVES,101931
North East Lincolnshire Council,http://statistics.data.gov.uk/id/local-authority/00FC,People And Communities,Vulnerable Young People,Music Services,Other Agencies,Performers,PJ101,20/10/2011,54494,660.00 ,REVENUE,Redacted Personal Information,Redacted
North East Lincolnshire Council,http://statistics.data.gov.uk/id/local-authority/00FC,People And Communities,Improved Health,Ot Stores,Equip / Furniture / Materials,Health & Safety Supplies,LA116,18/10/2011,52943,663.28 ,REVENUE,INVACARE (UK) LTD,101008
North East Lincolnshire Council,http://statistics.data.gov.uk/id/local-authority/00FC,People And Communities,Improved Health,Ot Stores,Equip / Furniture / Materials,Health & Safety Supplies,LA116,31/10/2011,58252,664.74 ,REVENUE,TOTAL HYGIENE LTD,100849
North East Lincolnshire Council,http://statistics.data.gov.uk/id/local-authority/00FC,People And Communities,Improved Health,Ot Stores,Equip / Furniture / Materials,Health & Safety Supplies,LA116,14/10/2011,51904,668.50 ,REVENUE,SILVALEA,101260
North East Lincolnshire Council,http://statistics.data.gov.uk/id/local-authority/00FC,People And Communities,Vulnerable Young People,Music Services,Equip / Furniture / Materials,Equipment - Purchase,LA101,26/10/2011,57048,670.19 ,REVENUE,JOHN SCHEERER & SONS,100727
North East Lincolnshire Council,http://statistics.data.gov.uk/id/local-authority/00FC,People And Communities,Childrens Hlth & Family Supp,Childrens Centre Development,Equip / Furniture / Materials,Equipment - Purchase,LA101,13/10/2011,52861,675.00 ,REVENUE,SILK GROUP,101567
North East Lincolnshire Council,http://statistics.data.gov.uk/id/local-authority/00FC,People And Communities,Vulnerable Young People,Youth Offending Team,Consultancy,Consultancy,PL101,26/10/2011,57050,676.35 ,REVENUE,Redacted Personal Information,Redacted
North East Lincolnshire Council,http://statistics.data.gov.uk/id/local-authority/00FC,People And Communities,Vulnerable Young People,Placement & Support,Contract Hire-Operating Leases,Vehicles - Contract Hire,JC101,11/10/2011,51982,Redacted Commercially Sensitive,REVENUE,KINGSTON UPON HULL CITY COUNCIL,100541
North East Lincolnshire Council,http://statistics.data.gov.uk/id/local-authority/00FC,People And Communities,Vulnerable Young People,Placement & Support,Miscellaneous Expenses,Holidays - Service Users,LL113,21/10/2011,55369,690.00 ,REVENUE,DKM ASSESSMENT & VERIFICATION LTD,101643
North East Lincolnshire Council,http://statistics.data.gov.uk/id/local-authority/00FC,People And Communities,Childrens Hlth & Family Supp,Childrens Centre Development,Energy Costs,Electricity,GB102,13/10/2011,52551,691.73 ,REVENUE,NPOWER LIMITED,101414
North East Lincolnshire Council,http://statistics.data.gov.uk/id/local-authority/00FC,People And Communities,Childrens Hlth & Family Supp,Childrens Centre Development,Cleaning And Domestic Supplies,Cleaning - Consumables,GH103,31/10/2011,57735,693.00 ,REVENUE,EASY CLEAN MARSHCHAPEL LTD,104531
North East Lincolnshire Council,http://statistics.data.gov.uk/id/local-authority/00FC,People And Communities,Childrens Hlth & Family Supp,Integ Local Service Delivery,Direct Employee Expenses,Agency Staff,EA105,04/10/2011,49031,694.40 ,REVENUE,ESP LTD,101231
North East Lincolnshire Council,http://statistics.data.gov.uk/id/local-authority/00FC,People And Communities,Childrens Hlth & Family Supp,Childrens Centre Development,Other Agencies,Child Care Payments,PJ104,17/10/2011,53445,697.32 ,REVENUE,FOR UNDER FIVES,101931
North East Lincolnshire Council,http://statistics.data.gov.uk/id/local-authority/00FC,People And Communities,Vulnerable Young People,School Access Governor Student,Contract Hire-Operating Leases,Vehicles - Contract Hire,JC101,20/10/2011,55618,Redacted Commercially Sensitive,REVENUE,Redacted Personal Information,Redacted
North East Lincolnshire Council,http://statistics.data.gov.uk/id/local-authority/00FC,People And Communities,Vulnerable Young People,Placement & Support,Other Agencies,Special Carer Payments,PJ128,04/10/2011,36981,704.54 ,REVENUE,Redacted Personal Information,Redacted
North East Lincolnshire Council,http://statistics.data.gov.uk/id/local-authority/00FC,People And Communities,Vulnerable Young People,Placement & Support,Other Agencies,Special Carer Payments,PJ128,04/10/2011,36857,704.54 ,REVENUE,Redacted Personal Information,Redacted
North East Lincolnshire Council,http://statistics.data.gov.uk/id/local-authority/00FC,People And Communities,Vulnerable Young People,Placement & Support,Other Agencies,Special Carer Payments,PJ128,04/10/2011,36875,704.54 ,REVENUE,Redacted Personal Information,Redacted
North East Lincolnshire Council,http://statistics.data.gov.uk/id/local-authority/00FC,People And Communities,Vulnerable Young People,Placement & Support,Other Agencies,Special Carer Payments,PJ128,04/10/2011,36876,704.54 ,REVENUE,Redacted Personal Information,Redacted
North East Lincolnshire Council,http://statistics.data.gov.uk/id/local-authority/00FC,People And Communities,Vulnerable Young People,Placement & Support,Other Agencies,Special Carer Payments,PJ128,04/10/2011,36880,704.54 ,REVENUE,Redacted Personal Information,Redacted
North East Lincolnshire Council,http://statistics.data.gov.uk/id/local-authority/00FC,People And Communities,Vulnerable Young People,Placement & Support,Other Agencies,Special Carer Payments,PJ128,11/10/2011,38625,704.54 ,REVENUE,Redacted Personal Information,Redacted
North East Lincolnshire Council,http://statistics.data.gov.uk/id/local-authority/00FC,People And Communities,Vulnerable Young People,Placement & Support,Other Agencies,Special Carer Payments,PJ128,11/10/2011,38645,704.54 ,REVENUE,Redacted Personal Information,Redacted
North East Lincolnshire Council,http://statistics.data.gov.uk/id/local-authority/00FC,People And Communities,Vulnerable Young People,Placement & Support,Other Agencies,Special Carer Payments,PJ128,11/10/2011,38646,704.54 ,REVENUE,Redacted Personal Information,Redacted
North East Lincolnshire Council,http://statistics.data.gov.uk/id/local-authority/00FC,People And Communities,Vulnerable Young People,Placement & Support,Other Agencies,Special Carer Payments,PJ128,11/10/2011,38650,704.54 ,REVENUE,Redacted Personal Information,Redacted
North East Lincolnshire Council,http://statistics.data.gov.uk/id/local-authority/00FC,People And Communities,Vulnerable Young People,Placement & Support,Other Agencies,Special Carer Payments,PJ128,11/10/2011,38749,704.54 ,REVENUE,Redacted Personal Information,Redacted
North East Lincolnshire Council,http://statistics.data.gov.uk/id/local-authority/00FC,People And Communities,Vulnerable Young People,Placement & Support,Other Agencies,Special Carer Payments,PJ128,18/10/2011,40257,704.54 ,REVENUE,Redacted Personal Information,Redacted
North East Lincolnshire Council,http://statistics.data.gov.uk/id/local-authority/00FC,People And Communities,Vulnerable Young People,Placement & Support,Other Agencies,Special Carer Payments,PJ128,18/10/2011,40275,704.54 ,REVENUE,Redacted Personal Information,Redacted
North East Lincolnshire Council,http://statistics.data.gov.uk/id/local-authority/00FC,People And Communities,Vulnerable Young People,Placement & Support,Other Agencies,Special Carer Payments,PJ128,18/10/2011,40276,704.54 ,REVENUE,Redacted Personal Information,Redacted
North East Lincolnshire Council,http://statistics.data.gov.uk/id/local-authority/00FC,People And Communities,Vulnerable Young People,Placement & Support,Other Agencies,Special Carer Payments,PJ128,18/10/2011,40279,704.54 ,REVENUE,Redacted Personal Information,Redacted
North East Lincolnshire Council,http://statistics.data.gov.uk/id/local-authority/00FC,People And Communities,Vulnerable Young People,Placement & Support,Other Agencies,Special Carer Payments,PJ128,18/10/2011,40375,704.54 ,REVENUE,Redacted Personal Information,Redacted
North East Lincolnshire Council,http://statistics.data.gov.uk/id/local-authority/00FC,People And Communities,Vulnerable Young People,Placement & Support,Other Agencies,Special Carer Payments,PJ128,25/10/2011,41355,704.54 ,REVENUE,Redacted Personal Information,Redacted
North East Lincolnshire Council,http://statistics.data.gov.uk/id/local-authority/00FC,People And Communities,Vulnerable Young People,Placement & Support,Other Agencies,Special Carer Payments,PJ128,25/10/2011,41374,704.54 ,REVENUE,Redacted Personal Information,Redacted
North East Lincolnshire Council,http://statistics.data.gov.uk/id/local-authority/00FC,People And Communities,Vulnerable Young People,Placement & Support,Other Agencies,Special Carer Payments,PJ128,25/10/2011,41375,704.54 ,REVENUE,Redacted Personal Information,Redacted
North East Lincolnshire Council,http://statistics.data.gov.uk/id/local-authority/00FC,People And Communities,Vulnerable Young People,Placement & Support,Other Agencies,Special Carer Payments,PJ128,25/10/2011,41379,704.54 ,REVENUE,Redacted Personal Information,Redacted
North East Lincolnshire Council,http://statistics.data.gov.uk/id/local-authority/00FC,People And Communities,Vulnerable Young People,Placement & Support,Other Agencies,Special Carer Payments,PJ128,25/10/2011,41480,704.54 ,REVENUE,Redacted Personal Information,Redacted
North East Lincolnshire Council,http://statistics.data.gov.uk/id/local-authority/00FC,People And Communities,Childrens Hlth & Family Supp,Integrated Youth Services,Miscellaneous Expenses,Other Expenses General,LL119,18/10/2011,53737,705.80 ,REVENUE,Redacted Personal Information,Redacted
North East Lincolnshire Council,http://statistics.data.gov.uk/id/local-authority/00FC,People And Communities,Improved Health,Ot Stores,Equip / Furniture / Materials,Health & Safety Supplies,LA116,17/10/2011,53677,710.00 ,REVENUE,AQUAJOY BATHLIFTS LTD,101315
North East Lincolnshire Council,http://statistics.data.gov.uk/id/local-authority/00FC,People And Communities,Childrens Hlth & Family Supp,Childrens Centre Development,Other Agencies,Child Care Payments,PJ104,10/10/2011,50293,714.96 ,REVENUE,FOR UNDER FIVES,101931
North East Lincolnshire Council,http://statistics.data.gov.uk/id/local-authority/00FC,People And Communities,Childrens Hlth & Family Supp,Childrens Health Provision,Rents,Rent,GC101,18/10/2011,53913,715.00 ,REVENUE,GRIMSBY CENTRAL HALL TRUST,100882
North East Lincolnshire Council,http://statistics.data.gov.uk/id/local-authority/00FC,People And Communities,Vulnerable Young People,School Access Governor Student,Contract Hire-Operating Leases,Vehicles - Contract Hire,JC101,26/10/2011,56565,Redacted Commercially Sensitive,REVENUE,AA RADIO CARS LTD,101222
North East Lincolnshire Council,http://statistics.data.gov.uk/id/local-authority/00FC,People And Communities,Improved Health,Ot Stores,Equip / Furniture / Materials,Health & Safety Supplies,LA116,07/10/2011,48920,728.00 ,REVENUE,WESTHOLME,100608
North East Lincolnshire Council,http://statistics.data.gov.uk/id/local-authority/00FC,People And Communities,Childrens Hlth & Family Supp,Childrens Centre Development,Energy Costs,Electricity,GB102,06/10/2011,50239,737.80 ,REVENUE,NPOWER LIMITED,101414
North East Lincolnshire Council,http://statistics.data.gov.uk/id/local-authority/00FC,People And Communities,Vulnerable Young People,School Access Governor Student,Contract Hire-Operating Leases,Vehicles - Contract Hire,JC101,20/10/2011,55605,Redacted Commercially Sensitive,REVENUE,WHEELCHAIR FRIENDLY TAXI SERVICE,101915
North East Lincolnshire Council,http://statistics.data.gov.uk/id/local-authority/00FC,People And Communities,Vulnerable Young People,Safeguarding,Direct Transport Costs,Voluntary Drivers Expenses,JA107,19/10/2011,54848,738.63 ,REVENUE,Redacted Personal Information,Redacted
North East Lincolnshire Council,http://statistics.data.gov.uk/id/local-authority/00FC,People And Communities,Childrens Hlth & Family Supp,Childrens Centre Development,Water Services,Water,GE101,31/10/2011,57809,748.96 ,REVENUE,ANGLIAN WATER,100508
North East Lincolnshire Council,http://statistics.data.gov.uk/id/local-authority/00FC,People And Communities,Improved Health,Health Promotion,Private Contractors,Third Party Prov - Private,PH101,21/10/2011,41219,750.00 ,REVENUE,Redacted Personal Information,Redacted
North East Lincolnshire Council,http://statistics.data.gov.uk/id/local-authority/00FC,People And Communities,Childrens Hlth & Family Supp,Childrens Health Provision,Direct Employee Expenses,Pay,EA101,20/10/2011,55050,750.51 ,REVENUE,ESP LTD,101231
North East Lincolnshire Council,http://statistics.data.gov.uk/id/local-authority/00FC,People And Communities,Improved Health,Ot Stores,Equip / Furniture / Materials,Health & Safety Supplies,LA116,28/10/2011,57092,760.00 ,REVENUE,SIDHIL LTD,101166
North East Lincolnshire Council,http://statistics.data.gov.uk/id/local-authority/00FC,People And Communities,Vulnerable Young People,Safeguarding,Other Agencies,Section 17,PJ125,25/10/2011,56509,777.08 ,REVENUE,FAMILY SUPPORT SERVICES FOR P/CASH,100709
North East Lincolnshire Council,http://statistics.data.gov.uk/id/local-authority/00FC,People And Communities,Vulnerable Young People,School Access Governor Student,Contract Hire-Operating Leases,Vehicles - Contract Hire,JC101,21/10/2011,55620,Redacted Commercially Sensitive,REVENUE,MINICABS CLEETHORPES (LINCS) LTD,102124
North East Lincolnshire Council,http://statistics.data.gov.uk/id/local-authority/00FC,People And Communities,Improved Health,Health Promotion,Private Contractors,Third Party Prov - Private,PH101,25/10/2011,56139,792.10 ,REVENUE,GRIMSBY HARRIERS & ATHLETIC CLUB,104364
North East Lincolnshire Council,http://statistics.data.gov.uk/id/local-authority/00FC,People And Communities,Vulnerable Young People,Child Care Performance & Ict,Communications And Computing,Computer S/Ware - Licences,LF103,19/10/2011,54820,794.75 ,REVENUE,SHROPSHIRE COUNCIL,107156
North East Lincolnshire Council,http://statistics.data.gov.uk/id/local-authority/00FC,People And Communities,Vulnerable Young People,School Access Governor Student,Contract Hire-Operating Leases,Vehicles - Contract Hire,JC101,20/10/2011,55586,Redacted Commercially Sensitive,REVENUE,AMVALE LIMITED,101030
North East Lincolnshire Council,http://statistics.data.gov.uk/id/local-authority/00FC,People And Communities,Vulnerable Young People,School Access Governor Student,Contract Hire-Operating Leases,Vehicles - Contract Hire,JC101,20/10/2011,55587,Redacted Commercially Sensitive,REVENUE,AMVALE LIMITED,101030
North East Lincolnshire Council,http://statistics.data.gov.uk/id/local-authority/00FC,People And Communities,Vulnerable Young People,School Access Governor Student,Contract Hire-Operating Leases,Vehicles - Contract Hire,JC101,20/10/2011,55608,Redacted Commercially Sensitive,REVENUE,AMVALE LIMITED,101030
North East Lincolnshire Council,http://statistics.data.gov.uk/id/local-authority/00FC,People And Communities,Vulnerable Young People,Placement & Support,Other Agencies,Setting Up,PJ111,17/10/2011,53472,800.00 ,REVENUE,PROSPECT FARM COUNTRY COTTAGES,101297
North East Lincolnshire Council,http://statistics.data.gov.uk/id/local-authority/00FC,People And Communities,Improved Health,Ot Stores,Equip / Furniture / Materials,Health & Safety Supplies,LA116,18/10/2011,51966,805.00 ,REVENUE,THERAPOSTURE LTD,103613
North East Lincolnshire Council,http://statistics.data.gov.uk/id/local-authority/00FC,People And Communities,Childrens Hlth & Family Supp,Integrated Youth Services,Direct Transport Costs,Hired Transport - Service User,JA102,28/10/2011,58023,Redacted Commercially Sensitive,REVENUE,COXONS CARS LIMITED,100578
North East Lincolnshire Council,http://statistics.data.gov.uk/id/local-authority/00FC,People And Communities,Vulnerable Young People,Through Care & Disability,Other Agencies,Section 17,PJ125,27/10/2011,57232,820.00 ,REVENUE,FAIRFIELD PRIMARY OUT OF SCHOOL CLUB,101346
North East Lincolnshire Council,http://statistics.data.gov.uk/id/local-authority/00FC,People And Communities,Improved Health,Health Promotion,Private Contractors,Third Party Prov - Private,PH101,25/10/2011,56248,825.00 ,REVENUE,GRIMSBY SNAPRATS COMMUNITY,107228
North East Lincolnshire Council,http://statistics.data.gov.uk/id/local-authority/00FC,People And Communities,Childrens Hlth & Family Supp,Childrens Health Provision,Direct Employee Expenses,Pay,EA101,20/10/2011,55047,825.84 ,REVENUE,ESP LTD,101231
North East Lincolnshire Council,http://statistics.data.gov.uk/id/local-authority/00FC,People And Communities,Childrens Hlth & Family Supp,Childrens Health Provision,Direct Employee Expenses,Pay,EA101,20/10/2011,55048,825.84 ,REVENUE,ESP LTD,101231
North East Lincolnshire Council,http://statistics.data.gov.uk/id/local-authority/00FC,People And Communities,Childrens Hlth & Family Supp,Palliative / Complex Care,Private Contractors,Third Party Prov - Private,PH101,13/10/2011,52933,850.00 ,REVENUE,QUALITY TIME CARE LTD,102519
North East Lincolnshire Council,http://statistics.data.gov.uk/id/local-authority/00FC,People And Communities,Vulnerable Young People,School Access Governor Student,Contract Hire-Operating Leases,Vehicles - Contract Hire,JC101,20/10/2011,55619,Redacted Commercially Sensitive,REVENUE,MINICABS CLEETHORPES (LINCS) LTD,102124
North East Lincolnshire Council,http://statistics.data.gov.uk/id/local-authority/00FC,People And Communities,Childrens Hlth & Family Supp,Integrated Youth Services,Miscellaneous Expenses,Activities - Service Users,LL114,06/10/2011,49635,Redacted Commercially Sensitive,REVENUE,SLM COMMUNITY LEISURE LTD,101244
North East Lincolnshire Council,http://statistics.data.gov.uk/id/local-authority/00FC,People And Communities,Vulnerable Young People,Placement & Support,Rep Alterations Maint Building,Buildings - Repairs And Maint,GA102,31/10/2011,58373,859.29 ,REVENUE,ELLIS DIRECT LIMITED,101138
North East Lincolnshire Council,http://statistics.data.gov.uk/id/local-authority/00FC,People And Communities,Strat Dir People & Communities,Funding,Government Grants,Grants - Standards Fund,VA102,21/10/2011,55552,860.00 ,REVENUE,HUMBERSTON C OF E PRIMARY SCHOOL,101566
North East Lincolnshire Council,http://statistics.data.gov.uk/id/local-authority/00FC,People And Communities,Vulnerable Young People,Music Services,Other Agencies,Performers,PJ101,26/10/2011,57044,870.00 ,REVENUE,Redacted Personal Information,Redacted
North East Lincolnshire Council,http://statistics.data.gov.uk/id/local-authority/00FC,People And Communities,Improved Health,Smoking Cessation,Print Stationery / Gen Off Exp,Printing And Stationery,LD103,19/10/2011,54601,874.00 ,REVENUE,LEE CREATIVE MARKETING LTD,104460
North East Lincolnshire Council,http://statistics.data.gov.uk/id/local-authority/00FC,People And Communities,Improved Health,Smoking Cessation,Miscellaneous Expenses,Medical Supplies,LL109,13/10/2011,51036,880.67 ,REVENUE,LINCOLNSHIRE CO-OP CHEMIST LTD,104883
North East Lincolnshire Council,http://statistics.data.gov.uk/id/local-authority/00FC,People And Communities,Vulnerable Young People,Placement & Support,Catering,Provisions,LB101,11/10/2011,51909,891.54 ,REVENUE,PETTY CASH,Redacted
North East Lincolnshire Council,http://statistics.data.gov.uk/id/local-authority/00FC,People And Communities,Vulnerable Young People,School Access Governor Student,Contract Hire-Operating Leases,Vehicles - Contract Hire,JC101,26/10/2011,56744,Redacted Commercially Sensitive,REVENUE,AMVALE LIMITED,101030
North East Lincolnshire Council,http://statistics.data.gov.uk/id/local-authority/00FC,People And Communities,Vulnerable Young People,Sen/Inclusion,Private Contractors,Third Party Prov - Private,PH101,31/10/2011,58035,900.00 ,REVENUE,DKM ASSESSMENT & VERIFICATION LTD,101643
North East Lincolnshire Council,http://statistics.data.gov.uk/id/local-authority/00FC,People And Communities,Vulnerable Young People,Sen/Inclusion,Private Contractors,Third Party Prov - Private,PH101,28/10/2011,58038,900.00 ,REVENUE,DKM ASSESSMENT & VERIFICATION LTD,101643
North East Lincolnshire Council,http://statistics.data.gov.uk/id/local-authority/00FC,People And Communities,Vulnerable Young People,Sen/Inclusion,Private Contractors,Third Party Prov - Private,PH101,31/10/2011,58037,900.00 ,REVENUE,DKM ASSESSMENT & VERIFICATION LTD,101643
North East Lincolnshire Council,http://statistics.data.gov.uk/id/local-authority/00FC,People And Communities,Vulnerable Young People,Sen/Inclusion,Private Contractors,Third Party Prov - Private,PH101,31/10/2011,58039,900.00 ,REVENUE,DKM ASSESSMENT & VERIFICATION LTD,101643
North East Lincolnshire Council,http://statistics.data.gov.uk/id/local-authority/00FC,People And Communities,Vulnerable Young People,Sen/Inclusion,Private Contractors,Third Party Prov - Private,PH101,31/10/2011,58030,900.00 ,REVENUE,DKM ASSESSMENT & VERIFICATION LTD,101643
North East Lincolnshire Council,http://statistics.data.gov.uk/id/local-authority/00FC,People And Communities,Vulnerable Young People,Sen/Inclusion,Private Contractors,Third Party Prov - Private,PH101,31/10/2011,58031,900.00 ,REVENUE,DKM ASSESSMENT & VERIFICATION LTD,101643
North East Lincolnshire Council,http://statistics.data.gov.uk/id/local-authority/00FC,People And Communities,Vulnerable Young People,Sen/Inclusion,Private Contractors,Third Party Prov - Private,PH101,31/10/2011,58033,900.00 ,REVENUE,DKM ASSESSMENT & VERIFICATION LTD,101643
North East Lincolnshire Council,http://statistics.data.gov.uk/id/local-authority/00FC,People And Communities,Vulnerable Young People,Sen/Inclusion,Private Contractors,Third Party Prov - Private,PH101,31/10/2011,58042,900.00 ,REVENUE,DKM ASSESSMENT & VERIFICATION LTD,101643
North East Lincolnshire Council,http://statistics.data.gov.uk/id/local-authority/00FC,People And Communities,Vulnerable Young People,Sen/Inclusion,Private Contractors,Third Party Prov - Private,PH101,31/10/2011,58040,900.00 ,REVENUE,DKM ASSESSMENT & VERIFICATION LTD,101643
North East Lincolnshire Council,http://statistics.data.gov.uk/id/local-authority/00FC,People And Communities,Vulnerable Young People,Sen/Inclusion,Private Contractors,Third Party Prov - Private,PH101,31/10/2011,58036,900.00 ,REVENUE,DKM ASSESSMENT & VERIFICATION LTD,101643
North East Lincolnshire Council,http://statistics.data.gov.uk/id/local-authority/00FC,People And Communities,Childrens Hlth & Family Supp,Palliative / Complex Care,Private Contractors,Third Party Prov - Private,PH101,17/10/2011,53294,911.60 ,REVENUE,EAST MIDLANDS CROSSROADS,102400
North East Lincolnshire Council,http://statistics.data.gov.uk/id/local-authority/00FC,People And Communities,Vulnerable Young People,Through Care & Disability,Private Contractors,Third Party Prov - Private,PH101,04/10/2011,48955,911.60 ,REVENUE,EAST MIDLANDS CROSSROADS,102400
North East Lincolnshire Council,http://statistics.data.gov.uk/id/local-authority/00FC,People And Communities,Vulnerable Young People,School Access Governor Student,Contract Hire-Operating Leases,Vehicles - Contract Hire,JC101,20/10/2011,55590,Redacted Commercially Sensitive,REVENUE,WHEELCHAIR FRIENDLY TAXI SERVICE,101915
North East Lincolnshire Council,http://statistics.data.gov.uk/id/local-authority/00FC,People And Communities,Vulnerable Young People,School Access Governor Student,Contract Hire-Operating Leases,Vehicles - Contract Hire,JC101,21/10/2011,55622,Redacted Commercially Sensitive,REVENUE,WHEELCHAIR FRIENDLY TAXI SERVICE,101915
North East Lincolnshire Council,http://statistics.data.gov.uk/id/local-authority/00FC,People And Communities,Vulnerable Young People,Through Care & Disability,Private Contractors,Third Party Prov - Private,PH101,31/10/2011,58263,937.10 ,REVENUE,EAST MIDLANDS CROSSROADS,102400
North East Lincolnshire Council,http://statistics.data.gov.uk/id/local-authority/00FC,People And Communities,Childrens Hlth & Family Supp,Palliative / Complex Care,Private Contractors,Third Party Prov - Private,PH101,31/10/2011,57807,937.40 ,REVENUE,EAST MIDLANDS CROSSROADS,102400
North East Lincolnshire Council,http://statistics.data.gov.uk/id/local-authority/00FC,People And Communities,Childrens Hlth & Family Supp,Integrated Youth Services,Print Stationery / Gen Off Exp,Advertising,LD104,20/10/2011,55451,950.00 ,REVENUE,GRIMSBY & SCUNTHORPE MEDIA GROUP LTD,101827
North East Lincolnshire Council,http://statistics.data.gov.uk/id/local-authority/00FC,People And Communities,Childrens Hlth & Family Supp,Childrens Centre Development,Print Stationery / Gen Off Exp,Photocopier - Running Costs,LD102,17/10/2011,53573,964.97 ,REVENUE,UNITED CARLTON OFFICE SYSTEMS LTD,101652
North East Lincolnshire Council,http://statistics.data.gov.uk/id/local-authority/00FC,People And Communities,Childrens Hlth & Family Supp,Integrated Youth Services,Print Stationery / Gen Off Exp,Printing And Stationery,LD103,19/10/2011,54475,970.55 ,REVENUE,LYRECO UK LIMITED,101120
North East Lincolnshire Council,http://statistics.data.gov.uk/id/local-authority/00FC,People And Communities,Childrens Hlth & Family Supp,Integ Local Service Delivery,Indirect Employee Expenses,Staff Training,EB122,10/10/2011,50959,975.00 ,REVENUE,THE GRIMSBY INSTITUTE OF FURTHER,102742
North East Lincolnshire Council,http://statistics.data.gov.uk/id/local-authority/00FC,People And Communities,Strat Dir People & Communities,Schools Non Asb,Indirect Employee Expenses,Staff Training,EB122,20/10/2011,55101,975.00 ,REVENUE,THE GRIMSBY INSTITUTE OF FURTHER,102742
North East Lincolnshire Council,http://statistics.data.gov.uk/id/local-authority/00FC,People And Communities,Vulnerable Young People,Through Care & Disability,Other Agencies,Incentive Payment,PJ124,25/10/2011,56522,982.90 ,REVENUE,16+ SERVICES,100943
North East Lincolnshire Council,http://statistics.data.gov.uk/id/local-authority/00FC,People And Communities,Strat Dir People & Communities,Funding,Government Grants,Grants - Standards Fund,VA102,21/10/2011,55550,996.00 ,REVENUE,LISLE MARSDEN CE AIDED PRIMARY SCHOOL,106693
North East Lincolnshire Council,http://statistics.data.gov.uk/id/local-authority/00FC,People And Communities,Vulnerable Young People,Standards & Effectiveness,Consultancy,Consultancy,PL101,31/10/2011,58228,"1,000.00 ",REVENUE,BWB (LINCOLN) LIMITED,107318
North East Lincolnshire Council,http://statistics.data.gov.uk/id/local-authority/00FC,People And Communities,Vulnerable Young People,Youth Offending Team,Indirect Employee Expenses,Staff Training,EB122,14/10/2011,52548,"1,000.00 ",REVENUE,VOLUNTARY ACTION NORTH EAST LINCOLNSHIRE,103631
North East Lincolnshire Council,http://statistics.data.gov.uk/id/local-authority/00FC,People And Communities,Childrens Hlth & Family Supp,Childrens Health Provision,Private Contractors,Third Party Prov - Private,PH101,17/10/2011,53378,"1,025.00 ",REVENUE,NORTHERN LINCOLNSHIRE & GOOLE HOSPITALS,101242
North East Lincolnshire Council,http://statistics.data.gov.uk/id/local-authority/00FC,People And Communities,Improved Health,Smoking Cessation,Print Stationery / Gen Off Exp,Printing And Stationery,LD103,19/10/2011,54601,"1,026.00 ",REVENUE,LEE CREATIVE MARKETING LTD,104460
North East Lincolnshire Council,http://statistics.data.gov.uk/id/local-authority/00FC,People And Communities,Vulnerable Young People,Music Services,Other Agencies,Tuition,PJ112,04/10/2011,48696,"1,050.00 ",REVENUE,MUSIC LINCS LTD,100944
North East Lincolnshire Council,http://statistics.data.gov.uk/id/local-authority/00FC,People And Communities,Vulnerable Young People,Children'S Workforce Developme,Indirect Employee Expenses,Staff Training,EB122,25/10/2011,56315,"1,055.00 ",REVENUE,IRENE BALLAM INITIATIVES,103822
North East Lincolnshire Council,http://statistics.data.gov.uk/id/local-authority/00FC,People And Communities,Improved Health,Smoking Cessation,Miscellaneous Expenses,Medical Supplies,LL109,10/10/2011,51032,"1,059.40 ",REVENUE,BIRMINGHAM CHEMIST,103907
North East Lincolnshire Council,http://statistics.data.gov.uk/id/local-authority/00FC,People And Communities,Improved Health,Smoking Cessation,Miscellaneous Expenses,Medical Supplies,LL109,20/10/2011,54554,"1,067.74 ",REVENUE,BOOTS THE CHEMIST,103919
North East Lincolnshire Council,http://statistics.data.gov.uk/id/local-authority/00FC,People And Communities,Strat Dir People & Communities,Funding,Government Grants,Grants - Standards Fund,VA102,21/10/2011,55551,"1,075.00 ",REVENUE,NEW WALTHAM PRIMARY SCHOOL,100922
North East Lincolnshire Council,http://statistics.data.gov.uk/id/local-authority/00FC,People And Communities,Vulnerable Young People,Strategic Management,Indirect Employee Expenses,Allowances - Employees,EB110,31/10/2011,58450,"1,080.00 ",REVENUE,NASUWT G76 GRIMSBY & DISTRICT,107363
North East Lincolnshire Council,http://statistics.data.gov.uk/id/local-authority/00FC,People And Communities,Childrens Hlth & Family Supp,Head Of Child Hlth - Fam Supp,Private Contractors,Third Party Prov - Private,PH101,18/10/2011,53750,Redacted Commercially Sensitive,REVENUE,NORTH EAST LINCOLNSHIRE PRIMARY CARE TRUST,100337
North East Lincolnshire Council,http://statistics.data.gov.uk/id/local-authority/00FC,People And Communities,Vulnerable Young People,Music Services,Other Agencies,Performers,PJ101,31/10/2011,58130,"1,116.20 ",REVENUE,STRANGEFACE THEATRE COMPANY,107335
North East Lincolnshire Council,http://statistics.data.gov.uk/id/local-authority/00FC,People And Communities,Vulnerable Young People,Placement & Support,Other Agencies,Panel Expenses,PJ137,17/10/2011,53468,"1,125.00 ",REVENUE,Redacted Personal Information,Redacted
North East Lincolnshire Council,http://statistics.data.gov.uk/id/local-authority/00FC,People And Communities,Childrens Hlth & Family Supp,Childrens Centre Development,Energy Costs,Electricity,GB102,21/10/2011,55960,"1,136.51 ",REVENUE,NPOWER LIMITED,101414
North East Lincolnshire Council,http://statistics.data.gov.uk/id/local-authority/00FC,People And Communities,Vulnerable Young People,Sen/Inclusion,Private Contractors,Third Party Prov - Private,PH101,17/10/2011,53835,"1,136.67 ",REVENUE,THE GRIMSBY INSTITUTE OF FURTHER,102742
North East Lincolnshire Council,http://statistics.data.gov.uk/id/local-authority/00FC,People And Communities,Childrens Hlth & Family Supp,Integrated Youth Services,Equip / Furniture / Materials,Equipment - Hire,LA102,13/10/2011,52596,"1,137.60 ",REVENUE,YOUTH FOR CHRIST,107051
North East Lincolnshire Council,http://statistics.data.gov.uk/id/local-authority/00FC,People And Communities,Vulnerable Young People,Through Care & Disability,Miscellaneous Expenses,Other Expenses General,LL119,25/10/2011,56527,"1,140.00 ",REVENUE,BARNARDO SERVICES LTD,100782
North East Lincolnshire Council,http://statistics.data.gov.uk/id/local-authority/00FC,People And Communities,Vulnerable Young People,Sen/Inclusion,Direct Employee Expenses,Pay Teachers Supply Cover,EA106,31/10/2011,58243,"1,144.41 ",REVENUE,TEACHING PERSONNEL LTD,101305
North East Lincolnshire Council,http://statistics.data.gov.uk/id/local-authority/00FC,People And Communities,Improved Health,Ot Stores,Equip / Furniture / Materials,Health & Safety Supplies,LA116,26/10/2011,56134,"1,153.00 ",REVENUE,JENX LTD,100833
North East Lincolnshire Council,http://statistics.data.gov.uk/id/local-authority/00FC,People And Communities,Childrens Hlth & Family Supp,Childrens Centre Development,Rep Alterations Maint Building,Buildings - Repairs And Maint,GA102,13/10/2011,53023,"1,154.90 ",REVENUE,EXCELL ELECTRICAL CONTRACTORS,100601
North East Lincolnshire Council,http://statistics.data.gov.uk/id/local-authority/00FC,People And Communities,Childrens Hlth & Family Supp,Childrens Centre Development,Energy Costs,Electricity,GB102,04/10/2011,49345,"1,158.38 ",REVENUE,NPOWER LIMITED,101414
North East Lincolnshire Council,http://statistics.data.gov.uk/id/local-authority/00FC,People And Communities,Childrens Hlth & Family Supp,Integrated Youth Services,Equip / Furniture / Materials,Office Equipment - Maintenance,LA111,17/10/2011,53720,"1,174.31 ",REVENUE,UNITED CARLTON OFFICE SYSTEMS LTD,101652
North East Lincolnshire Council,http://statistics.data.gov.uk/id/local-authority/00FC,People And Communities,Vulnerable Young People,School Access Governor Student,Contract Hire-Operating Leases,Vehicles - Contract Hire,JC101,21/10/2011,55975,Redacted Commercially Sensitive,REVENUE,AIRPORT TRAVEL,107220
North East Lincolnshire Council,http://statistics.data.gov.uk/id/local-authority/00FC,People And Communities,Childrens Hlth & Family Supp,Childrens Health Provision,Equip / Furniture / Materials,Equipment - Purchase,LA101,12/10/2011,51853,"1,175.00 ",REVENUE,IDEASBYNET.COM,107022
North East Lincolnshire Council,http://statistics.data.gov.uk/id/local-authority/00FC,People And Communities,Improved Health,Ot Stores,Equip / Furniture / Materials,Health & Safety Supplies,LA116,07/10/2011,48287,"1,175.00 ",REVENUE,LINDALE HEALTHCARE,102517
North East Lincolnshire Council,http://statistics.data.gov.uk/id/local-authority/00FC,People And Communities,Childrens Hlth & Family Supp,Integrated Youth Services,Indirect Employee Expenses,Staff Training,EB122,06/10/2011,50078,"1,180.00 ",REVENUE,THE GRIMSBY INSTITUTE OF FURTHER,102742
North East Lincolnshire Council,http://statistics.data.gov.uk/id/local-authority/00FC,People And Communities,Childrens Hlth & Family Supp,Integrated Youth Services,Indirect Employee Expenses,Staff Training,EB122,06/10/2011,50079,"1,180.00 ",REVENUE,THE GRIMSBY INSTITUTE OF FURTHER,102742
North East Lincolnshire Council,http://statistics.data.gov.uk/id/local-authority/00FC,People And Communities,Vulnerable Young People,School Access Governor Student,Contract Hire-Operating Leases,Vehicles - Contract Hire,JC101,20/10/2011,55598,Redacted Commercially Sensitive,REVENUE,MINICABS CLEETHORPES (LINCS) LTD,102124
North East Lincolnshire Council,http://statistics.data.gov.uk/id/local-authority/00FC,People And Communities,Vulnerable Young People,School Access Governor Student,Contract Hire-Operating Leases,Vehicles - Contract Hire,JC101,20/10/2011,55588,Redacted Commercially Sensitive,REVENUE,CABLE RADIO CARS,100933
North East Lincolnshire Council,http://statistics.data.gov.uk/id/local-authority/00FC,People And Communities,Vulnerable Young People,Through Care & Disability,Private Contractors,Third Party Prov - Private,PH101,20/10/2011,55081,"1,200.00 ",REVENUE,RUSKIN MILL EDUCATIONAL TRUST LTD,104476
North East Lincolnshire Council,http://statistics.data.gov.uk/id/local-authority/00FC,People And Communities,Vulnerable Young People,Sen/Inclusion,Direct Employee Expenses,Pay Teachers Supply Cover,EA106,31/10/2011,58245,"1,202.16 ",REVENUE,TEACHING PERSONNEL LTD,101305
North East Lincolnshire Council,http://statistics.data.gov.uk/id/local-authority/00FC,People And Communities,Vulnerable Young People,Sen/Inclusion,Equip / Furniture / Materials,Teaching Materials,LA117,31/10/2011,57641,"1,226.47 ",REVENUE,LYRECO UK LIMITED,101120
North East Lincolnshire Council,http://statistics.data.gov.uk/id/local-authority/00FC,People And Communities,Vulnerable Young People,Youth Offending Team,Consultancy,Consultancy,PL101,14/10/2011,52534,"1,247.66 ",REVENUE,Redacted Personal Information,Redacted
North East Lincolnshire Council,http://statistics.data.gov.uk/id/local-authority/00FC,People And Communities,Vulnerable Young People,Commissioning & Performance,Miscellaneous Expenses,Other Expenses General,LL119,13/10/2011,53020,Redacted Commercially Sensitive,REVENUE,CYGNET FOODS,101491
North East Lincolnshire Council,http://statistics.data.gov.uk/id/local-authority/00FC,People And Communities,Vulnerable Young People,Through Care & Disability,Miscellaneous Expenses,Other Expenses General,LL119,26/10/2011,56532,"1,254.00 ",REVENUE,BARNARDO SERVICES LTD,100782
North East Lincolnshire Council,http://statistics.data.gov.uk/id/local-authority/00FC,People And Communities,Improved Health,Ot Stores,Equip / Furniture / Materials,Health & Safety Supplies,LA116,10/10/2011,51065,"1,260.00 ",REVENUE,WESTHOLME,100608
North East Lincolnshire Council,http://statistics.data.gov.uk/id/local-authority/00FC,People And Communities,Vulnerable Young People,Additional & Enhanced Needs,Contributions To Provisions,Contributions - Other,LK103,20/10/2011,54978,"1,260.00 ",REVENUE,DKM ASSESSMENT & VERIFICATION LTD,101643
North East Lincolnshire Council,http://statistics.data.gov.uk/id/local-authority/00FC,People And Communities,Vulnerable Young People,Additional & Enhanced Needs,Contributions To Provisions,Contributions - Other,LK103,20/10/2011,54981,"1,260.00 ",REVENUE,DKM ASSESSMENT & VERIFICATION LTD,101643
North East Lincolnshire Council,http://statistics.data.gov.uk/id/local-authority/00FC,People And Communities,Vulnerable Young People,Additional & Enhanced Needs,Contributions To Provisions,Contributions - Other,LK103,20/10/2011,54982,"1,260.00 ",REVENUE,DKM ASSESSMENT & VERIFICATION LTD,102543
North East Lincolnshire Council,http://statistics.data.gov.uk/id/local-authority/00FC,People And Communities,Vulnerable Young People,Through Care & Disability,Other Agencies,Incentive Payment,PJ124,11/10/2011,51852,"1,283.79 ",REVENUE,16+ SERVICES,100943
North East Lincolnshire Council,http://statistics.data.gov.uk/id/local-authority/00FC,People And Communities,Childrens Hlth & Family Supp,Childrens Centre Development,Energy Costs,Electricity,GB102,10/10/2011,50589,"1,293.95 ",REVENUE,NPOWER LIMITED,101414
North East Lincolnshire Council,http://statistics.data.gov.uk/id/local-authority/00FC,People And Communities,Vulnerable Young People,Sen/Inclusion,Direct Employee Expenses,Pay Teachers Supply Cover,EA106,31/10/2011,58244,"1,294.56 ",REVENUE,TEACHING PERSONNEL LTD,101305
North East Lincolnshire Council,http://statistics.data.gov.uk/id/local-authority/00FC,People And Communities,Vulnerable Young People,Safeguarding,Private Contractors,Third Party Prov - Private,PH101,05/10/2011,49953,"1,298.57 ",REVENUE,LEEDS CITY COUNCIL,100545
North East Lincolnshire Council,http://statistics.data.gov.uk/id/local-authority/00FC,People And Communities,Vulnerable Young People,Sen/Inclusion,Private Contractors,Concessionary Fares,PH104,31/10/2011,58028,Redacted Commercially Sensitive,REVENUE,LINKS TAXIS,100546
North East Lincolnshire Council,http://statistics.data.gov.uk/id/local-authority/00FC,People And Communities,Childrens Hlth & Family Supp,Childrens Centre Development,Other Agencies,Child Care Payments,PJ104,31/10/2011,57448,"1,350.00 ",REVENUE,CHAPPILLS DAY NURSERY,100998
North East Lincolnshire Council,http://statistics.data.gov.uk/id/local-authority/00FC,People And Communities,Vulnerable Young People,Sen/Inclusion,Private Contractors,Third Party Prov - Private,PH101,17/10/2011,53800,"1,450.00 ",REVENUE,DKM ASSESSMENT & VERIFICATION LTD,101643
North East Lincolnshire Council,http://statistics.data.gov.uk/id/local-authority/00FC,People And Communities,Vulnerable Young People,School Access Governor Student,Contract Hire-Operating Leases,Vehicles - Contract Hire,JC101,20/10/2011,55595,Redacted Commercially Sensitive,REVENUE,Redacted Personal Information,Redacted
North East Lincolnshire Council,http://statistics.data.gov.uk/id/local-authority/00FC,People And Communities,Improved Health,Health Promotion,Private Contractors,Third Party Prov - Private,PH101,20/10/2011,55381,"1,500.00 ",REVENUE,TEAM REALITY LTD,107195
North East Lincolnshire Council,http://statistics.data.gov.uk/id/local-authority/00FC,People And Communities,Improved Health,Health Promotion,Miscellaneous Expenses,Other Supplies & Services,LL110,03/10/2011,48951,"1,500.00 ",REVENUE,SHORELINE HOUSING PARTNERSHIP LTD,100139
North East Lincolnshire Council,http://statistics.data.gov.uk/id/local-authority/00FC,People And Communities,Childrens Hlth & Family Supp,Childrens Health Provision,Rep Alterations Maint Building,Removal Expenses - Offices,GA108,20/10/2011,55058,"1,504.00 ",REVENUE,ROY LAUGHTON,100543
North East Lincolnshire Council,http://statistics.data.gov.uk/id/local-authority/00FC,People And Communities,Childrens Hlth & Family Supp,Integrated Youth Services,Rents,Room Hire,GC103,28/10/2011,58048,"1,554.00 ",REVENUE,HUMBER ROYAL HOTEL,103151
North East Lincolnshire Council,http://statistics.data.gov.uk/id/local-authority/00FC,People And Communities,Vulnerable Young People,Music Services,Private Contractors,Third Party Prov - Private,PH101,19/10/2011,54224,"1,577.25 ",REVENUE,Redacted Personal Information,Redacted
North East Lincolnshire Council,http://statistics.data.gov.uk/id/local-authority/00FC,People And Communities,Vulnerable Young People,School Access Governor Student,Contract Hire-Operating Leases,Vehicles - Contract Hire,JC101,25/10/2011,55951,Redacted Commercially Sensitive,REVENUE,Redacted Personal Information,Redacted
North East Lincolnshire Council,http://statistics.data.gov.uk/id/local-authority/00FC,People And Communities,Vulnerable Young People,Safeguarding,Indirect Employee Expenses,Staff Training,EB122,10/10/2011,51417,"1,604.00 ",REVENUE,KD TRAINING CONSULTANTS,106987
North East Lincolnshire Council,http://statistics.data.gov.uk/id/local-authority/00FC,People And Communities,Childrens Hlth & Family Supp,Childrens Centre Development,Communications And Computing,Computer H/Ware - Purchases,LF105,07/10/2011,50626,"1,624.95 ",REVENUE,NTL,101502
North East Lincolnshire Council,http://statistics.data.gov.uk/id/local-authority/00FC,People And Communities,Childrens Hlth & Family Supp,Head Of Child Hlth - Fam Supp,Private Contractors,Third Party Prov - Private,PH101,03/10/2011,49073,Redacted Commercially Sensitive,REVENUE,NORTH EAST LINCOLNSHIRE PRIMARY CARE TRUST,100337
North East Lincolnshire Council,http://statistics.data.gov.uk/id/local-authority/00FC,People And Communities,Childrens Hlth & Family Supp,Integrated Youth Services,Miscellaneous Expenses,Legal Fees - General,LL103,20/10/2011,54953,Redacted Commercially Sensitive,REVENUE,WILKIN CHAPMAN SOLICITORS,100948
North East Lincolnshire Council,http://statistics.data.gov.uk/id/local-authority/00FC,People And Communities,Vulnerable Young People,Sen/Inclusion,Private Contractors,Third Party Prov - Private,PH101,17/10/2011,53834,"1,674.27 ",REVENUE,THE GRIMSBY INSTITUTE OF FURTHER,102742
North East Lincolnshire Council,http://statistics.data.gov.uk/id/local-authority/00FC,People And Communities,Childrens Hlth & Family Supp,Integrated Youth Services,Indirect Employee Expenses,Staff Training,EB122,06/10/2011,50084,"1,680.00 ",REVENUE,YOUNG ADVISORS COMPANY LTD,106899
North East Lincolnshire Council,http://statistics.data.gov.uk/id/local-authority/00FC,People And Communities,Vulnerable Young People,Sen/Inclusion,Private Contractors,Third Party Prov - Private,PH101,17/10/2011,53833,"1,699.17 ",REVENUE,THE GRIMSBY INSTITUTE OF FURTHER,102742
North East Lincolnshire Council,http://statistics.data.gov.uk/id/local-authority/00FC,People And Communities,Vulnerable Young People,Through Care & Disability,Private Contractors,Third Party Prov - Private,PH101,06/10/2011,49287,"1,741.05 ",REVENUE,EAST MIDLANDS CROSSROADS,102400
North East Lincolnshire Council,http://statistics.data.gov.uk/id/local-authority/00FC,People And Communities,Vulnerable Young People,Music Services,Government Grants,Grants,VA101,11/10/2011,52041,"1,750.00 ",REVENUE,GREAT COATES PRIMARY SCHOOL,101104
North East Lincolnshire Council,http://statistics.data.gov.uk/id/local-authority/00FC,People And Communities,Vulnerable Young People,School Access Governor Student,Contract Hire-Operating Leases,Vehicles - Contract Hire,JC101,26/10/2011,56746,Redacted Commercially Sensitive,REVENUE,THE BUS RUN,101522
North East Lincolnshire Council,http://statistics.data.gov.uk/id/local-authority/00FC,People And Communities,Vulnerable Young People,School Access Governor Student,Contract Hire-Operating Leases,Vehicles - Contract Hire,JC101,19/10/2011,54849,Redacted Commercially Sensitive,REVENUE,CABBYCARS,100847
North East Lincolnshire Council,http://statistics.data.gov.uk/id/local-authority/00FC,People And Communities,Childrens Hlth & Family Supp,Integrated Youth Services,Direct Employee Expenses,National Insurance,EA201,28/10/2011,57949,"1,809.11 ",REVENUE,TEACHERS PENSION,105124
North East Lincolnshire Council,http://statistics.data.gov.uk/id/local-authority/00FC,People And Communities,Vulnerable Young People,School Access Governor Student,Contract Hire-Operating Leases,Vehicles - Contract Hire,JC101,21/10/2011,55627,Redacted Commercially Sensitive,REVENUE,MINICABS CLEETHORPES (LINCS) LTD,102124
North East Lincolnshire Council,http://statistics.data.gov.uk/id/local-authority/00FC,People And Communities,Childrens Hlth & Family Supp,Palliative / Complex Care,Private Contractors,Third Party Prov - Private,PH101,05/10/2011,49989,"1,851.30 ",REVENUE,Redacted Personal Information,Redacted
North East Lincolnshire Council,http://statistics.data.gov.uk/id/local-authority/00FC,People And Communities,Vulnerable Young People,Additional & Enhanced Needs,Contributions To Provisions,Contributions - Other,LK103,20/10/2011,54977,"1,900.00 ",REVENUE,DKM ASSESSMENT & VERIFICATION LTD,101643
North East Lincolnshire Council,http://statistics.data.gov.uk/id/local-authority/00FC,People And Communities,Vulnerable Young People,Sen/Inclusion,Direct Employee Expenses,Pay Teachers Supply Cover,EA106,19/10/2011,54296,"1,910.91 ",REVENUE,TEACHING PERSONNEL LTD,101305
North East Lincolnshire Council,http://statistics.data.gov.uk/id/local-authority/00FC,People And Communities,Vulnerable Young People,School Access Governor Student,Contract Hire-Operating Leases,Vehicles - Contract Hire,JC101,21/10/2011,55630,Redacted Commercially Sensitive,REVENUE,MINICABS CLEETHORPES (LINCS) LTD,102124
North East Lincolnshire Council,http://statistics.data.gov.uk/id/local-authority/00FC,People And Communities,Improved Health,Ot Stores,Equip / Furniture / Materials,Health & Safety Supplies,LA116,18/10/2011,53827,"1,925.00 ",REVENUE,MORRIS & ALEXANDER LTD,101163
North East Lincolnshire Council,http://statistics.data.gov.uk/id/local-authority/00FC,People And Communities,Childrens Hlth & Family Supp,Childrens Centre Development,Rep Alterations Maint Building,Buildings - Repairs And Maint,GA102,13/10/2011,53022,"1,959.29 ",REVENUE,EXCELL ELECTRICAL CONTRACTORS,100601
North East Lincolnshire Council,http://statistics.data.gov.uk/id/local-authority/00FC,People And Communities,Vulnerable Young People,School Access Governor Student,Contract Hire-Operating Leases,Vehicles - Contract Hire,JC101,20/10/2011,55592,Redacted Commercially Sensitive,REVENUE,HUXMANOR LTD,101444
North East Lincolnshire Council,http://statistics.data.gov.uk/id/local-authority/00FC,People And Communities,Childrens Hlth & Family Supp,Childrens Health Provision,Equip / Furniture / Materials,Equipment - Purchase,LA101,19/10/2011,54961,"1,990.00 ",REVENUE,WILLIAMS MEDICAL SUPPLIES,106409
North East Lincolnshire Council,http://statistics.data.gov.uk/id/local-authority/00FC,People And Communities,Vulnerable Young People,Music Services,Government Grants,Grants,VA101,20/10/2011,54225,"2,000.00 ",REVENUE,EDWARD HENEAGE PRIMARY SCHOOL,103917
North East Lincolnshire Council,http://statistics.data.gov.uk/id/local-authority/00FC,People And Communities,Vulnerable Young People,School Access Governor Student,Contract Hire-Operating Leases,Vehicles - Contract Hire,JC101,20/10/2011,55589,Redacted Commercially Sensitive,REVENUE,HUXMANOR LTD,101444
North East Lincolnshire Council,http://statistics.data.gov.uk/id/local-authority/00FC,People And Communities,Vulnerable Young People,School Access Governor Student,Contract Hire-Operating Leases,Vehicles - Contract Hire,JC101,20/10/2011,55601,Redacted Commercially Sensitive,REVENUE,MINICABS CLEETHORPES (LINCS) LTD,102124
North East Lincolnshire Council,http://statistics.data.gov.uk/id/local-authority/00FC,People And Communities,Vulnerable Young People,Placement & Support,Other Agencies,Health Charges,PJ131,20/10/2011,55343,"2,080.00 ",REVENUE,Redacted Personal Information,Redacted
North East Lincolnshire Council,http://statistics.data.gov.uk/id/local-authority/00FC,People And Communities,Vulnerable Young People,Through Care & Disability,Private Contractors,Third Party Prov - Private,PH101,28/10/2011,58022,"2,097.35 ",REVENUE,EAST MIDLANDS CROSSROADS,102400
North East Lincolnshire Council,http://statistics.data.gov.uk/id/local-authority/00FC,People And Communities,Vulnerable Young People,Music Services,Consultancy,Consultancy,PL101,18/10/2011,53907,"2,100.00 ",REVENUE,Redacted Personal Information,Redacted
North East Lincolnshire Council,http://statistics.data.gov.uk/id/local-authority/00FC,People And Communities,Vulnerable Young People,Music Services,Rents,Rent,GC101,04/10/2011,48697,"2,105.56 ",REVENUE,WHITGIFT SCHOOL,100867
North East Lincolnshire Council,http://statistics.data.gov.uk/id/local-authority/00FC,People And Communities,Improved Health,Ot Stores,Equip / Furniture / Materials,Health & Safety Supplies,LA116,07/10/2011,49885,"2,114.50 ",REVENUE,HEARING PRODUCTS LTD,102952
North East Lincolnshire Council,http://statistics.data.gov.uk/id/local-authority/00FC,People And Communities,Improved Health,Ot Stores,Equip / Furniture / Materials,Health & Safety Supplies,LA116,11/10/2011,46980,"2,133.00 ",REVENUE,JENX LTD,100833
North East Lincolnshire Council,http://statistics.data.gov.uk/id/local-authority/00FC,People And Communities,Vulnerable Young People,Additional & Enhanced Needs,Consultancy,Consultancy,PL101,20/10/2011,54976,"2,139.35 ",REVENUE,Redacted Personal Information,Redacted
North East Lincolnshire Council,http://statistics.data.gov.uk/id/local-authority/00FC,People And Communities,Improved Health,Ot Stores,Equip / Furniture / Materials,Health & Safety Supplies,LA116,07/10/2011,50309,"2,140.00 ",REVENUE,DIRECT HEALTHCARE,102678
North East Lincolnshire Council,http://statistics.data.gov.uk/id/local-authority/00FC,People And Communities,Improved Health,Ot Stores,Equip / Furniture / Materials,Health & Safety Supplies,LA116,18/10/2011,52491,"2,140.00 ",REVENUE,DIRECT HEALTHCARE,102678
North East Lincolnshire Council,http://statistics.data.gov.uk/id/local-authority/00FC,People And Communities,Vulnerable Young People,School Access Governor Student,Contract Hire-Operating Leases,Vehicles - Contract Hire,JC101,26/10/2011,56743,Redacted Commercially Sensitive,REVENUE,AMVALE LIMITED,101030
North East Lincolnshire Council,http://statistics.data.gov.uk/id/local-authority/00FC,People And Communities,Vulnerable Young People,School Access Governor Student,Contract Hire-Operating Leases,Vehicles - Contract Hire,JC101,21/10/2011,55621,Redacted Commercially Sensitive,REVENUE,MINICABS CLEETHORPES (LINCS) LTD,102124
North East Lincolnshire Council,http://statistics.data.gov.uk/id/local-authority/00FC,People And Communities,Vulnerable Young People,Childrens Trust,Indirect Employee Expenses,Redundancy,EB109,06/10/2011,49670,Redacted Commercially Sensitive,REVENUE,WILKIN CHAPMAN SOLICITORS,100948
North East Lincolnshire Council,http://statistics.data.gov.uk/id/local-authority/00FC,People And Communities,Vulnerable Young People,School Access Governor Student,Contract Hire-Operating Leases,Vehicles - Contract Hire,JC101,26/10/2011,56741,Redacted Commercially Sensitive,REVENUE,AMVALE LIMITED,101030
North East Lincolnshire Council,http://statistics.data.gov.uk/id/local-authority/00FC,People And Communities,Vulnerable Young People,School Access Governor Student,Contract Hire-Operating Leases,Vehicles - Contract Hire,JC101,26/10/2011,56745,Redacted Commercially Sensitive,REVENUE,AMVALE LIMITED,101030
North East Lincolnshire Council,http://statistics.data.gov.uk/id/local-authority/00FC,People And Communities,Improved Health,Public Health Nelc,Contributions To Provisions,Contributions - Other,LK103,25/10/2011,56260,Redacted Commercially Sensitive,REVENUE,NORTH EAST LINCOLNSHIRE PRIMARY CARE TRUST,100337
North East Lincolnshire Council,http://statistics.data.gov.uk/id/local-authority/00FC,People And Communities,Childrens Hlth & Family Supp,Integ Local Service Delivery,Private Contractors,Third Party Prov - Private,PH101,12/10/2011,51318,"2,350.00 ",REVENUE,LISLE MARSDEN PRE-SCHOOL,101465
North East Lincolnshire Council,http://statistics.data.gov.uk/id/local-authority/00FC,People And Communities,Childrens Hlth & Family Supp,Integ Local Service Delivery,Private Contractors,Third Party Prov - Private,PH101,19/10/2011,54213,"2,400.00 ",REVENUE,FOR UNDER FIVES LTD,100647
North East Lincolnshire Council,http://statistics.data.gov.uk/id/local-authority/00FC,People And Communities,Strat Dir People & Communities,Funding,Government Grants,Grants - Standards Fund,VA102,21/10/2011,55554,"2,437.00 ",REVENUE,HUMBERSTON  MATHS & COMPUTING COLLEGE,103714
North East Lincolnshire Council,http://statistics.data.gov.uk/id/local-authority/00FC,People And Communities,Childrens Hlth & Family Supp,Childrens Centre Development,Rep Alterations Maint Building,Buildings - Repairs And Maint,GA102,05/10/2011,50017,"2,468.00 ",REVENUE,E S RUDKIN LTD,100632
North East Lincolnshire Council,http://statistics.data.gov.uk/id/local-authority/00FC,People And Communities,Childrens Hlth & Family Supp,Palliative / Complex Care,Private Contractors,Third Party Prov - Private,PH101,18/10/2011,53680,"2,485.00 ",REVENUE,Redacted Personal Information,Redacted
North East Lincolnshire Council,http://statistics.data.gov.uk/id/local-authority/00FC,People And Communities,Vulnerable Young People,School Access Governor Student,Contract Hire-Operating Leases,Vehicles - Contract Hire,JC101,21/10/2011,55624,Redacted Commercially Sensitive,REVENUE,MILLMAN COACHES,100700
North East Lincolnshire Council,http://statistics.data.gov.uk/id/local-authority/00FC,People And Communities,Vulnerable Young People,School Access Governor Student,Contract Hire-Operating Leases,Vehicles - Contract Hire,JC101,21/10/2011,55623,Redacted Commercially Sensitive,REVENUE,MILLMAN COACHES,100700
North East Lincolnshire Council,http://statistics.data.gov.uk/id/local-authority/00FC,People And Communities,Childrens Hlth & Family Supp,Palliative / Complex Care,Private Contractors,Third Party Prov - Private,PH101,17/10/2011,53291,"2,648.80 ",REVENUE,EAST MIDLANDS CROSSROADS,102400
North East Lincolnshire Council,http://statistics.data.gov.uk/id/local-authority/00FC,People And Communities,Vulnerable Young People,School Access Governor Student,Contract Hire-Operating Leases,Vehicles - Contract Hire,JC101,20/10/2011,55594,Redacted Commercially Sensitive,REVENUE,SHERWOOD TRAVEL,100868
North East Lincolnshire Council,http://statistics.data.gov.uk/id/local-authority/00FC,People And Communities,Childrens Hlth & Family Supp,Integ Local Service Delivery,Other Agencies,Nursery Educ Fund - Standard,PJ139,12/10/2011,50909,"2,755.20 ",REVENUE,ST MARTINS PREPARATORY SCHOOL,100889
North East Lincolnshire Council,http://statistics.data.gov.uk/id/local-authority/00FC,People And Communities,Vulnerable Young People,School Access Governor Student,Contract Hire-Operating Leases,Vehicles - Contract Hire,JC101,20/10/2011,54936,Redacted Commercially Sensitive,REVENUE,E M EMMERSON,100576
North East Lincolnshire Council,http://statistics.data.gov.uk/id/local-authority/00FC,People And Communities,Childrens Hlth & Family Supp,Childrens Centre Development,Direct Employee Expenses,Pay,EA101,25/10/2011,56098,"2,786.34 ",REVENUE,EDWARD HENEAGE PRIMARY SCHOOL,103917
North East Lincolnshire Council,http://statistics.data.gov.uk/id/local-authority/00FC,People And Communities,Childrens Hlth & Family Supp,Childrens Health Provision,Communications And Computing,Computer H/Ware - Purchases,LF105,12/10/2011,52040,Redacted Commercially Sensitive,REVENUE,NORTH EAST LINCOLNSHIRE PRIMARY CARE TRUST,100337
North East Lincolnshire Council,http://statistics.data.gov.uk/id/local-authority/00FC,People And Communities,Childrens Hlth & Family Supp,Palliative / Complex Care,Private Contractors,Third Party Prov - Private,PH101,31/10/2011,57808,"2,855.20 ",REVENUE,EAST MIDLANDS CROSSROADS,102400
North East Lincolnshire Council,http://statistics.data.gov.uk/id/local-authority/00FC,People And Communities,Childrens Hlth & Family Supp,Childrens Centre Development,Communications And Computing,Computer H/Ware - Purchases,LF105,06/10/2011,50251,"2,856.99 ",REVENUE,NTL,101502
North East Lincolnshire Council,http://statistics.data.gov.uk/id/local-authority/00FC,People And Communities,Vulnerable Young People,School Access Governor Student,Contract Hire-Operating Leases,Vehicles - Contract Hire,JC101,20/10/2011,55593,Redacted Commercially Sensitive,REVENUE,SHERWOOD TRAVEL,100868
North East Lincolnshire Council,http://statistics.data.gov.uk/id/local-authority/00FC,People And Communities,Childrens Hlth & Family Supp,Childrens Centre Development,Communications And Computing,Computer H/Ware - Purchases,LF105,06/10/2011,50258,"2,875.07 ",REVENUE,NTL,101502
North East Lincolnshire Council,http://statistics.data.gov.uk/id/local-authority/00FC,People And Communities,Improved Health,Ot Stores,Equip / Furniture / Materials,Health & Safety Supplies,LA116,07/10/2011,50310,"2,890.00 ",REVENUE,LISCLARE LTD,101785
North East Lincolnshire Council,http://statistics.data.gov.uk/id/local-authority/00FC,People And Communities,Improved Health,Ot Stores,Equip / Furniture / Materials,Health & Safety Supplies,LA116,11/10/2011,51971,"2,890.00 ",REVENUE,LISCLARE LTD,101785
North East Lincolnshire Council,http://statistics.data.gov.uk/id/local-authority/00FC,People And Communities,Improved Health,Supporting People,Other Agencies,Third Pp - Block Subsidy,PJ102,06/10/2011,50526,Redacted Commercially Sensitive,REVENUE,HUMBERCARE,100311
North East Lincolnshire Council,http://statistics.data.gov.uk/id/local-authority/00FC,People And Communities,Childrens Hlth & Family Supp,Childrens Centre Development,Other Agencies,Child Care Payments,PJ104,12/10/2011,52124,"2,913.00 ",REVENUE,FIRST STEPS GRIMSBY LIMITED,101411
North East Lincolnshire Council,http://statistics.data.gov.uk/id/local-authority/00FC,People And Communities,Vulnerable Young People,School Access Governor Student,Contract Hire-Operating Leases,Vehicles - Contract Hire,JC101,21/10/2011,55626,Redacted Commercially Sensitive,REVENUE,MILLMAN COACHES,100700
North East Lincolnshire Council,http://statistics.data.gov.uk/id/local-authority/00FC,People And Communities,Vulnerable Young People,Additional & Enhanced Needs,Private Contractors,Third Party Prov - Private,PH101,20/10/2011,54983,"2,970.00 ",REVENUE,DKM ASSESSMENT & VERIFICATION LTD,101643
North East Lincolnshire Council,http://statistics.data.gov.uk/id/local-authority/00FC,People And Communities,Vulnerable Young People,Additional & Enhanced Needs,Private Contractors,Third Party Prov - Private,PH101,20/10/2011,54980,"2,970.00 ",REVENUE,CMM TECHNOLOGY LTD,102134
North East Lincolnshire Council,http://statistics.data.gov.uk/id/local-authority/00FC,People And Communities,Vulnerable Young People,Placement & Support,Water Services,Water,GE101,06/10/2011,50370,"2,997.10 ",REVENUE,ANGLIAN WATER,100508
North East Lincolnshire Council,http://statistics.data.gov.uk/id/local-authority/00FC,People And Communities,Childrens Hlth & Family Supp,Integ Local Service Delivery,Private Contractors,Third Party Prov - Private,PH101,19/10/2011,54215,"3,030.00 ",REVENUE,FOR UNDER FIVES LTD,100647
North East Lincolnshire Council,http://statistics.data.gov.uk/id/local-authority/00FC,People And Communities,Childrens Hlth & Family Supp,Childrens Centre Development,Other Agencies,Child Care Payments,PJ104,12/10/2011,52126,"3,192.60 ",REVENUE,FIRST STEPS GRIMSBY LIMITED,101411
North East Lincolnshire Council,http://statistics.data.gov.uk/id/local-authority/00FC,People And Communities,Childrens Hlth & Family Supp,Childrens Centre Development,Communications And Computing,Computer H/Ware - Purchases,LF105,06/10/2011,50268,"3,246.58 ",REVENUE,NTL,101502
North East Lincolnshire Council,http://statistics.data.gov.uk/id/local-authority/00FC,People And Communities,Vulnerable Young People,Placement & Support,Rents,Rent,GC101,31/10/2011,57197,"3,300.00 ",REVENUE,LINKAGE COMMUNITY TRUST LTD,104471
North East Lincolnshire Council,http://statistics.data.gov.uk/id/local-authority/00FC,People And Communities,Vulnerable Young People,Standards & Effectiveness,Consultancy,Consultancy,PL101,10/10/2011,51176,"3,365.00 ",REVENUE,ADDLESHAW GODDARD LLP,104953
North East Lincolnshire Council,http://statistics.data.gov.uk/id/local-authority/00FC,People And Communities,Vulnerable Young People,School Access Governor Student,Contract Hire-Operating Leases,Vehicles - Contract Hire,JC101,21/10/2011,55625,Redacted Commercially Sensitive,REVENUE,MILLMAN COACHES,100700
North East Lincolnshire Council,http://statistics.data.gov.uk/id/local-authority/00FC,People And Communities,Vulnerable Young People,School Access Governor Student,Contract Hire-Operating Leases,Vehicles - Contract Hire,JC101,21/10/2011,55629,Redacted Commercially Sensitive,REVENUE,MINICABS CLEETHORPES (LINCS) LTD,102124
North East Lincolnshire Council,http://statistics.data.gov.uk/id/local-authority/00FC,People And Communities,Vulnerable Young People,Placement & Support,Rents,Rent,GC101,27/10/2011,57196,"3,600.00 ",REVENUE,LINKAGE COMMUNITY TRUST LTD,104471
North East Lincolnshire Council,http://statistics.data.gov.uk/id/local-authority/00FC,People And Communities,Vulnerable Young People,Safeguarding,Miscellaneous Expenses,Legal Fees - General,LL103,10/10/2011,50369,"3,600.00 ",REVENUE,BROWNING HOUSE,105740
North East Lincolnshire Council,http://statistics.data.gov.uk/id/local-authority/00FC,People And Communities,Vulnerable Young People,Sen/Inclusion,Other Local Authorities,Third Pp - Other Local Auth,PC101,03/10/2011,48533,"3,684.17 ",REVENUE,NORTHERN LINCOLNSHIRE & GOOLE HOSPITALS,101242
North East Lincolnshire Council,http://statistics.data.gov.uk/id/local-authority/00FC,People And Communities,Vulnerable Young People,Sen/Inclusion,Other Local Authorities,Third Pp - Other Local Auth,PC101,20/10/2011,55068,"3,684.17 ",REVENUE,NORTHERN LINCOLNSHIRE & GOOLE HOSPITALS,101242
North East Lincolnshire Council,http://statistics.data.gov.uk/id/local-authority/00FC,People And Communities,Vulnerable Young People,School Access Governor Student,Contract Hire-Operating Leases,Vehicles - Contract Hire,JC101,26/10/2011,56742,Redacted Commercially Sensitive,REVENUE,AMVALE LIMITED,101030
North East Lincolnshire Council,http://statistics.data.gov.uk/id/local-authority/00FC,People And Communities,Vulnerable Young People,School Access Governor Student,Contract Hire-Operating Leases,Vehicles - Contract Hire,JC101,20/10/2011,55591,Redacted Commercially Sensitive,REVENUE,HUXMANOR LTD,101444
North East Lincolnshire Council,http://statistics.data.gov.uk/id/local-authority/00FC,People And Communities,Vulnerable Young People,Placement & Support,Private Contractors,Third Party Prov - Private,PH101,13/10/2011,51416,"3,715.04 ",REVENUE,TREE HOUSE CARE FOSTERING SOLUTIONS LTD,101150
North East Lincolnshire Council,http://statistics.data.gov.uk/id/local-authority/00FC,People And Communities,Childrens Hlth & Family Supp,Integ Local Service Delivery,Private Contractors,Third Party Prov - Private,PH101,10/10/2011,51321,"3,740.00 ",REVENUE,READY TEDDY GO,100973
North East Lincolnshire Council,http://statistics.data.gov.uk/id/local-authority/00FC,People And Communities,Childrens Hlth & Family Supp,Integ Local Service Delivery,Private Contractors,Third Party Prov - Private,PH101,19/10/2011,54209,"3,750.00 ",REVENUE,WELHOLME PRE SCHOOL,101258
North East Lincolnshire Council,http://statistics.data.gov.uk/id/local-authority/00FC,People And Communities,Vulnerable Young People,Placement & Support,Grants And Subscriptions,Subscriptions,LJ101,17/10/2011,53471,"3,864.00 ",REVENUE,THE FOSTERING NETWORK,103725
North East Lincolnshire Council,http://statistics.data.gov.uk/id/local-authority/00FC,People And Communities,Vulnerable Young People,Additional & Enhanced Needs,Rents,Rent,GC101,20/10/2011,54985,"3,900.00 ",REVENUE,LINKAGE COMMUNITY TRUST LTD,104471
North East Lincolnshire Council,http://statistics.data.gov.uk/id/local-authority/00FC,People And Communities,Childrens Hlth & Family Supp,Integ Local Service Delivery,Private Contractors,Third Party Prov - Private,PH101,10/10/2011,51158,"3,975.00 ",REVENUE,WIZ KIDZ,102424
North East Lincolnshire Council,http://statistics.data.gov.uk/id/local-authority/00FC,People And Communities,Childrens Hlth & Family Supp,Integrated Youth Services,Miscellaneous Expenses,Activities - Service Users,LL114,19/10/2011,54819,"4,000.00 ",REVENUE,Redacted Personal Information,Redacted
North East Lincolnshire Council,http://statistics.data.gov.uk/id/local-authority/00FC,People And Communities,Childrens Hlth & Family Supp,Integ Local Service Delivery,Private Contractors,Third Party Prov - Private,PH101,10/10/2011,51157,"4,000.00 ",REVENUE,WALTHAM LEAS PRIMARY SCHOOL,102440
North East Lincolnshire Council,http://statistics.data.gov.uk/id/local-authority/00FC,People And Communities,Childrens Hlth & Family Supp,Integ Local Service Delivery,Private Contractors,Third Party Prov - Private,PH101,10/10/2011,51310,"4,000.00 ",REVENUE,BUTTERFLIES DAY NURSERY,101694
North East Lincolnshire Council,http://statistics.data.gov.uk/id/local-authority/00FC,People And Communities,Childrens Hlth & Family Supp,Integ Local Service Delivery,Private Contractors,Third Party Prov - Private,PH101,12/10/2011,51311,"4,000.00 ",REVENUE,CLOVERFIELDS PRE SCHOOL,100971
North East Lincolnshire Council,http://statistics.data.gov.uk/id/local-authority/00FC,People And Communities,Childrens Hlth & Family Supp,Integ Local Service Delivery,Private Contractors,Third Party Prov - Private,PH101,10/10/2011,51312,"4,000.00 ",REVENUE,EAST RAVENDALE PRE SCHOOL,100941
North East Lincolnshire Council,http://statistics.data.gov.uk/id/local-authority/00FC,People And Communities,Childrens Hlth & Family Supp,Integ Local Service Delivery,Private Contractors,Third Party Prov - Private,PH101,19/10/2011,54208,"4,000.00 ",REVENUE,FOR UNDER FIVES LTD,100647
North East Lincolnshire Council,http://statistics.data.gov.uk/id/local-authority/00FC,People And Communities,Childrens Hlth & Family Supp,Integ Local Service Delivery,Private Contractors,Third Party Prov - Private,PH101,10/10/2011,51313,"4,000.00 ",REVENUE,HAVEN METHODIST PRE-SCHOOL,102286
North East Lincolnshire Council,http://statistics.data.gov.uk/id/local-authority/00FC,People And Communities,Childrens Hlth & Family Supp,Integ Local Service Delivery,Private Contractors,Third Party Prov - Private,PH101,13/10/2011,51316,"4,000.00 ",REVENUE,HUMBERSTON C E PRE SCHOOL,101153
North East Lincolnshire Council,http://statistics.data.gov.uk/id/local-authority/00FC,People And Communities,Childrens Hlth & Family Supp,Integ Local Service Delivery,Private Contractors,Third Party Prov - Private,PH101,10/10/2011,51317,"4,000.00 ",REVENUE,HUMBERSTON VILLAGE NURSERY,102006
North East Lincolnshire Council,http://statistics.data.gov.uk/id/local-authority/00FC,People And Communities,Childrens Hlth & Family Supp,Integ Local Service Delivery,Private Contractors,Third Party Prov - Private,PH101,12/10/2011,51320,"4,000.00 ",REVENUE,CLEETHORPES CHILDCARE,101591
North East Lincolnshire Council,http://statistics.data.gov.uk/id/local-authority/00FC,People And Communities,Childrens Hlth & Family Supp,Integ Local Service Delivery,Private Contractors,Third Party Prov - Private,PH101,12/10/2011,51324,"4,000.00 ",REVENUE,CLEETHORPES CHILDCARE,101591
North East Lincolnshire Council,http://statistics.data.gov.uk/id/local-authority/00FC,People And Communities,Childrens Hlth & Family Supp,Integ Local Service Delivery,Private Contractors,Third Party Prov - Private,PH101,10/10/2011,51322,"4,000.00 ",REVENUE,ST MARGARETS PRE-SCHOOL,101724
North East Lincolnshire Council,http://statistics.data.gov.uk/id/local-authority/00FC,People And Communities,Childrens Hlth & Family Supp,Integ Local Service Delivery,Private Contractors,Third Party Prov - Private,PH101,10/10/2011,51323,"4,000.00 ",REVENUE,THE CHILDRENS HOUSE,101141
North East Lincolnshire Council,http://statistics.data.gov.uk/id/local-authority/00FC,People And Communities,Childrens Hlth & Family Supp,Integ Local Service Delivery,Private Contractors,Third Party Prov - Private,PH101,19/10/2011,54211,"4,000.00 ",REVENUE,NEW WALTHAM TRACKERS PLAYGROUP,100972
North East Lincolnshire Council,http://statistics.data.gov.uk/id/local-authority/00FC,People And Communities,Childrens Hlth & Family Supp,Integ Local Service Delivery,Private Contractors,Third Party Prov - Private,PH101,19/10/2011,54210,"4,000.00 ",REVENUE,WENDOVER PRE-SCHOOL,101350
North East Lincolnshire Council,http://statistics.data.gov.uk/id/local-authority/00FC,People And Communities,Childrens Hlth & Family Supp,Integrated Youth Services,Direct Employee Expenses,National Insurance,EA201,28/10/2011,57949,"4,082.56 ",REVENUE,TEACHERS PENSION,105124
North East Lincolnshire Council,http://statistics.data.gov.uk/id/local-authority/00FC,People And Communities,Childrens Hlth & Family Supp,Childrens Health Provision,Finance Leasing,Leasing,LN101,17/10/2011,53753,Redacted Commercially Sensitive,REVENUE,NORTH EAST LINCOLNSHIRE PRIMARY CARE TRUST,100337
North East Lincolnshire Council,http://statistics.data.gov.uk/id/local-authority/00FC,People And Communities,Improved Health,Ot Stores,Equip / Furniture / Materials,Health & Safety Supplies,LA116,26/10/2011,56132,"4,250.00 ",REVENUE,ARJO MED AB LTD,103268
North East Lincolnshire Council,http://statistics.data.gov.uk/id/local-authority/00FC,People And Communities,Vulnerable Young People,Sen/Inclusion,Consultancy,Consultancy,PL101,12/10/2011,52078,"4,400.00 ",REVENUE,MR R G FLOWERDAY,107027
North East Lincolnshire Council,http://statistics.data.gov.uk/id/local-authority/00FC,People And Communities,Childrens Hlth & Family Supp,Integrated Youth Services,Contributions To Provisions,Contributions - Other,LK103,31/10/2011,57719,Redacted Commercially Sensitive,REVENUE,KINGSTON UPON HULL CITY COUNCIL,100541
North East Lincolnshire Council,http://statistics.data.gov.uk/id/local-authority/00FC,People And Communities,Childrens Hlth & Family Supp,Childrens Health Provision,Private Contractors,Third Party Prov - Private,PH101,05/10/2011,49963,"4,500.00 ",REVENUE,OUTCOMES UK LTD,101486
North East Lincolnshire Council,http://statistics.data.gov.uk/id/local-authority/00FC,People And Communities,Vulnerable Young People,Additional & Enhanced Needs,Other Local Authorities,Third Pp - Other Local Auth,PC101,20/10/2011,54991,"4,560.00 ",REVENUE,RAINBOW,102123
North East Lincolnshire Council,http://statistics.data.gov.uk/id/local-authority/00FC,People And Communities,Improved Health,Supporting People,Other Agencies,Third Pp - Block Subsidy,PJ102,31/10/2011,58351,Redacted Commercially Sensitive,REVENUE,NORTH EAST LINCOLNSHIRE PRIMARY CARE TRUST,100337
North East Lincolnshire Council,http://statistics.data.gov.uk/id/local-authority/00FC,People And Communities,Improved Health,Supporting People,Other Agencies,Third Pp - Block Gross,PJ103,26/10/2011,57085,Redacted Commercially Sensitive,REVENUE,YORK HOUSING ASSOCIATION LTD,100341
North East Lincolnshire Council,http://statistics.data.gov.uk/id/local-authority/00FC,People And Communities,Childrens Hlth & Family Supp,Childrens Health Provision,Contributions To Provisions,Contributions - Other,LK103,06/10/2011,50304,"4,980.00 ",REVENUE,YOUTHORIA,101292
North East Lincolnshire Council,http://statistics.data.gov.uk/id/local-authority/00FC,People And Communities,Vulnerable Young People,Additional & Enhanced Needs,Other Local Authorities,Third Pp - Other Local Auth,PC101,10/10/2011,51367,"5,010.38 ",REVENUE,NEW OPTIONS LTD,105590
North East Lincolnshire Council,http://statistics.data.gov.uk/id/local-authority/00FC,People And Communities,Strat Dir People & Communities,Funding,Government Grants,Grants - Standards Fund,VA102,21/10/2011,55550,"5,798.00 ",REVENUE,LISLE MARSDEN CE AIDED PRIMARY SCHOOL,106693
North East Lincolnshire Council,http://statistics.data.gov.uk/id/local-authority/00FC,People And Communities,Strat Dir People & Communities,Funding,Government Grants,Grants - Standards Fund,VA102,21/10/2011,55553,"6,128.00 ",REVENUE,GREAT COATES PRIMARY SCHOOL,101104
North East Lincolnshire Council,http://statistics.data.gov.uk/id/local-authority/00FC,People And Communities,Childrens Hlth & Family Supp,Palliative / Complex Care,Private Contractors,Third Party Prov - Private,PH101,31/10/2011,57537,"6,206.52 ",REVENUE,INDEPENDENT COMMUNITY CARE MANAGEMENT LTD,105477
North East Lincolnshire Council,http://statistics.data.gov.uk/id/local-authority/00FC,People And Communities,Improved Health,Supporting People,Other Agencies,Third Pp - Block Subsidy,PJ102,06/10/2011,50527,Redacted Commercially Sensitive,REVENUE,CARE,100314
North East Lincolnshire Council,http://statistics.data.gov.uk/id/local-authority/00FC,People And Communities,Vulnerable Young People,Additional & Enhanced Needs,Other Local Authorities,Third Pp - Other Local Auth,PC101,10/10/2011,51365,"6,259.58 ",REVENUE,NEW OPTIONS LTD,105590
North East Lincolnshire Council,http://statistics.data.gov.uk/id/local-authority/00FC,People And Communities,Childrens Hlth & Family Supp,Childrens Health Provision,Finance Leasing,Leasing,LN101,17/10/2011,53753,Redacted Commercially Sensitive,REVENUE,NORTH EAST LINCOLNSHIRE PRIMARY CARE TRUST,100337
North East Lincolnshire Council,http://statistics.data.gov.uk/id/local-authority/00FC,People And Communities,Vulnerable Young People,Safeguarding,Miscellaneous Expenses,Legal Fees - General,LL103,07/10/2011,50379,"7,200.00 ",REVENUE,BROWNING HOUSE,105740
North East Lincolnshire Council,http://statistics.data.gov.uk/id/local-authority/00FC,People And Communities,Vulnerable Young People,Sen/Inclusion,Other Local Authorities,Third Pp - Other Local Auth,PC101,10/10/2011,50431,"7,368.00 ",REVENUE,NORTHERN LINCOLNSHIRE & GOOLE HOSPITALS,101242
North East Lincolnshire Council,http://statistics.data.gov.uk/id/local-authority/00FC,People And Communities,Childrens Hlth & Family Supp,Childrens Health Provision,Private Contractors,Third Party Prov - Private,PH101,18/10/2011,53748,"7,625.00 ",REVENUE,NORTHERN LINCOLNSHIRE & GOOLE HOSPITALS,101242
North East Lincolnshire Council,http://statistics.data.gov.uk/id/local-authority/00FC,People And Communities,Improved Health,Supporting People,Other Agencies,Third Pp - Block Gross,PJ103,26/10/2011,57087,Redacted Commercially Sensitive,REVENUE,SANCTUARY HOUSING ASSOCIATION,103289
North East Lincolnshire Council,http://statistics.data.gov.uk/id/local-authority/00FC,People And Communities,Vulnerable Young People,Additional & Enhanced Needs,Other Local Authorities,Third Pp - Other Local Auth,PC101,10/10/2011,50987,Redacted Commercially Sensitive,REVENUE,NORTH LINCOLNSHIRE COUNCIL,101186
North East Lincolnshire Council,http://statistics.data.gov.uk/id/local-authority/00FC,People And Communities,Vulnerable Young People,Commissioning & Performance,Catering,Provisions,LB101,06/10/2011,49288,Redacted Commercially Sensitive,REVENUE,DAIRY CREST LTD,101743
North East Lincolnshire Council,http://statistics.data.gov.uk/id/local-authority/00FC,People And Communities,Childrens Hlth & Family Supp,Integ Local Service Delivery,Private Contractors,Third Party Prov - Private,PH101,12/10/2011,51314,"8,000.00 ",REVENUE,FIRST STEPS DAY NURSERY,105509
North East Lincolnshire Council,http://statistics.data.gov.uk/id/local-authority/00FC,People And Communities,Improved Health,Service Strat & Regulation,Health Authorities,Third Pp - Health Auth,PD101,25/10/2011,55505,"8,000.00 ",REVENUE,VOLUNTARY ACTION NORTH EAST LINCOLNSHIRE,103631
North East Lincolnshire Council,http://statistics.data.gov.uk/id/local-authority/00FC,People And Communities,Improved Health,Supporting People,Other Agencies,Third Pp - Block Subsidy,PJ102,06/10/2011,50535,Redacted Commercially Sensitive,REVENUE,OPEN DOOR (HEALTH) LTD,103147
North East Lincolnshire Council,http://statistics.data.gov.uk/id/local-authority/00FC,People And Communities,Childrens Hlth & Family Supp,Integ Local Service Delivery,Private Contractors,Third Party Prov - Private,PH101,18/10/2011,53751,"8,595.00 ",REVENUE,NORTHERN LINCOLNSHIRE & GOOLE HOSPITALS,101242
North East Lincolnshire Council,http://statistics.data.gov.uk/id/local-authority/00FC,People And Communities,Improved Health,Supporting People,Other Agencies,Third Pp - Block Subsidy,PJ102,26/10/2011,57083,Redacted Commercially Sensitive,REVENUE,CARE,100314
North East Lincolnshire Council,http://statistics.data.gov.uk/id/local-authority/00FC,People And Communities,Vulnerable Young People,Additional & Enhanced Needs,Contributions To Provisions,Contributions - Other,LK103,10/10/2011,51295,"8,670.00 ",REVENUE,SHALOM YOUTH PROJECT,103924
North East Lincolnshire Council,http://statistics.data.gov.uk/id/local-authority/00FC,People And Communities,Vulnerable Young People,Sen/Inclusion,Consultancy,Consultancy - Curriculum,PL102,12/10/2011,51464,"8,750.00 ",REVENUE,Redacted Personal Information,Redacted
North East Lincolnshire Council,http://statistics.data.gov.uk/id/local-authority/00FC,People And Communities,Childrens Hlth & Family Supp,Childrens Centre Development,Private Contractors,Third Party Prov - Private,PH101,17/10/2011,53734,"8,931.00 ",REVENUE,NORTHERN LINCOLNSHIRE & GOOLE HOSPITALS,101242
North East Lincolnshire Council,http://statistics.data.gov.uk/id/local-authority/00FC,People And Communities,Childrens Hlth & Family Supp,Childrens Health Provision,Contributions To Provisions,Contributions - Other,LK103,26/10/2011,56607,"9,000.00 ",REVENUE,TEENS AND TODDLERS,107251
North East Lincolnshire Council,http://statistics.data.gov.uk/id/local-authority/00FC,People And Communities,Improved Health,Health Promotion,Private Contractors,Third Party Prov - Private,PH101,12/10/2011,51294,"9,000.00 ",REVENUE,WEIGHT WATCHERS UK LTD,101509
North East Lincolnshire Council,http://statistics.data.gov.uk/id/local-authority/00FC,People And Communities,Improved Health,Health Promotion,Private Contractors,Third Party Prov - Private,PH101,10/10/2011,51297,"9,000.00 ",REVENUE,WEIGHT WATCHERS UK LTD,101509
North East Lincolnshire Council,http://statistics.data.gov.uk/id/local-authority/00FC,People And Communities,Vulnerable Young People,Additional & Enhanced Needs,Other Local Authorities,Third Pp - Other Local Auth,PC101,20/10/2011,54990,"10,020.77 ",REVENUE,NEW OPTIONS LTD,105590
North East Lincolnshire Council,http://statistics.data.gov.uk/id/local-authority/00FC,People And Communities,Strat Dir People & Communities,Funding,Government Grants,Grants - Standards Fund,VA102,20/10/2011,55585,"10,428.00 ",REVENUE,EDWARD HENEAGE PRIMARY SCHOOL,103917
North East Lincolnshire Council,http://statistics.data.gov.uk/id/local-authority/00FC,People And Communities,Vulnerable Young People,Strategic Management,Direct Employee Expenses,Pay,EA101,31/10/2011,57790,"10,437.80 ",REVENUE,ESCRICK EDUCATION ASSOCIATES,102662
North East Lincolnshire Council,http://statistics.data.gov.uk/id/local-authority/00FC,People And Communities,Vulnerable Young People,Additional & Enhanced Needs,Other Local Authorities,Third Pp - Other Local Auth,PC101,11/10/2011,51368,"10,476.26 ",REVENUE,NEW OPTIONS LTD,105590
North East Lincolnshire Council,http://statistics.data.gov.uk/id/local-authority/00FC,People And Communities,Childrens Hlth & Family Supp,Childrens Centre Development,Communications And Computing,Computer H/Ware - Purchases,LF105,06/10/2011,50270,"10,558.90 ",REVENUE,NTL,101502
North East Lincolnshire Council,http://statistics.data.gov.uk/id/local-authority/00FC,People And Communities,Vulnerable Young People,Additional & Enhanced Needs,Private Contractors,Third Party Prov - Private,PH101,10/10/2011,51156,"10,714.28 ",REVENUE,REFLECTION CARE GROUP LIMITED,106975
North East Lincolnshire Council,http://statistics.data.gov.uk/id/local-authority/00FC,People And Communities,Vulnerable Young People,Additional & Enhanced Needs,Private Contractors,Third Party Prov - Private,PH101,10/10/2011,51273,"11,071.42 ",REVENUE,REFLECTION CARE GROUP LIMITED,106975
North East Lincolnshire Council,http://statistics.data.gov.uk/id/local-authority/00FC,People And Communities,Vulnerable Young People,Sen/Inclusion,Other Local Authorities,Third Pp - Other Local Auth,PC101,07/10/2011,50873,"11,203.67 ",REVENUE,LEEDS CITY COUNCIL,100545
North East Lincolnshire Council,http://statistics.data.gov.uk/id/local-authority/00FC,People And Communities,Vulnerable Young People,Additional & Enhanced Needs,Private Contractors,Third Party Prov - Private,PH101,13/10/2011,51180,"11,571.30 ",REVENUE,QUALITY TIME CARE LTD,102519
North East Lincolnshire Council,http://statistics.data.gov.uk/id/local-authority/00FC,People And Communities,Improved Health,Supporting People,Other Agencies,Third Pp - Block Subsidy,PJ102,06/10/2011,50528,Redacted Commercially Sensitive,REVENUE,HICA,100319
North East Lincolnshire Council,http://statistics.data.gov.uk/id/local-authority/00FC,People And Communities,Vulnerable Young People,Additional & Enhanced Needs,Private Contractors,Third Party Prov - Private,PH101,26/10/2011,57074,"11,957.01 ",REVENUE,QUALITY TIME CARE LTD,102519
North East Lincolnshire Council,http://statistics.data.gov.uk/id/local-authority/00FC,People And Communities,Strat Dir People & Communities,Funding,Government Grants,Grants - Standards Fund,VA102,21/10/2011,55556,"11,987.00 ",REVENUE,WHITGIFT SCHOOL,100867
North East Lincolnshire Council,http://statistics.data.gov.uk/id/local-authority/00FC,People And Communities,Vulnerable Young People,Additional & Enhanced Needs,Other Local Authorities,Third Pp - Other Local Auth,PC101,26/10/2011,57073,"12,320.00 ",REVENUE,DKM ASSESSMENT & VERIFICATION LTD,101643
North East Lincolnshire Council,http://statistics.data.gov.uk/id/local-authority/00FC,People And Communities,Vulnerable Young People,Additional & Enhanced Needs,Other Local Authorities,Third Pp - Other Local Auth,PC101,11/10/2011,51183,"12,320.00 ",REVENUE,DKM ASSESSMENT & VERIFICATION LTD,101643
North East Lincolnshire Council,http://statistics.data.gov.uk/id/local-authority/00FC,People And Communities,Vulnerable Young People,Additional & Enhanced Needs,Other Local Authorities,Third Pp - Other Local Auth,PC101,20/10/2011,54989,"12,519.16 ",REVENUE,NEW OPTIONS LTD,105590
North East Lincolnshire Council,http://statistics.data.gov.uk/id/local-authority/00FC,People And Communities,Vulnerable Young People,Additional & Enhanced Needs,Other Local Authorities,Third Pp - Other Local Auth,PC101,10/10/2011,51544,"13,088.21 ",REVENUE,NEW OPTIONS LTD,105590
North East Lincolnshire Council,http://statistics.data.gov.uk/id/local-authority/00FC,People And Communities,Vulnerable Young People,Through Care & Disability,Private Contractors,Third Party Prov - Private,PH101,26/10/2011,56613,Redacted Commercially Sensitive,REVENUE,HUMBERCARE,100311
North East Lincolnshire Council,http://statistics.data.gov.uk/id/local-authority/00FC,People And Communities,Vulnerable Young People,Sen/Inclusion,Private Contractors,Third Party Prov - Private,PH101,05/10/2011,49973,"13,718.00 ",REVENUE,A4E CONSULT LTD,101656
North East Lincolnshire Council,http://statistics.data.gov.uk/id/local-authority/00FC,People And Communities,Vulnerable Young People,Additional & Enhanced Needs,Contributions To Provisions,Contributions - Other,LK103,10/10/2011,51547,"14,270.00 ",REVENUE,THE CAMBRIDGE PARK ACADEMY,106986
North East Lincolnshire Council,http://statistics.data.gov.uk/id/local-authority/00FC,People And Communities,Improved Health,Supporting People,Other Agencies,Third Pp - Block Subsidy,PJ102,06/10/2011,50536,Redacted Commercially Sensitive,REVENUE,NAVIGO HEALTH AND SOCIAL CARE CIC,104262
North East Lincolnshire Council,http://statistics.data.gov.uk/id/local-authority/00FC,People And Communities,Vulnerable Young People,Additional & Enhanced Needs,Other Local Authorities,Third Pp - Other Local Auth,PC101,10/10/2011,51547,"15,308.00 ",REVENUE,THE CAMBRIDGE PARK ACADEMY,106986
North East Lincolnshire Council,http://statistics.data.gov.uk/id/local-authority/00FC,People And Communities,Improved Health,Supporting People,Other Agencies,Third Pp - Block Gross,PJ103,26/10/2011,57082,Redacted Commercially Sensitive,REVENUE,HUMBERCARE,100311
North East Lincolnshire Council,http://statistics.data.gov.uk/id/local-authority/00FC,People And Communities,Vulnerable Young People,Additional & Enhanced Needs,Other Local Authorities,Third Pp - Other Local Auth,PC101,13/10/2011,51186,Redacted Commercially Sensitive,REVENUE,KINGSTON UPON HULL CITY COUNCIL,100541
North East Lincolnshire Council,http://statistics.data.gov.uk/id/local-authority/00FC,People And Communities,Improved Health,Supporting People,Other Agencies,Third Pp - Block Subsidy,PJ102,06/10/2011,50537,Redacted Commercially Sensitive,REVENUE,CARE PLUS GROUP,106467
North East Lincolnshire Council,http://statistics.data.gov.uk/id/local-authority/00FC,People And Communities,Vulnerable Young People,Additional & Enhanced Needs,Other Local Authorities,Third Pp - Other Local Auth,PC101,10/10/2011,50985,Redacted Commercially Sensitive,REVENUE,NORTH LINCOLNSHIRE COUNCIL,101186
North East Lincolnshire Council,http://statistics.data.gov.uk/id/local-authority/00FC,People And Communities,Vulnerable Young People,Through Care & Disability,Private Contractors,Third Party Prov - Private,PH101,06/10/2011,50242,Redacted Commercially Sensitive,REVENUE,COOL2CARE CIC,106909
North East Lincolnshire Council,http://statistics.data.gov.uk/id/local-authority/00FC,People And Communities,Improved Health,Supporting People,Other Agencies,Third Pp - Block Gross,PJ103,26/10/2011,57084,Redacted Commercially Sensitive,REVENUE,WOMENS AID,100326
North East Lincolnshire Council,http://statistics.data.gov.uk/id/local-authority/00FC,People And Communities,Vulnerable Young People,Safeguarding,Private Contractors,Third Party Prov - Private,PH101,25/10/2011,56499,"21,750.00 ",REVENUE,LEEDS CITY COUNCIL,100545
North East Lincolnshire Council,http://statistics.data.gov.uk/id/local-authority/00FC,People And Communities,Improved Health,Supporting People,Other Agencies,Third Pp - Block Gross,PJ103,26/10/2011,57080,Redacted Commercially Sensitive,REVENUE,SALVATION ARMY,100309
North East Lincolnshire Council,http://statistics.data.gov.uk/id/local-authority/00FC,People And Communities,Vulnerable Young People,Safeguarding,Private Contractors,Third Party Prov - Private,PH101,05/10/2011,49942,"22,475.00 ",REVENUE,LEEDS CITY COUNCIL,100545
North East Lincolnshire Council,http://statistics.data.gov.uk/id/local-authority/00FC,People And Communities,Vulnerable Young People,Placement & Support,Private Contractors,Third Party Prov - Private,PH101,27/10/2011,57605,"23,142.86 ",REVENUE,A WILDERNESS WAY LTD,102537
North East Lincolnshire Council,http://statistics.data.gov.uk/id/local-authority/00FC,People And Communities,Vulnerable Young People,Additional & Enhanced Needs,Other Local Authorities,Third Pp - Other Local Auth,PC101,12/10/2011,51184,"25,537.33 ",REVENUE,BARNARDO SERVICES LTD,101050
North East Lincolnshire Council,http://statistics.data.gov.uk/id/local-authority/00FC,People And Communities,Vulnerable Young People,Commissioning & Performance,Catering,Purchase School Meals,LB103,13/10/2011,53019,Redacted Commercially Sensitive,REVENUE,CYGNET FOODS,101491
North East Lincolnshire Council,http://statistics.data.gov.uk/id/local-authority/00FC,People And Communities,Improved Health,Supporting People,Other Agencies,Third Pp - Block Gross,PJ103,26/10/2011,57081,Redacted Commercially Sensitive,REVENUE,DOORSTEP,100310
North East Lincolnshire Council,http://statistics.data.gov.uk/id/local-authority/00FC,People And Communities,Vulnerable Young People,Additional & Enhanced Needs,Other Local Authorities,Third Pp - Other Local Auth,PC101,12/10/2011,51187,"29,929.00 ",REVENUE,HUMBERSTON PARK SCHOOL,100660
North East Lincolnshire Council,http://statistics.data.gov.uk/id/local-authority/00FC,People And Communities,Improved Health,Supporting People,Other Agencies,Third Pp - Block Subsidy,PJ102,06/10/2011,50530,Redacted Commercially Sensitive,REVENUE,HOUSING & SUPPORT SOLUTIONS,100321
North East Lincolnshire Council,http://statistics.data.gov.uk/id/local-authority/00FC,People And Communities,Vulnerable Young People,Additional & Enhanced Needs,Other Local Authorities,Third Pp - Other Local Auth,PC101,12/10/2011,51185,"34,129.34 ",REVENUE,DONCASTER DEAF TRUST,101268
North East Lincolnshire Council,http://statistics.data.gov.uk/id/local-authority/00FC,People And Communities,Improved Health,Supporting People,Other Agencies,Third Pp - Block Subsidy,PJ102,06/10/2011,50534,Redacted Commercially Sensitive,REVENUE,LONGHURST AND HAVELOK HOMES LTD,100342
North East Lincolnshire Council,http://statistics.data.gov.uk/id/local-authority/00FC,People And Communities,Improved Health,Supporting People,Other Agencies,Third Pp - Block Gross,PJ103,26/10/2011,57079,Redacted Commercially Sensitive,REVENUE,GRIMSBY AND CLEETHORPES YMCA,100305
North East Lincolnshire Council,http://statistics.data.gov.uk/id/local-authority/00FC,People And Communities,Vulnerable Young People,Additional & Enhanced Needs,Other Local Authorities,Third Pp - Other Local Auth,PC101,12/10/2011,51307,"40,279.00 ",REVENUE,HUMBERSTON PARK SCHOOL,100660
North East Lincolnshire Council,http://statistics.data.gov.uk/id/local-authority/00FC,People And Communities,Childrens Hlth & Family Supp,Childrens Centre Development,Private Contractors,Third Party Prov - Private,PH101,26/10/2011,56409,"56,575.63 ",REVENUE,PRE SCHOOL LEARNING ALLIANCE,101437
North East Lincolnshire Council,http://statistics.data.gov.uk/id/local-authority/00FC,People And Communities,Improved Health,Supporting People,Other Agencies,Third Pp - Block Gross,PJ103,26/10/2011,57086,Redacted Commercially Sensitive,REVENUE,LONGHURST AND HAVELOK HOMES LTD,100342
North East Lincolnshire Council,http://statistics.data.gov.uk/id/local-authority/00FC,People And Communities,Vulnerable Young People,Additional & Enhanced Needs,Other Local Authorities,Third Pp - Other Local Auth,PC101,20/10/2011,55111,"77,017.00 ",REVENUE,HUMBERSTON PARK SCHOOL,100660
North East Lincolnshire Council,http://statistics.data.gov.uk/id/local-authority/00FC,People And Communities,Vulnerable Young People,Commissioning & Performance,Catering,Purchase School Meals,LB103,13/10/2011,53020,Redacted Commercially Sensitive,REVENUE,CYGNET FOODS,101491
North East Lincolnshire Council,http://statistics.data.gov.uk/id/local-authority/00FC,People And Communities,Vulnerable Young People,Serco Contract,Private Contractors,Third Party Prov - Private,PH101,31/10/2011,58131,"149,957.17 ",REVENUE,SERCO SHARED SERVICES CENTRE,101875
North East Lincolnshire Council,http://statistics.data.gov.uk/id/local-authority/00FC,People And Communities,Vulnerable Young People,Sen/Inclusion,Other Local Authorities,Third Pp - Other Local Auth,PC101,03/10/2011,48532,Redacted Commercially Sensitive,REVENUE,KINGSTON UPON HULL CITY COUNCIL,100541
North East Lincolnshire Council,http://statistics.data.gov.uk/id/local-authority/00FC,People And Communities,Childrens Hlth & Family Supp,Palliative / Complex Care,Private Contractors,Third Party Prov - Private,PH101,17/10/2011,53735,"196,674.00 ",REVENUE,LINCS PARTNERSHIP NHS FOUNDATION TRUST,105021
North East Lincolnshire Council,http://statistics.data.gov.uk/id/local-authority/00FC,Resources,Staff Workspaces,Staff Workspaces,Cap Auc-Build Enh Wrk,Cap Auc-Build Enh Wrk,YF102,27/10/2011,57536,"25,945.24 ",CAPITAL,JAYBUILD PROJECTS LTD,102607
North East Lincolnshire Council,http://statistics.data.gov.uk/id/local-authority/00FC,Resources,Devolved Formula Cap Grant,Devolved Formula Cap Grant,Cap Land/Build-Build Enh Wrk,Cap Land/Build-Build Enh Wrk,YA102,12/10/2011,52119,599.50 ,CAPITAL,EUROPARC-GROUP,102805
North East Lincolnshire Council,http://statistics.data.gov.uk/id/local-authority/00FC,Resources,Devolved Formula Cap Grant,Devolved Formula Cap Grant,Cap Land/Build-Build Enh Wrk,Cap Land/Build-Build Enh Wrk,YA102,13/10/2011,52956,675.00 ,CAPITAL,LINCS ELECTRICAL SERVICES LTD,102044
North East Lincolnshire Council,http://statistics.data.gov.uk/id/local-authority/00FC,Resources,Devolved Formula Cap Grant,Devolved Formula Cap Grant,Cap Land/Build-Build Enh Wrk,Cap Land/Build-Build Enh Wrk,YA102,05/10/2011,49969,"1,100.00 ",CAPITAL,KENSWAY CLASSIC BLINDS,101243
North East Lincolnshire Council,http://statistics.data.gov.uk/id/local-authority/00FC,Resources,Devolved Formula Cap Grant,Devolved Formula Cap Grant,Cap Land/Build-Build Enh Wrk,Cap Land/Build-Build Enh Wrk,YA102,10/10/2011,51161,"1,374.00 ",CAPITAL,SECOM PLC,104119
North East Lincolnshire Council,http://statistics.data.gov.uk/id/local-authority/00FC,Resources,Devolved Formula Cap Grant,Devolved Formula Cap Grant,Cap Invest Prop-Build Enh Wrk,Cap Invest Prop-Build Enh Wrk,YE102,14/10/2011,53270,"1,543.65 ",CAPITAL,P G INGOLDBY & SONS LTD,100591
North East Lincolnshire Council,http://statistics.data.gov.uk/id/local-authority/00FC,Resources,Devolved Formula Cap Grant,Devolved Formula Cap Grant,Cap Land/Build-Build Enh Wrk,Cap Land/Build-Build Enh Wrk,YA102,18/10/2011,53591,"1,564.00 ",CAPITAL,EXPO DATA COMMS LTD,103571
North East Lincolnshire Council,http://statistics.data.gov.uk/id/local-authority/00FC,Resources,Devolved Formula Cap Grant,Devolved Formula Cap Grant,Cap Land/Build-Build Enh Wrk,Cap Land/Build-Build Enh Wrk,YA102,18/10/2011,52084,"1,878.17 ",CAPITAL,OFFICE FRIENDS LTD,102454
North East Lincolnshire Council,http://statistics.data.gov.uk/id/local-authority/00FC,Resources,Devolved Formula Cap Grant,Devolved Formula Cap Grant,Cap Land/Build-Build Enh Wrk,Cap Land/Build-Build Enh Wrk,YA102,10/10/2011,50335,"1,920.00 ",CAPITAL,J MELTON LTD,100636
North East Lincolnshire Council,http://statistics.data.gov.uk/id/local-authority/00FC,Resources,Devolved Formula Cap Grant,Devolved Formula Cap Grant,Cap Invest Prop-Purchase,Cap Invest Prop-Purchase,YE101,06/10/2011,50125,"1,935.00 ",CAPITAL,MARMAX PRODUCTS LTD,104999
North East Lincolnshire Council,http://statistics.data.gov.uk/id/local-authority/00FC,Resources,Devolved Formula Cap Grant,Devolved Formula Cap Grant,Cap Invest Prop-Build Enh Wrk,Cap Invest Prop-Build Enh Wrk,YE102,14/10/2011,53270,"1,962.41 ",CAPITAL,P G INGOLDBY & SONS LTD,100591
North East Lincolnshire Council,http://statistics.data.gov.uk/id/local-authority/00FC,Resources,Devolved Formula Cap Grant,Devolved Formula Cap Grant,Cap Land/Build-Build Enh Wrk,Cap Land/Build-Build Enh Wrk,YA102,28/10/2011,57458,"2,000.00 ",CAPITAL,L PORTER,107295
North East Lincolnshire Council,http://statistics.data.gov.uk/id/local-authority/00FC,Resources,Devolved Formula Cap Grant,Devolved Formula Cap Grant,Cap Land/Build-Build Enh Wrk,Cap Land/Build-Build Enh Wrk,YA102,10/10/2011,50417,"2,190.00 ",CAPITAL,IT SERVICES (GRIMSBY) LTD,101060
North East Lincolnshire Council,http://statistics.data.gov.uk/id/local-authority/00FC,Resources,Devolved Formula Cap Grant,Devolved Formula Cap Grant,Cap Land/Build-Build Enh Wrk,Cap Land/Build-Build Enh Wrk,YA102,06/10/2011,50332,"2,360.00 ",CAPITAL,J MELTON LTD,100636
North East Lincolnshire Council,http://statistics.data.gov.uk/id/local-authority/00FC,Resources,Devolved Formula Cap Grant,Devolved Formula Cap Grant,Cap Veh Plt Eqp-Purchase,Cap Veh Plt Eqp-Purchase,YB101,11/10/2011,51076,"3,566.00 ",CAPITAL,INFORMATION & DATA NETWORKS SUPPLIES LTD,101911
North East Lincolnshire Council,http://statistics.data.gov.uk/id/local-authority/00FC,Resources,Devolved Formula Cap Grant,Devolved Formula Cap Grant,Cap Land/Build-Build Enh Wrk,Cap Land/Build-Build Enh Wrk,YA102,03/10/2011,48009,"3,679.00 ",CAPITAL,LUCAS CONTRACTING LTD,106803
North East Lincolnshire Council,http://statistics.data.gov.uk/id/local-authority/00FC,Resources,Devolved Formula Cap Grant,Devolved Formula Cap Grant,Cap Auc-Build Enh Wrk,Cap Auc-Build Enh Wrk,YF102,05/10/2011,49937,"3,960.00 ",CAPITAL,VIVID ACOUSTIC SYSTEMS,102375
North East Lincolnshire Council,http://statistics.data.gov.uk/id/local-authority/00FC,Resources,Devolved Formula Cap Grant,Devolved Formula Cap Grant,Cap Land/Build-Build Enh Wrk,Cap Land/Build-Build Enh Wrk,YA102,05/10/2011,49939,"4,898.00 ",CAPITAL,KES BUILDING MAINTENANCE LIMITED,100786
North East Lincolnshire Council,http://statistics.data.gov.uk/id/local-authority/00FC,Resources,Devolved Formula Cap Grant,Devolved Formula Cap Grant,Cap Land/Build-Build Enh Wrk,Cap Land/Build-Build Enh Wrk,YA102,26/10/2011,56759,"5,907.42 ",CAPITAL,EXCELL ELECTRICAL CONTRACTORS,100601
North East Lincolnshire Council,http://statistics.data.gov.uk/id/local-authority/00FC,Resources,Devolved Formula Cap Grant,Devolved Formula Cap Grant,Cap Veh Plt Eqp-Purchase,Cap Veh Plt Eqp-Purchase,YB101,03/10/2011,49174,"6,590.00 ",CAPITAL,IT SERVICES (GRIMSBY) LTD,101060
North East Lincolnshire Council,http://statistics.data.gov.uk/id/local-authority/00FC,Resources,Devolved Formula Cap Grant,Devolved Formula Cap Grant,Cap Land/Build-Build Enh Wrk,Cap Land/Build-Build Enh Wrk,YA102,12/10/2011,52033,"6,681.98 ",CAPITAL,EXCELL ELECTRICAL CONTRACTORS,100601
North East Lincolnshire Council,http://statistics.data.gov.uk/id/local-authority/00FC,Resources,Devolved Formula Cap Grant,Devolved Formula Cap Grant,Cap Land/Build-Build Enh Wrk,Cap Land/Build-Build Enh Wrk,YA102,03/10/2011,48012,"6,855.00 ",CAPITAL,NEWGLAZE,100642
North East Lincolnshire Council,http://statistics.data.gov.uk/id/local-authority/00FC,Resources,Devolved Formula Cap Grant,Devolved Formula Cap Grant,Cap Land/Build-Build Enh Wrk,Cap Land/Build-Build Enh Wrk,YA102,26/10/2011,57078,"7,716.00 ",CAPITAL,FABRIQUE SPECIALISTS GLAZING SYSTEMS LTD,101314
North East Lincolnshire Council,http://statistics.data.gov.uk/id/local-authority/00FC,Resources,Devolved Formula Cap Grant,Devolved Formula Cap Grant,Cap Land/Build-Build Enh Wrk,Cap Land/Build-Build Enh Wrk,YA102,31/10/2011,58267,"8,000.00 ",CAPITAL,NEWGLAZE,100642
North East Lincolnshire Council,http://statistics.data.gov.uk/id/local-authority/00FC,Resources,Devolved Formula Cap Grant,Devolved Formula Cap Grant,Cap Land/Build-Build Enh Wrk,Cap Land/Build-Build Enh Wrk,YA102,05/10/2011,50023,"8,681.62 ",CAPITAL,HAITH'S HEATING LTD,101342
North East Lincolnshire Council,http://statistics.data.gov.uk/id/local-authority/00FC,Resources,Devolved Formula Cap Grant,Devolved Formula Cap Grant,Cap Veh Plt Eqp-Purchase,Cap Veh Plt Eqp-Purchase,YB101,03/10/2011,49173,"10,207.00 ",CAPITAL,IT SERVICES (GRIMSBY) LTD,101060
North East Lincolnshire Council,http://statistics.data.gov.uk/id/local-authority/00FC,Resources,Devolved Formula Cap Grant,Devolved Formula Cap Grant,Cap Land/Build-Build Enh Wrk,Cap Land/Build-Build Enh Wrk,YA102,13/10/2011,52926,"11,780.00 ",CAPITAL,NEWBY LEISURE LTD,101227
North East Lincolnshire Council,http://statistics.data.gov.uk/id/local-authority/00FC,Resources,Devolved Formula Cap Grant,Devolved Formula Cap Grant,Cap Land/Build-Build Enh Wrk,Cap Land/Build-Build Enh Wrk,YA102,27/10/2011,57504,"11,866.50 ",CAPITAL,E S RUDKIN LTD,100632
North East Lincolnshire Council,http://statistics.data.gov.uk/id/local-authority/00FC,Resources,Devolved Formula Cap Grant,Devolved Formula Cap Grant,Cap Land/Build-Build Enh Wrk,Cap Land/Build-Build Enh Wrk,YA102,05/10/2011,49938,"15,400.00 ",CAPITAL,VIVID ACOUSTIC SYSTEMS,102375
North East Lincolnshire Council,http://statistics.data.gov.uk/id/local-authority/00FC,Resources,Devolved Formula Cap Grant,Devolved Formula Cap Grant,Cap Land/Build-Build Enh Wrk,Cap Land/Build-Build Enh Wrk,YA102,12/10/2011,52309,"40,000.00 ",CAPITAL,NEWGLAZE,100642
North East Lincolnshire Council,http://statistics.data.gov.uk/id/local-authority/00FC,Resources,Devolved Formula Cap Grant,Devolved Formula Cap Grant,Cap Auc-Prof Fees,Cap Auc-Prof Fees,YF103,10/10/2011,51343,"58,298.74 ",CAPITAL,JAMES BRATTON & CO LTD,100714
North East Lincolnshire Council,http://statistics.data.gov.uk/id/local-authority/00FC,Resources,Devolved Formula Cap Grant,Devolved Formula Cap Grant,Cap Auc-Build Enh Wrk,Cap Auc-Build Enh Wrk,YF102,05/10/2011,49962,"121,486.53 ",CAPITAL,ILLINGWORTH & GREGORY LTD,102649
North East Lincolnshire Council,http://statistics.data.gov.uk/id/local-authority/00FC,Resources,School'S Kitchens,School'S Kitchens,Cap Invest Prop-Build Enh Wrk,Cap Invest Prop-Build Enh Wrk,YE102,14/10/2011,53270,516.15 ,CAPITAL,P G INGOLDBY & SONS LTD,100591
North East Lincolnshire Council,http://statistics.data.gov.uk/id/local-authority/00FC,Resources,School'S Kitchens,School'S Kitchens,Cap Invest Prop-Build Enh Wrk,Cap Invest Prop-Build Enh Wrk,YE102,14/10/2011,53270,658.60 ,CAPITAL,P G INGOLDBY & SONS LTD,100591
North East Lincolnshire Council,http://statistics.data.gov.uk/id/local-authority/00FC,Resources,School'S Kitchens,School'S Kitchens,Cap Land/Build-Build Enh Wrk,Cap Land/Build-Build Enh Wrk,YA102,28/10/2011,57462,"1,155.00 ",CAPITAL,IVOR A APPLETON,100712
North East Lincolnshire Council,http://statistics.data.gov.uk/id/local-authority/00FC,Resources,School'S Kitchens,School'S Kitchens,Cap Invest Prop-Build Enh Wrk,Cap Invest Prop-Build Enh Wrk,YE102,14/10/2011,53270,"1,465.40 ",CAPITAL,P G INGOLDBY & SONS LTD,100591
North East Lincolnshire Council,http://statistics.data.gov.uk/id/local-authority/00FC,Resources,School'S Kitchens,School'S Kitchens,Cap Land/Build-Build Enh Wrk,Cap Land/Build-Build Enh Wrk,YA102,27/10/2011,57206,"2,759.40 ",CAPITAL,MARMAX PRODUCTS LTD,104999
North East Lincolnshire Council,http://statistics.data.gov.uk/id/local-authority/00FC,Resources,School'S Kitchens,School'S Kitchens,Cap Land/Build-Build Enh Wrk,Cap Land/Build-Build Enh Wrk,YA102,05/10/2011,50014,"3,151.00 ",CAPITAL,FABRIQUE SPECIALISTS GLAZING SYSTEMS LTD,101314
North East Lincolnshire Council,http://statistics.data.gov.uk/id/local-authority/00FC,Resources,School'S Kitchens,School'S Kitchens,Cap Invest Prop-Build Enh Wrk,Cap Invest Prop-Build Enh Wrk,YE102,14/10/2011,53270,"4,253.45 ",CAPITAL,P G INGOLDBY & SONS LTD,100591
North East Lincolnshire Council,http://statistics.data.gov.uk/id/local-authority/00FC,Resources,School'S Kitchens,School'S Kitchens,Cap Invest Prop-Build Enh Wrk,Cap Invest Prop-Build Enh Wrk,YE102,14/10/2011,53270,"4,720.58 ",CAPITAL,P G INGOLDBY & SONS LTD,100591
North East Lincolnshire Council,http://statistics.data.gov.uk/id/local-authority/00FC,Resources,Schools - Capital Allocation,Schools - Capital Allocation,Cap Land/Build-Build Enh Wrk,Cap Land/Build-Build Enh Wrk,YA102,19/10/2011,54905,732.00 ,CAPITAL,P G INGOLDBY & SONS LTD,100591
North East Lincolnshire Council,http://statistics.data.gov.uk/id/local-authority/00FC,Resources,Schools - Capital Allocation,Schools - Capital Allocation,Cap Land/Build-Build Enh Wrk,Cap Land/Build-Build Enh Wrk,YA102,12/10/2011,51927,"1,187.50 ",CAPITAL,EAST LINDSEY DISTRICT COUNCIL,101675
North East Lincolnshire Council,http://statistics.data.gov.uk/id/local-authority/00FC,Resources,Schools - Capital Allocation,Schools - Capital Allocation,Cap Land/Build-Build Enh Wrk,Cap Land/Build-Build Enh Wrk,YA102,31/10/2011,58025,"1,390.00 ",CAPITAL,ASBESTOS CONSULTANTS TO THE ENVIRONMENT,102391
North East Lincolnshire Council,http://statistics.data.gov.uk/id/local-authority/00FC,Resources,Schools - Capital Allocation,Schools - Capital Allocation,Cap Land/Build-Build Enh Wrk,Cap Land/Build-Build Enh Wrk,YA102,14/10/2011,53259,"3,410.00 ",CAPITAL,WHITGIFT SCHOOL,100867
North East Lincolnshire Council,http://statistics.data.gov.uk/id/local-authority/00FC,Resources,Schools - Basic Needs,Schools - Basic Needs,Cap Land/Build-Build Enh Wrk,Cap Land/Build-Build Enh Wrk,YA102,10/10/2011,50599,924.02 ,CAPITAL,FINDEL EDUCATION LIMITED,101237
North East Lincolnshire Council,http://statistics.data.gov.uk/id/local-authority/00FC,Resources,Schools - Basic Needs,Schools - Basic Needs,Cap Land/Build-Build Enh Wrk,Cap Land/Build-Build Enh Wrk,YA102,10/10/2011,50402,"1,315.51 ",CAPITAL,FINDEL EDUCATION LIMITED,101237
North East Lincolnshire Council,http://statistics.data.gov.uk/id/local-authority/00FC,Resources,Schools - Basic Needs,Schools - Basic Needs,Cap Land/Build-Build Enh Wrk,Cap Land/Build-Build Enh Wrk,YA102,10/10/2011,50597,"1,398.00 ",CAPITAL,YORKSHIRE PURCHASING,100573
North East Lincolnshire Council,http://statistics.data.gov.uk/id/local-authority/00FC,Resources,Schools - Basic Needs,Schools - Basic Needs,Cap Invest Prop-Build Enh Wrk,Cap Invest Prop-Build Enh Wrk,YE102,25/10/2011,56496,"70,444.64 ",CAPITAL,MANOR HOUSE DEVELOPMENTS (UK) LTD,106788
North East Lincolnshire Council,http://statistics.data.gov.uk/id/local-authority/00FC,Resources,Surplus Place Removal,Surplus Place Removal,Cap Land/Build-Build Enh Wrk,Cap Land/Build-Build Enh Wrk,YA102,25/10/2011,56435,"1,113.50 ",CAPITAL,W R CULLUM,100811
North East Lincolnshire Council,http://statistics.data.gov.uk/id/local-authority/00FC,Resources,Surplus Place Removal,Surplus Place Removal,Cap Land/Build-Build Enh Wrk,Cap Land/Build-Build Enh Wrk,YA102,05/10/2011,49934,"2,040.00 ",CAPITAL,SYLVESTER-KEAL LTD,100593
North East Lincolnshire Council,http://statistics.data.gov.uk/id/local-authority/00FC,Resources,Surplus Place Removal,Surplus Place Removal,Cap Land/Build-Build Enh Wrk,Cap Land/Build-Build Enh Wrk,YA102,06/10/2011,50071,"3,000.00 ",CAPITAL,VIVID ACOUSTIC SYSTEMS,102375
North East Lincolnshire Council,http://statistics.data.gov.uk/id/local-authority/00FC,Resources,Surplus Place Removal,Surplus Place Removal,Cap Land/Build-Build Enh Wrk,Cap Land/Build-Build Enh Wrk,YA102,05/10/2011,49935,"5,900.00 ",CAPITAL,SYLVESTER-KEAL LTD,100593
North East Lincolnshire Council,http://statistics.data.gov.uk/id/local-authority/00FC,Resources,St Marys High Demolition,St Marys High Demolition,Cap Land/Build-Build Enh Wrk,Cap Land/Build-Build Enh Wrk,YA102,04/10/2011,49135,"46,825.69 ",CAPITAL,NORTH EAST LINCOLNSHIRE COUNCIL,100894
North East Lincolnshire Council,http://statistics.data.gov.uk/id/local-authority/00FC,Resources,Primary Capital Programme,Primary Capital Programme,Cap Auc-Build Enh Wrk,Cap Auc-Build Enh Wrk,YF102,18/10/2011,54277,"455,161.89 ",CAPITAL,GEO HOULTON & SONS LTD,102697
North East Lincolnshire Council,http://statistics.data.gov.uk/id/local-authority/00FC,Resources,Bradley Playing Fields,Bradley Playing Fields,Cap Auc-Build Enh Wrk,Cap Auc-Build Enh Wrk,YF102,26/10/2011,57072,"89,425.46 ",CAPITAL,C R REYNOLDS (CONSTRUCTION) LTD,103021
North East Lincolnshire Council,http://statistics.data.gov.uk/id/local-authority/00FC,Resources,Creative Play Facilities,Creative Play Facilities,Cap Land/Build-Build Enh Wrk,Cap Land/Build-Build Enh Wrk,YA102,04/10/2011,49712,"4,859.63 ",CAPITAL,HEALING PARISH COUNCIL,100658
North East Lincolnshire Council,http://statistics.data.gov.uk/id/local-authority/00FC,Resources,Catch 3 Feasibility,Catch 3 Feasibility,Cap Auc-Build Enh Wrk,Cap Auc-Build Enh Wrk,YF102,19/10/2011,54192,850.00 ,CAPITAL,SIGNS EXPRESS (N & NE LINCS),100983
North East Lincolnshire Council,http://statistics.data.gov.uk/id/local-authority/00FC,Resources,Catch 3 Feasibility,Catch 3 Feasibility,Cap Auc-Build Enh Wrk,Cap Auc-Build Enh Wrk,YF102,14/10/2011,53269,"256,699.42 ",CAPITAL,HOBSON & PORTER,101010
North East Lincolnshire Council,http://statistics.data.gov.uk/id/local-authority/00FC,Resources,Ttp Accomodation Moves,Ttp Accomodation Moves,Cap Land/Build-Build Enh Wrk,Cap Land/Build-Build Enh Wrk,YA102,03/10/2011,48514,"1,591.00 ",CAPITAL,AQUILA BUSINESS PRODUCTS LTD,100607
North East Lincolnshire Council,http://statistics.data.gov.uk/id/local-authority/00FC,Resources,Frontier Ms Exchange,Frontier Ms Exchange,Cap Infrastr-Purchase,Cap Infrastr-Purchase,YC101,20/10/2011,55041,669.75 ,CAPITAL,BADENOCH & CLARK,101427
North East Lincolnshire Council,http://statistics.data.gov.uk/id/local-authority/00FC,Resources,Frontier Ms Exchange,Frontier Ms Exchange,Cap Infrastr-Purchase,Cap Infrastr-Purchase,YC101,13/10/2011,52856,669.75 ,CAPITAL,BADENOCH & CLARK,101427
North East Lincolnshire Council,http://statistics.data.gov.uk/id/local-authority/00FC,Resources,Frontier Ms Exchange,Frontier Ms Exchange,Cap Infrastr-Purchase,Cap Infrastr-Purchase,YC101,11/10/2011,51565,669.75 ,CAPITAL,BADENOCH & CLARK,101427
North East Lincolnshire Council,http://statistics.data.gov.uk/id/local-authority/00FC,Resources,Frontier Ms Exchange,Frontier Ms Exchange,Cap Infrastr-Purchase,Cap Infrastr-Purchase,YC101,06/10/2011,50425,669.75 ,CAPITAL,BADENOCH & CLARK,101427
North East Lincolnshire Council,http://statistics.data.gov.uk/id/local-authority/00FC,Resources,Frontier Ms Exchange,Frontier Ms Exchange,Cap Infrastr-Purchase,Cap Infrastr-Purchase,YC101,28/10/2011,58015,669.75 ,CAPITAL,BADENOCH & CLARK,101427
North East Lincolnshire Council,http://statistics.data.gov.uk/id/local-authority/00FC,Resources,Frontier Ms Exchange,Frontier Ms Exchange,Cap Infrastr-Prof Fees,Cap Infrastr-Prof Fees,YC103,25/10/2011,56285,900.00 ,CAPITAL,BT ENGAGE IT LIMITED,102359
North East Lincolnshire Council,http://statistics.data.gov.uk/id/local-authority/00FC,Resources,Frontier Ms Exchange,Frontier Ms Exchange,Cap Infrastr-Prof Fees,Cap Infrastr-Prof Fees,YC103,25/10/2011,56338,"1,700.00 ",CAPITAL,BT ENGAGE IT LIMITED,102359
North East Lincolnshire Council,http://statistics.data.gov.uk/id/local-authority/00FC,Resources,Frontier Ms Exchange,Frontier Ms Exchange,Cap Infrastr-Prof Fees,Cap Infrastr-Prof Fees,YC103,25/10/2011,56286,"3,200.00 ",CAPITAL,BT ENGAGE IT LIMITED,102359
North East Lincolnshire Council,http://statistics.data.gov.uk/id/local-authority/00FC,Resources,Frontier Ms Exchange,Frontier Ms Exchange,Cap Infrastr-Prof Fees,Cap Infrastr-Prof Fees,YC103,03/10/2011,48060,"9,600.00 ",CAPITAL,BT ENGAGE IT LIMITED,102359
North East Lincolnshire Council,http://statistics.data.gov.uk/id/local-authority/00FC,Resources,29 Heneage Road,29 Heneage Road,Cap Infrastr-Build Enh Wrk,Cap Infrastr-Build Enh Wrk,YC102,10/10/2011,50289,"4,500.00 ",CAPITAL,N-FORCE SECURITY SOLUTIONS LTD,105280
North East Lincolnshire Council,http://statistics.data.gov.uk/id/local-authority/00FC,Resources,Commission & Information Sys,Information Technology,Communications And Computing,Computer H/Ware - Purchases,LF105,06/10/2011,49646,"-4,601.64 ",REVENUE,NTL,101502
North East Lincolnshire Council,http://statistics.data.gov.uk/id/local-authority/00FC,Resources,Commission & Information Sys,Information Technology,Communications And Computing,Computer H/Ware - Purchases,LF105,06/10/2011,49647,"-4,601.64 ",REVENUE,NTL,101502
North East Lincolnshire Council,http://statistics.data.gov.uk/id/local-authority/00FC,Resources,Commission & Information Sys,Information Technology,Communications And Computing,Computer H/Ware - Purchases,LF105,06/10/2011,49643,"-4,601.64 ",REVENUE,NTL,101502
North East Lincolnshire Council,http://statistics.data.gov.uk/id/local-authority/00FC,Resources,Commission & Information Sys,Information Technology,Communications And Computing,Computer H/Ware - Purchases,LF105,06/10/2011,49614,"-4,578.69 ",REVENUE,NTL,101502
North East Lincolnshire Council,http://statistics.data.gov.uk/id/local-authority/00FC,Resources,Commission & Information Sys,Information Technology,Communications And Computing,Computer H/Ware - Purchases,LF105,11/10/2011,51536,"-3,983.45 ",REVENUE,NTL,101502
North East Lincolnshire Council,http://statistics.data.gov.uk/id/local-authority/00FC,Resources,Commission & Information Sys,Information Technology,Communications And Computing,Computer H/Ware - Purchases,LF105,06/10/2011,49665,"-3,866.30 ",REVENUE,NTL,101502
North East Lincolnshire Council,http://statistics.data.gov.uk/id/local-authority/00FC,Resources,Commission & Information Sys,Information Technology,Communications And Computing,Computer H/Ware - Purchases,LF105,25/10/2011,56530,"-2,981.05 ",REVENUE,VIRGIN MEDIA LTD,101831
North East Lincolnshire Council,http://statistics.data.gov.uk/id/local-authority/00FC,Resources,Commission & Information Sys,Information Technology,Communications And Computing,Computer H/Ware - Purchases,LF105,06/10/2011,49629,"-2,937.97 ",REVENUE,NTL,101502
North East Lincolnshire Council,http://statistics.data.gov.uk/id/local-authority/00FC,Resources,Commission & Information Sys,Information Technology,Communications And Computing,Computer H/Ware - Purchases,LF105,06/10/2011,49629,"-2,576.95 ",REVENUE,NTL,101502
North East Lincolnshire Council,http://statistics.data.gov.uk/id/local-authority/00FC,Resources,Commission & Information Sys,Information Technology,Communications And Computing,Computer H/Ware - Purchases,LF105,06/10/2011,49615,"-2,572.74 ",REVENUE,NTL,101502
North East Lincolnshire Council,http://statistics.data.gov.uk/id/local-authority/00FC,Resources,Commission & Information Sys,Information Technology,Communications And Computing,Computer H/Ware - Purchases,LF105,06/10/2011,49648,"-2,449.97 ",REVENUE,NTL,101502
North East Lincolnshire Council,http://statistics.data.gov.uk/id/local-authority/00FC,Resources,Commission & Information Sys,Information Technology,Communications And Computing,Computer H/Ware - Purchases,LF105,06/10/2011,49629,"-2,192.55 ",REVENUE,NTL,101502
North East Lincolnshire Council,http://statistics.data.gov.uk/id/local-authority/00FC,Resources,Commission & Information Sys,Information Technology,Communications And Computing,Computer S/Ware - Licences,LF103,25/10/2011,56513,"-1,412.57 ",REVENUE,NTL,101502
North East Lincolnshire Council,http://statistics.data.gov.uk/id/local-authority/00FC,Resources,Commission & Information Sys,Information Technology,Communications And Computing,Computer H/Ware - Purchases,LF105,06/10/2011,49615,"-1,286.24 ",REVENUE,NTL,101502
North East Lincolnshire Council,http://statistics.data.gov.uk/id/local-authority/00FC,Resources,Commission & Information Sys,Information Technology,Communications And Computing,Computer H/Ware - Purchases,LF105,10/10/2011,50278,"-1,089.86 ",REVENUE,NTL,101502
North East Lincolnshire Council,http://statistics.data.gov.uk/id/local-authority/00FC,Resources,Commission & Information Sys,Information Technology,Communications And Computing,Computer H/Ware - Purchases,LF105,06/10/2011,49616,"-1,055.88 ",REVENUE,NTL,101502
North East Lincolnshire Council,http://statistics.data.gov.uk/id/local-authority/00FC,Resources,Commission & Information Sys,Information Technology,Communications And Computing,Computer H/Ware - Purchases,LF105,06/10/2011,49664,"-1,046.55 ",REVENUE,NTL,101502
North East Lincolnshire Council,http://statistics.data.gov.uk/id/local-authority/00FC,Resources,Commission & Information Sys,Information Technology,Communications And Computing,Computer H/Ware - Purchases,LF105,06/10/2011,49644,-805.29 ,REVENUE,NTL,101502
North East Lincolnshire Council,http://statistics.data.gov.uk/id/local-authority/00FC,Resources,Commission & Information Sys,Information Technology,Communications And Computing,Computer H/Ware - Purchases,LF105,06/10/2011,49645,-805.29 ,REVENUE,NTL,101502
North East Lincolnshire Council,http://statistics.data.gov.uk/id/local-authority/00FC,Resources,Commission & Information Sys,Information Technology,Communications And Computing,Computer H/Ware - Purchases,LF105,06/10/2011,49658,-630.86 ,REVENUE,NTL,101502
North East Lincolnshire Council,http://statistics.data.gov.uk/id/local-authority/00FC,Resources,Commission & Information Sys,Information Technology,Communications And Computing,Computer H/Ware - Purchases,LF105,04/10/2011,49639,-625.97 ,REVENUE,NTL,101502
North East Lincolnshire Council,http://statistics.data.gov.uk/id/local-authority/00FC,Resources,Governance & Business Support,Legal Services,Indirect Employee Expenses,Medical Expenses - Employees,EB112,13/10/2011,52833,-350.00 ,REVENUE,CENTRAL LAW TRAINING LTD,100832
North East Lincolnshire Council,http://statistics.data.gov.uk/id/local-authority/00FC,Resources,Commission & Information Sys,Information Technology,Communications And Computing,Computer H/Ware - Purchases,LF105,06/10/2011,49666,-322.76 ,REVENUE,NTL,101502
North East Lincolnshire Council,http://statistics.data.gov.uk/id/local-authority/00FC,Resources,Commission & Information Sys,Information Technology,Communications And Computing,Computer H/Ware - Purchases,LF105,04/10/2011,49640,-273.86 ,REVENUE,NTL,101502
North East Lincolnshire Council,http://statistics.data.gov.uk/id/local-authority/00FC,Resources,Governance & Business Support,Legal Services,Indirect Employee Expenses,Staff Training,EB122,20/10/2011,55924,-252.00 ,REVENUE,ILEX,106649
North East Lincolnshire Council,http://statistics.data.gov.uk/id/local-authority/00FC,Resources,Governance & Business Support,Customer Services,Print Stationery / Gen Off Exp,Printing And Stationery,LD103,06/10/2011,50229,-121.56 ,REVENUE,LYRECO UK LIMITED,101120
North East Lincolnshire Council,http://statistics.data.gov.uk/id/local-authority/00FC,Resources,Governance & Business Support,Democratic Services,Print Stationery / Gen Off Exp,Printing And Stationery,LD103,21/10/2011,55933,-110.71 ,REVENUE,LYRECO UK LIMITED,101120
North East Lincolnshire Council,http://statistics.data.gov.uk/id/local-authority/00FC,Resources,Commission & Information Sys,Information Technology,Communications And Computing,Computer H/Ware - Purchases,LF105,06/10/2011,49616,-57.85 ,REVENUE,NTL,101502
North East Lincolnshire Council,http://statistics.data.gov.uk/id/local-authority/00FC,Resources,Finance & Assets,Accountancy,Car Allowances,Travel - Employees,JF101,10/10/2011,50283,-35.01 ,REVENUE,NYS CORPORATE,102444
North East Lincolnshire Council,http://statistics.data.gov.uk/id/local-authority/00FC,Resources,Finance & Assets,Income & Payments Service,Car Allowances,Travel - Employees,JF101,19/10/2011,54870,-27.35 ,REVENUE,NYS CORPORATE,102444
North East Lincolnshire Council,http://statistics.data.gov.uk/id/local-authority/00FC,Resources,Finance & Assets,Deputy Director Of Finance,Expenses,Course/Conf Accom - Employees,LH102,06/10/2011,50277,-13.30 ,REVENUE,NYS CORPORATE,102444
North East Lincolnshire Council,http://statistics.data.gov.uk/id/local-authority/00FC,Resources,Governance & Business Support,Audit / Insurance And Risk,Print Stationery / Gen Off Exp,Printing And Stationery,LD103,21/10/2011,56040,-1.30 ,REVENUE,LYRECO UK LIMITED,101120
North East Lincolnshire Council,http://statistics.data.gov.uk/id/local-authority/00FC,Resources,Finance & Assets,Facilities Management,Cleaning And Domestic Supplies,Cleaning - Services,GH102,04/10/2011,49236,500.00 ,REVENUE,FUTURE CLEANING SERVICES LTD,102557
North East Lincolnshire Council,http://statistics.data.gov.uk/id/local-authority/00FC,Resources,Governance & Business Support,Legal Services,Miscellaneous Expenses,Legal Fees - General,LL103,11/10/2011,51375,500.00 ,REVENUE,THE INFORMATION COMMISSIONER,103593
North East Lincolnshire Council,http://statistics.data.gov.uk/id/local-authority/00FC,Resources,Governance & Business Support,Learning And Development,Indirect Employee Expenses,Staff Training,EB122,20/10/2011,54381,500.00 ,REVENUE,MRS S BARNSLEY,101143
North East Lincolnshire Council,http://statistics.data.gov.uk/id/local-authority/00FC,Resources,Governance & Business Support,Human Resources,Indirect Employee Expenses,Staff Advertising,EB113,18/10/2011,54358,501.50 ,REVENUE,PENNA BARKERS,102320
North East Lincolnshire Council,http://statistics.data.gov.uk/id/local-authority/00FC,Resources,Finance & Assets,Valuation & Consultancy,Energy Costs,Gas,GB101,04/10/2011,49335,506.80 ,REVENUE,NPOWER LIMITED,101414
North East Lincolnshire Council,http://statistics.data.gov.uk/id/local-authority/00FC,Resources,Commission & Information Sys,Information Technology,Communications And Computing,Telephones,LF112,26/10/2011,57025,520.00 ,REVENUE,NTL,101502
North East Lincolnshire Council,http://statistics.data.gov.uk/id/local-authority/00FC,Resources,Finance & Assets,Facilities Management,Cleaning And Domestic Supplies,Refuse Collection,GH104,12/10/2011,51875,520.00 ,REVENUE,BELL WASTE CONTROL,101433
North East Lincolnshire Council,http://statistics.data.gov.uk/id/local-authority/00FC,Resources,Finance & Assets,Facilities Management,Cleaning And Domestic Supplies,Refuse Collection,GH104,12/10/2011,51875,520.00 ,REVENUE,BELL WASTE CONTROL,101433
North East Lincolnshire Council,http://statistics.data.gov.uk/id/local-authority/00FC,Resources,Finance & Assets,Facilities Management,Rents,Service Charge,GC102,04/10/2011,49115,545.00 ,REVENUE,AWS LTD,101343
North East Lincolnshire Council,http://statistics.data.gov.uk/id/local-authority/00FC,Resources,Finance & Assets,Facilities Management,Water Services,Water,GE101,12/10/2011,52068,553.99 ,REVENUE,ANGLIAN WATER,100508
North East Lincolnshire Council,http://statistics.data.gov.uk/id/local-authority/00FC,Resources,Finance & Assets,Facilities Management,Cleaning And Domestic Supplies,Refuse Collection,GH104,12/10/2011,51875,557.96 ,REVENUE,BELL WASTE CONTROL,101433
North East Lincolnshire Council,http://statistics.data.gov.uk/id/local-authority/00FC,Resources,Commission & Information Sys,Information Technology,Communications And Computing,Computer H/Ware - Purchases,LF105,10/10/2011,50278,584.15 ,REVENUE,NTL,101502
North East Lincolnshire Council,http://statistics.data.gov.uk/id/local-authority/00FC,Resources,Finance & Assets,Deputy Director Of Finance,Indirect Employee Expenses,Staff Training,EB122,18/10/2011,53679,595.00 ,REVENUE,GILLARDS WORLDWIDE WAREHOUSING/ICAEW,106439
North East Lincolnshire Council,http://statistics.data.gov.uk/id/local-authority/00FC,Resources,Finance & Assets,Valuation & Consultancy,Cleaning And Domestic Supplies,Refuse Collection,GH104,04/10/2011,49247,608.74 ,REVENUE,VEOLIA ES CLEANAWAY (UK) LTD,101783
North East Lincolnshire Council,http://statistics.data.gov.uk/id/local-authority/00FC,Resources,Commission & Information Sys,Information Technology,Private Contractors,Third Party Prov - Private,PH101,03/10/2011,48635,611.00 ,REVENUE,TOTAL SIGNS AND GRAPHICS LTD,104775
North East Lincolnshire Council,http://statistics.data.gov.uk/id/local-authority/00FC,Resources,Governance & Business Support,Town Hall,Miscellaneous Expenses,Civic Regalia,LL117,13/10/2011,51420,611.49 ,REVENUE,THOMAS FATTORINI LTD,106988
North East Lincolnshire Council,http://statistics.data.gov.uk/id/local-authority/00FC,Resources,Governance & Business Support,Learning And Development,Indirect Employee Expenses,Staff Training,EB122,13/10/2011,52954,615.00 ,REVENUE,IRENE BALLAM INITIATIVES,103822
North East Lincolnshire Council,http://statistics.data.gov.uk/id/local-authority/00FC,Resources,Commission & Information Sys,Information Technology,Print Stationery / Gen Off Exp,Photocopier - Running Costs,LD102,12/10/2011,52470,638.01 ,REVENUE,UNITED CARLTON OFFICE SYSTEMS LTD,101652
North East Lincolnshire Council,http://statistics.data.gov.uk/id/local-authority/00FC,Resources,Commission & Information Sys,Corp And Constitutional Govern,Consultancy,Consultancy,PL101,19/10/2011,54871,640.00 ,REVENUE,MARTIN WRIGHT,102395
North East Lincolnshire Council,http://statistics.data.gov.uk/id/local-authority/00FC,Resources,Commission & Information Sys,Information Technology,Communications And Computing,Telephones,LF112,21/10/2011,55955,644.62 ,REVENUE,NTL,101502
North East Lincolnshire Council,http://statistics.data.gov.uk/id/local-authority/00FC,Resources,Governance & Business Support,Learning And Development,Indirect Employee Expenses,Staff Training,EB122,12/10/2011,51406,647.00 ,REVENUE,IODA LIMITED,101280
North East Lincolnshire Council,http://statistics.data.gov.uk/id/local-authority/00FC,Resources,Finance & Assets,Facilities Management,Cleaning And Domestic Supplies,Cleaning - Services,GH102,04/10/2011,49236,650.00 ,REVENUE,FUTURE CLEANING SERVICES LTD,102557
North East Lincolnshire Council,http://statistics.data.gov.uk/id/local-authority/00FC,Resources,Commission & Information Sys,Information Technology,Equip / Furniture / Materials,Equipment - Purchase,LA101,25/10/2011,56103,656.31 ,REVENUE,ROTHERA & BRERETON LTD,100761
North East Lincolnshire Council,http://statistics.data.gov.uk/id/local-authority/00FC,Resources,Finance & Assets,Accountancy,Direct Employee Expenses,Agency Staff,EA105,31/10/2011,54882,673.06 ,REVENUE,BADENOCH & CLARK,101427
North East Lincolnshire Council,http://statistics.data.gov.uk/id/local-authority/00FC,Resources,Governance & Business Support,Coroners,Other Agencies,Post Mortems,PJ148,18/10/2011,54383,677.60 ,REVENUE,Redacted Personal Information,Redacted
North East Lincolnshire Council,http://statistics.data.gov.uk/id/local-authority/00FC,Resources,Governance & Business Support,Democratic Services,Contract Hire-Operating Leases,Vehicles - Contract Hire,JC101,18/10/2011,54521,696.46 ,REVENUE,NEOPOST LTD,100822
North East Lincolnshire Council,http://statistics.data.gov.uk/id/local-authority/00FC,Resources,Commission & Information Sys,Information Technology,Equip / Furniture / Materials,Equipment - Purchase,LA101,25/10/2011,56367,704.64 ,REVENUE,ELLIOTT BAXTER & COMPANY LIMITED,101996
North East Lincolnshire Council,http://statistics.data.gov.uk/id/local-authority/00FC,Resources,Finance & Assets,Valuation & Consultancy,Cleaning And Domestic Supplies,Refuse Collection,GH104,04/10/2011,49199,706.78 ,REVENUE,VEOLIA ES CLEANAWAY (UK) LTD,101783
North East Lincolnshire Council,http://statistics.data.gov.uk/id/local-authority/00FC,Resources,Commission & Information Sys,Information Technology,Equip / Furniture / Materials,Equipment - Purchase,LA101,25/10/2011,56376,716.30 ,REVENUE,PRESSTEK EUROPE LTD,101613
North East Lincolnshire Council,http://statistics.data.gov.uk/id/local-authority/00FC,Resources,Strategic Director Resources,Director And Support,Indirect Employee Expenses,Staff Training,EB122,13/10/2011,51160,720.00 ,REVENUE,RRC TRAINING,106976
North East Lincolnshire Council,http://statistics.data.gov.uk/id/local-authority/00FC,Resources,Finance & Assets,Income & Payments Service,Voluntary Associations,Third Pp - Third Sector,PF101,18/10/2011,53780,750.00 ,REVENUE,GRIMSBY TOWN FOOTBALL CLUB,100646
North East Lincolnshire Council,http://statistics.data.gov.uk/id/local-authority/00FC,Resources,Finance & Assets,Facilities Management,Energy Costs,Electricity,GB102,17/10/2011,53849,774.65 ,REVENUE,NPOWER LIMITED,101414
North East Lincolnshire Council,http://statistics.data.gov.uk/id/local-authority/00FC,Resources,Commission & Information Sys,Information Technology,Communications And Computing,Computer H/Ware - Purchases,LF105,21/10/2011,55955,780.00 ,REVENUE,NTL,101502
North East Lincolnshire Council,http://statistics.data.gov.uk/id/local-authority/00FC,Resources,Finance & Assets,Facilities Management,Rents,Rent,GC101,12/10/2011,52064,780.00 ,REVENUE,WYKELAND PROPERTIES LTD,101729
North East Lincolnshire Council,http://statistics.data.gov.uk/id/local-authority/00FC,Resources,Finance & Assets,Facilities Management,Rents,Service Charge,GC102,12/10/2011,52063,780.00 ,REVENUE,WYKELAND PROPERTIES LTD,101729
North East Lincolnshire Council,http://statistics.data.gov.uk/id/local-authority/00FC,Resources,Finance & Assets,Valuation & Consultancy,Rates,Rates,GD101,06/10/2011,49127,780.47 ,REVENUE,NORTH EAST LINCOLNSHIRE COUNCIL,100894
North East Lincolnshire Council,http://statistics.data.gov.uk/id/local-authority/00FC,Resources,Finance & Assets,Accountancy,Direct Employee Expenses,Agency Staff,EA105,19/10/2011,53370,793.06 ,REVENUE,BADENOCH & CLARK,101427
North East Lincolnshire Council,http://statistics.data.gov.uk/id/local-authority/00FC,Resources,Finance & Assets,Accountancy,Direct Employee Expenses,Agency Staff,EA105,11/10/2011,51540,803.50 ,REVENUE,BADENOCH & CLARK,101427
North East Lincolnshire Council,http://statistics.data.gov.uk/id/local-authority/00FC,Resources,Finance & Assets,Accountancy,Direct Employee Expenses,Agency Staff,EA105,26/10/2011,56501,808.71 ,REVENUE,BADENOCH & CLARK,101427
North East Lincolnshire Council,http://statistics.data.gov.uk/id/local-authority/00FC,Resources,Finance & Assets,Facilities Management,Cleaning And Domestic Supplies,Cleaning - Services,GH102,04/10/2011,49236,810.60 ,REVENUE,FUTURE CLEANING SERVICES LTD,102557
North East Lincolnshire Council,http://statistics.data.gov.uk/id/local-authority/00FC,Resources,Finance & Assets,Facilities Management,Rents,Rent,GC101,04/10/2011,49341,812.50 ,REVENUE,MARCUS KING & CO,101446
North East Lincolnshire Council,http://statistics.data.gov.uk/id/local-authority/00FC,Resources,Finance & Assets,Accountancy,Direct Employee Expenses,Agency Staff,EA105,11/10/2011,51534,813.93 ,REVENUE,BADENOCH & CLARK,101427
North East Lincolnshire Council,http://statistics.data.gov.uk/id/local-authority/00FC,Resources,Finance & Assets,Facilities Management,Water Services,Water,GE101,04/10/2011,49269,833.46 ,REVENUE,ANGLIAN WATER,100508
North East Lincolnshire Council,http://statistics.data.gov.uk/id/local-authority/00FC,Resources,Finance & Assets,Facilities Management,Cleaning And Domestic Supplies,Refuse Collection,GH104,12/10/2011,51875,836.94 ,REVENUE,BELL WASTE CONTROL,101433
North East Lincolnshire Council,http://statistics.data.gov.uk/id/local-authority/00FC,Resources,Finance & Assets,Valuation & Consultancy,Rates,Rates,GD101,17/10/2011,53698,837.61 ,REVENUE,NORTH EAST LINCOLNSHIRE COUNCIL,100894
North East Lincolnshire Council,http://statistics.data.gov.uk/id/local-authority/00FC,Resources,Finance & Assets,Facilities Management,Cleaning And Domestic Supplies,Refuse Collection,GH104,12/10/2011,51875,868.40 ,REVENUE,BELL WASTE CONTROL,101433
North East Lincolnshire Council,http://statistics.data.gov.uk/id/local-authority/00FC,Resources,Commission & Information Sys,Information Technology,Communications And Computing,Computer H/Ware - Purchases,LF105,26/10/2011,57031,884.85 ,REVENUE,NTL,101502
North East Lincolnshire Council,http://statistics.data.gov.uk/id/local-authority/00FC,Resources,Finance & Assets,Income & Payments Service,Direct Employee Expenses,Pay,EA101,20/10/2011,55583,900.00 ,REVENUE,BADENOCH & CLARK,101427
North East Lincolnshire Council,http://statistics.data.gov.uk/id/local-authority/00FC,Resources,Finance & Assets,Facilities Management,Rents,Service Charge,GC102,12/10/2011,52066,910.00 ,REVENUE,AWS LTD,101343
North East Lincolnshire Council,http://statistics.data.gov.uk/id/local-authority/00FC,Resources,Finance & Assets,Facilities Management,Energy Costs,Gas,GB101,04/10/2011,49272,914.12 ,REVENUE,E-ON (GAS),101983
North East Lincolnshire Council,http://statistics.data.gov.uk/id/local-authority/00FC,Resources,Finance & Assets,Income & Payments Service,Direct Employee Expenses,Pay,EA101,03/10/2011,48929,925.00 ,REVENUE,BADENOCH & CLARK,101427
North East Lincolnshire Council,http://statistics.data.gov.uk/id/local-authority/00FC,Resources,Finance & Assets,Income & Payments Service,Direct Employee Expenses,Pay,EA101,25/10/2011,56438,925.00 ,REVENUE,BADENOCH & CLARK,101427
North East Lincolnshire Council,http://statistics.data.gov.uk/id/local-authority/00FC,Resources,Finance & Assets,Income & Payments Service,Direct Employee Expenses,Pay,EA101,25/10/2011,56440,925.00 ,REVENUE,BADENOCH & CLARK,101427
North East Lincolnshire Council,http://statistics.data.gov.uk/id/local-authority/00FC,Resources,Finance & Assets,Income & Payments Service,Rep Alterations Maint Building,Security Alarms And Cctv,GA101,25/10/2011,56439,925.00 ,REVENUE,BADENOCH & CLARK,101427
North East Lincolnshire Council,http://statistics.data.gov.uk/id/local-authority/00FC,Resources,Finance & Assets,Accountancy,Direct Employee Expenses,Agency Staff,EA105,26/10/2011,54884,944.00 ,REVENUE,BADENOCH & CLARK,101427
North East Lincolnshire Council,http://statistics.data.gov.uk/id/local-authority/00FC,Resources,Governance & Business Support,Democratic Services,Print Stationery / Gen Off Exp,Printing And Stationery,LD103,31/10/2011,58242,951.29 ,REVENUE,PRINT IMAGE NETWORK LTD,103724
North East Lincolnshire Council,http://statistics.data.gov.uk/id/local-authority/00FC,Resources,Finance & Assets,Valuation & Consultancy,Rates,Rates,GD101,06/10/2011,49118,958.28 ,REVENUE,NORTH EAST LINCOLNSHIRE COUNCIL,100894
North East Lincolnshire Council,http://statistics.data.gov.uk/id/local-authority/00FC,Resources,Governance & Business Support,Health And Safety,Indirect Employee Expenses,Medical Expenses - Employees,EB112,10/10/2011,51141,Redacted Commercially Sensitive,REVENUE,NORTH LINCOLNSHIRE COUNCIL,101186
North East Lincolnshire Council,http://statistics.data.gov.uk/id/local-authority/00FC,Resources,Finance & Assets,Facilities Management,Rents,Rent,GC101,10/10/2011,50432,995.54 ,REVENUE,SHORELINE HOUSING PARTNERSHIP LTD,100139
North East Lincolnshire Council,http://statistics.data.gov.uk/id/local-authority/00FC,Resources,Finance & Assets,Income & Payments Service,Grants And Subscriptions,Subscriptions,LJ101,12/10/2011,51301,"1,000.00 ",REVENUE,PLAIN ENGLISH CAMPAIGN,100828
North East Lincolnshire Council,http://statistics.data.gov.uk/id/local-authority/00FC,Resources,Finance & Assets,Income & Payments Service,Communications And Computing,Postage,LF111,21/10/2011,55997,"1,021.63 ",REVENUE,FINANCIAL DATA MANAGEMENT LTD,101784
North East Lincolnshire Council,http://statistics.data.gov.uk/id/local-authority/00FC,Resources,Commission & Information Sys,Information Technology,Equip / Furniture / Materials,Equipment - Purchase,LA101,10/10/2011,51293,"1,053.00 ",REVENUE,FREELANCE OFFSET SERVICES LTD,100689
North East Lincolnshire Council,http://statistics.data.gov.uk/id/local-authority/00FC,Resources,Governance & Business Support,Coroners,Other Agencies,Post Mortems,PJ148,06/10/2011,50499,"1,100.35 ",REVENUE,SHEFFIELD CHILDREN'S NHS TRUST,100955
North East Lincolnshire Council,http://statistics.data.gov.uk/id/local-authority/00FC,Resources,Strategic Director Resources,Business Support (Sbs),Communications And Computing,Postage,LF111,03/10/2011,48976,"1,110.78 ",REVENUE,ROYAL MAIL GROUP PLC,101082
North East Lincolnshire Council,http://statistics.data.gov.uk/id/local-authority/00FC,Resources,Finance & Assets,Facilities Management,Cleaning And Domestic Supplies,Refuse Collection,GH104,12/10/2011,51875,"1,115.92 ",REVENUE,BELL WASTE CONTROL,101433
North East Lincolnshire Council,http://statistics.data.gov.uk/id/local-authority/00FC,Resources,Commission & Information Sys,Information Technology,Communications And Computing,Computer H/Ware - Purchases,LF105,21/10/2011,55955,"1,131.00 ",REVENUE,NTL,101502
North East Lincolnshire Council,http://statistics.data.gov.uk/id/local-authority/00FC,Resources,Governance & Business Support,Democratic Services,Print Stationery / Gen Off Exp,Printing And Stationery,LD103,10/10/2011,50500,"1,144.85 ",REVENUE,PRINT IMAGE NETWORK LTD,103724
North East Lincolnshire Council,http://statistics.data.gov.uk/id/local-authority/00FC,Resources,Governance & Business Support,Legal Services,Direct Employee Expenses,Agency Staff,EA105,06/10/2011,49016,"1,154.34 ",REVENUE,BADENOCH & CLARK,101427
North East Lincolnshire Council,http://statistics.data.gov.uk/id/local-authority/00FC,Resources,Finance & Assets,Accountancy,Direct Employee Expenses,Agency Staff,EA105,26/10/2011,56504,"1,184.00 ",REVENUE,BADENOCH & CLARK,101427
North East Lincolnshire Council,http://statistics.data.gov.uk/id/local-authority/00FC,Resources,Governance & Business Support,Legal Services,Direct Employee Expenses,Agency Staff,EA105,18/10/2011,54520,"1,194.88 ",REVENUE,BADENOCH & CLARK,101427
North East Lincolnshire Council,http://statistics.data.gov.uk/id/local-authority/00FC,Resources,Governance & Business Support,Legal Services,Direct Employee Expenses,Agency Staff,EA105,03/10/2011,49015,"1,194.88 ",REVENUE,BADENOCH & CLARK,101427
North East Lincolnshire Council,http://statistics.data.gov.uk/id/local-authority/00FC,Resources,Governance & Business Support,Legal Services,Direct Employee Expenses,Agency Staff,EA105,25/10/2011,56339,"1,194.88 ",REVENUE,BADENOCH & CLARK,101427
North East Lincolnshire Council,http://statistics.data.gov.uk/id/local-authority/00FC,Resources,Governance & Business Support,Legal Services,Direct Employee Expenses,Agency Staff,EA105,31/10/2011,58238,"1,194.88 ",REVENUE,BADENOCH & CLARK,101427
North East Lincolnshire Council,http://statistics.data.gov.uk/id/local-authority/00FC,Resources,Finance & Assets,Income & Payments Service,Miscellaneous Expenses,Debt Recovery Costs,LL111,26/10/2011,56570,Redacted Commercially Sensitive,REVENUE,WILKIN CHAPMAN SOLICITORS,100948
North East Lincolnshire Council,http://statistics.data.gov.uk/id/local-authority/00FC,Resources,Strategic Director Resources,Business Support (Sbs),Communications And Computing,Postage,LF111,25/10/2011,56104,"1,231.10 ",REVENUE,ROYAL MAIL GROUP PLC,101082
North East Lincolnshire Council,http://statistics.data.gov.uk/id/local-authority/00FC,Resources,Governance & Business Support,Learning And Development,Indirect Employee Expenses,Staff Training,EB122,20/10/2011,55337,"1,234.86 ",REVENUE,INTUITION DISCOVERY & DEVELOPMENT LTD,104760
North East Lincolnshire Council,http://statistics.data.gov.uk/id/local-authority/00FC,Resources,Finance & Assets,Accountancy,Direct Employee Expenses,Agency Staff,EA105,17/10/2011,53368,"1,248.00 ",REVENUE,BADENOCH & CLARK,101427
North East Lincolnshire Council,http://statistics.data.gov.uk/id/local-authority/00FC,Resources,Governance & Business Support,Legal Services,Direct Employee Expenses,Agency Staff,EA105,10/10/2011,51414,"1,250.89 ",REVENUE,BADENOCH & CLARK,101427
North East Lincolnshire Council,http://statistics.data.gov.uk/id/local-authority/00FC,Resources,Strategic Director Resources,Business Support (Sbs),Communications And Computing,Postage,LF111,03/10/2011,48328,"1,269.57 ",REVENUE,ROYAL MAIL GROUP PLC,101082
North East Lincolnshire Council,http://statistics.data.gov.uk/id/local-authority/00FC,Resources,Finance & Assets,Accountancy,Direct Employee Expenses,Agency Staff,EA105,11/10/2011,51535,"1,280.00 ",REVENUE,BADENOCH & CLARK,101427
North East Lincolnshire Council,http://statistics.data.gov.uk/id/local-authority/00FC,Resources,Finance & Assets,Accountancy,Direct Employee Expenses,Agency Staff,EA105,17/10/2011,53372,"1,280.00 ",REVENUE,BADENOCH & CLARK,101427
North East Lincolnshire Council,http://statistics.data.gov.uk/id/local-authority/00FC,Resources,Finance & Assets,Valuation & Consultancy,Rates,Rates,GD101,18/10/2011,53700,"1,299.00 ",REVENUE,NORTH EAST LINCOLNSHIRE COUNCIL,100894
North East Lincolnshire Council,http://statistics.data.gov.uk/id/local-authority/00FC,Resources,Finance & Assets,Valuation & Consultancy,Cleaning And Domestic Supplies,Refuse Collection,GH104,04/10/2011,49249,"1,332.15 ",REVENUE,VEOLIA ES CLEANAWAY (UK) LTD,101783
North East Lincolnshire Council,http://statistics.data.gov.uk/id/local-authority/00FC,Resources,Finance & Assets,Facilities Management,Cleaning And Domestic Supplies,Refuse Collection,GH104,12/10/2011,51875,"1,394.90 ",REVENUE,BELL WASTE CONTROL,101433
North East Lincolnshire Council,http://statistics.data.gov.uk/id/local-authority/00FC,Resources,Finance & Assets,Commissioning Of Bsf,Rents,Rent,GC101,31/10/2011,58133,"1,446.34 ",REVENUE,PORTAKABIN LTD,101252
North East Lincolnshire Council,http://statistics.data.gov.uk/id/local-authority/00FC,Resources,Finance & Assets,Valuation & Consultancy,Rents,Rent,GC101,06/10/2011,49114,"1,468.75 ",REVENUE,ASSOCIATED BRITISH PORTS,100834
North East Lincolnshire Council,http://statistics.data.gov.uk/id/local-authority/00FC,Resources,Strategic Director Resources,Business Support (Sbs),Communications And Computing,Postage,LF111,10/10/2011,50296,"1,498.94 ",REVENUE,ROYAL MAIL GROUP PLC,101082
North East Lincolnshire Council,http://statistics.data.gov.uk/id/local-authority/00FC,Resources,Governance & Business Support,Legal Services,Direct Employee Expenses,Agency Staff,EA105,18/10/2011,54517,"1,535.49 ",REVENUE,BADENOCH & CLARK,101427
North East Lincolnshire Council,http://statistics.data.gov.uk/id/local-authority/00FC,Resources,Commission & Information Sys,Information Technology,Communications And Computing,Computer H/Ware - Purchases,LF105,21/10/2011,55955,"1,560.00 ",REVENUE,NTL,101502
North East Lincolnshire Council,http://statistics.data.gov.uk/id/local-authority/00FC,Resources,Commission & Information Sys,Information Technology,Communications And Computing,Computer H/Ware - Purchases,LF105,04/10/2011,49640,"1,652.70 ",REVENUE,NTL,101502
North East Lincolnshire Council,http://statistics.data.gov.uk/id/local-authority/00FC,Resources,Commission & Information Sys,Information Technology,Communications And Computing,Computer H/Ware - Purchases,LF105,20/10/2011,55038,"1,673.00 ",REVENUE,EXPERT RADIOLINK SECURITY,101603
North East Lincolnshire Council,http://statistics.data.gov.uk/id/local-authority/00FC,Resources,Governance & Business Support,Performance & Improvement,Communications And Computing,Computer S/Ware - Purchases,LF101,20/10/2011,55563,"1,680.00 ",REVENUE,RESPOND GROUP LTD,102963
North East Lincolnshire Council,http://statistics.data.gov.uk/id/local-authority/00FC,Resources,Finance & Assets,Valuation & Consultancy,Water Services,Water,GE101,04/10/2011,49265,"1,681.40 ",REVENUE,ANGLIAN WATER,100508
North East Lincolnshire Council,http://statistics.data.gov.uk/id/local-authority/00FC,Resources,Finance & Assets,Valuation & Consultancy,Water Services,Water,GE101,17/10/2011,53602,"1,685.38 ",REVENUE,ANGLIAN WATER,100508
North East Lincolnshire Council,http://statistics.data.gov.uk/id/local-authority/00FC,Resources,Finance & Assets,Income & Payments Service,Miscellaneous Expenses,Debt Recovery Costs,LL111,25/10/2011,56065,Redacted Commercially Sensitive,REVENUE,WILKIN CHAPMAN SOLICITORS,100948
North East Lincolnshire Council,http://statistics.data.gov.uk/id/local-authority/00FC,Resources,Commission & Information Sys,Information Technology,Private Contractors,Third Party Prov - Private,PH101,25/10/2011,56407,"1,780.00 ",REVENUE,AR PRINTING LTD,100596
North East Lincolnshire Council,http://statistics.data.gov.uk/id/local-authority/00FC,Resources,Commission & Information Sys,Information Technology,Private Contractors,Third Party Prov - Private,PH101,06/10/2011,48664,"1,812.00 ",REVENUE,H CHARLESWORTH & CO LTD,106839
North East Lincolnshire Council,http://statistics.data.gov.uk/id/local-authority/00FC,Resources,Governance & Business Support,Democratic Services,Communications And Computing,Postage,LF111,20/10/2011,54631,"1,850.00 ",REVENUE,NEOPOST FINANCE LIMITED,101065
North East Lincolnshire Council,http://statistics.data.gov.uk/id/local-authority/00FC,Resources,Governance & Business Support,Legal Services,Direct Employee Expenses,Agency Staff,EA105,18/10/2011,54516,"1,851.30 ",REVENUE,BADENOCH & CLARK,101427
North East Lincolnshire Council,http://statistics.data.gov.uk/id/local-authority/00FC,Resources,Governance & Business Support,Legal Services,Direct Employee Expenses,Agency Staff,EA105,03/10/2011,49013,"1,905.75 ",REVENUE,BADENOCH & CLARK,101427
North East Lincolnshire Council,http://statistics.data.gov.uk/id/local-authority/00FC,Resources,Commission & Information Sys,Information Technology,Communications And Computing,Computer H/Ware - Purchases,LF105,06/10/2011,49666,"1,963.16 ",REVENUE,NTL,101502
North East Lincolnshire Council,http://statistics.data.gov.uk/id/local-authority/00FC,Resources,Finance & Assets,Deputy Director Of Finance,Indirect Employee Expenses,Staff Training,EB122,18/10/2011,51906,"1,987.49 ",REVENUE,KAPLAN FINANCIAL LTD,102112
North East Lincolnshire Council,http://statistics.data.gov.uk/id/local-authority/00FC,Resources,Governance & Business Support,Policy & Partnerships,Private Contractors,Third Party Prov - Private,PH101,25/10/2011,56432,"2,000.00 ",REVENUE,VOLUNTARY ACTION NORTH EAST LINCOLNSHIRE,103631
North East Lincolnshire Council,http://statistics.data.gov.uk/id/local-authority/00FC,Resources,Strategic Director Resources,Director And Support,Private Contractors,Third Party Prov - Private,PH101,03/10/2011,48510,"2,000.00 ",REVENUE,WB WORDS LTD,102190
North East Lincolnshire Council,http://statistics.data.gov.uk/id/local-authority/00FC,Resources,Commission & Information Sys,Web Governance,Communications And Computing,Postage,LF111,25/10/2011,54608,"2,000.25 ",REVENUE,ROYAL MAIL GROUP PLC,101082
North East Lincolnshire Council,http://statistics.data.gov.uk/id/local-authority/00FC,Resources,Finance & Assets,Facilities Management,Consultancy,Consultancy,PL101,20/10/2011,54472,"2,030.37 ",REVENUE,CAPITA SYMONDS LTD,107134
North East Lincolnshire Council,http://statistics.data.gov.uk/id/local-authority/00FC,Resources,Finance & Assets,Facilities Management,Water Services,Water,GE101,19/10/2011,54598,"2,030.72 ",REVENUE,ANGLIAN WATER,100508
North East Lincolnshire Council,http://statistics.data.gov.uk/id/local-authority/00FC,Resources,Commission & Information Sys,Information Technology,Communications And Computing,Computer Consumables,LF109,03/10/2011,48228,"2,040.00 ",REVENUE,INCOMS SYSTEMS PLC,101251
North East Lincolnshire Council,http://statistics.data.gov.uk/id/local-authority/00FC,Resources,Finance & Assets,Valuation & Consultancy,Rep Alterations Maint Building,Security Alarms And Cctv,GA101,17/10/2011,53697,"2,060.76 ",REVENUE,VSG,102246
North East Lincolnshire Council,http://statistics.data.gov.uk/id/local-authority/00FC,Resources,Finance & Assets,Facilities Management,Water Services,Water,GE101,17/10/2011,53699,"2,087.04 ",REVENUE,ANGLIAN WATER,100508
North East Lincolnshire Council,http://statistics.data.gov.uk/id/local-authority/00FC,Resources,Commission & Information Sys,Information Technology,Direct Employee Expenses,Agency Staff,EA105,03/10/2011,48223,"2,191.00 ",REVENUE,LINDA R DEARNLEY,101239
North East Lincolnshire Council,http://statistics.data.gov.uk/id/local-authority/00FC,Resources,Finance & Assets,Facilities Management,Water Services,Water,GE101,19/10/2011,54598,"2,216.46 ",REVENUE,ANGLIAN WATER,100508
North East Lincolnshire Council,http://statistics.data.gov.uk/id/local-authority/00FC,Resources,Governance & Business Support,Human Resources,Direct Employee Expenses,Agency Staff,EA105,10/10/2011,51001,"2,231.62 ",REVENUE,HR4U CONSULTING LTD,104411
North East Lincolnshire Council,http://statistics.data.gov.uk/id/local-authority/00FC,Resources,Governance & Business Support,Human Resources,Direct Employee Expenses,Agency Staff,EA105,10/10/2011,51001,"2,231.63 ",REVENUE,HR4U CONSULTING LTD,104411
North East Lincolnshire Council,http://statistics.data.gov.uk/id/local-authority/00FC,Resources,Governance & Business Support,Legal Services,Consultancy,Consultancy,PL101,25/10/2011,56028,"2,424.00 ",REVENUE,DICKINSON DEES,101644
North East Lincolnshire Council,http://statistics.data.gov.uk/id/local-authority/00FC,Resources,Governance & Business Support,Democratic Services,Communications And Computing,Postage,LF111,12/10/2011,52362,"2,440.14 ",REVENUE,ROYAL MAIL GROUP PLC,101082
North East Lincolnshire Council,http://statistics.data.gov.uk/id/local-authority/00FC,Resources,Governance & Business Support,Human Resources,Direct Employee Expenses,Agency Staff,EA105,10/10/2011,50998,"2,448.80 ",REVENUE,HR4U CONSULTING LTD,104411
North East Lincolnshire Council,http://statistics.data.gov.uk/id/local-authority/00FC,Resources,Governance & Business Support,Human Resources,Direct Employee Expenses,Agency Staff,EA105,10/10/2011,50998,"2,448.80 ",REVENUE,HR4U CONSULTING LTD,104411
North East Lincolnshire Council,http://statistics.data.gov.uk/id/local-authority/00FC,Resources,Governance & Business Support,Human Resources,Direct Employee Expenses,Agency Staff,EA105,10/10/2011,50999,"2,455.10 ",REVENUE,HR4U CONSULTING LTD,104411
North East Lincolnshire Council,http://statistics.data.gov.uk/id/local-authority/00FC,Resources,Governance & Business Support,Human Resources,Direct Employee Expenses,Agency Staff,EA105,10/10/2011,50999,"2,455.10 ",REVENUE,HR4U CONSULTING LTD,104411
North East Lincolnshire Council,http://statistics.data.gov.uk/id/local-authority/00FC,Resources,Governance & Business Support,Human Resources,Direct Employee Expenses,Agency Staff,EA105,10/10/2011,51000,"2,457.12 ",REVENUE,HR4U CONSULTING LTD,104411
North East Lincolnshire Council,http://statistics.data.gov.uk/id/local-authority/00FC,Resources,Governance & Business Support,Human Resources,Direct Employee Expenses,Agency Staff,EA105,10/10/2011,51000,"2,457.13 ",REVENUE,HR4U CONSULTING LTD,104411
North East Lincolnshire Council,http://statistics.data.gov.uk/id/local-authority/00FC,Resources,Finance & Assets,Facilities Management,Rents,Rent,GC101,04/10/2011,49075,"2,500.00 ",REVENUE,WELLWAY PROPERTIES LTD,101501
North East Lincolnshire Council,http://statistics.data.gov.uk/id/local-authority/00FC,Resources,Strategic Director Resources,Director And Support,Private Contractors,Third Party Prov - Private,PH101,27/10/2011,57155,"2,500.00 ",REVENUE,NEL COMMUNITIES TOGETHER,103632
North East Lincolnshire Council,http://statistics.data.gov.uk/id/local-authority/00FC,Resources,Finance & Assets,Valuation & Consultancy,Rents,Rent,GC101,03/10/2011,49131,"2,562.50 ",REVENUE,ASSOCIATED BRITISH PORTS,100834
North East Lincolnshire Council,http://statistics.data.gov.uk/id/local-authority/00FC,Resources,Governance & Business Support,Customer Services,Private Contractors,External Security Services,PH103,11/10/2011,51564,"2,750.33 ",REVENUE,G4S CASH SERVICES (UK) LIMITED,100952
North East Lincolnshire Council,http://statistics.data.gov.uk/id/local-authority/00FC,Resources,Commission & Information Sys,Information Technology,Communications And Computing,Computer H/Ware - Purchases,LF105,06/10/2011,49644,"2,766.58 ",REVENUE,NTL,101502
North East Lincolnshire Council,http://statistics.data.gov.uk/id/local-authority/00FC,Resources,Commission & Information Sys,Information Technology,Communications And Computing,Computer H/Ware - Purchases,LF105,06/10/2011,49645,"2,766.58 ",REVENUE,NTL,101502
North East Lincolnshire Council,http://statistics.data.gov.uk/id/local-authority/00FC,Resources,Finance & Assets,Cfs Assets & Pc Programme,Rep Alterations Maint Building,Buildings - Repairs And Maint,GA102,05/10/2011,50010,"2,780.00 ",REVENUE,JENNINGS ROOFING LIMITED,103290
North East Lincolnshire Council,http://statistics.data.gov.uk/id/local-authority/00FC,Resources,Commission & Information Sys,Information Technology,Communications And Computing,Computer H/Ware - Purchases,LF105,06/10/2011,49658,"2,790.68 ",REVENUE,NTL,101502
North East Lincolnshire Council,http://statistics.data.gov.uk/id/local-authority/00FC,Resources,Commission & Information Sys,Information Technology,Communications And Computing,Computer H/Ware - Purchases,LF105,04/10/2011,49639,"2,790.68 ",REVENUE,NTL,101502
North East Lincolnshire Council,http://statistics.data.gov.uk/id/local-authority/00FC,Resources,Commission & Information Sys,Information Technology,Communications And Computing,Computer H/Ware - Purchases,LF105,25/10/2011,56534,"2,790.68 ",REVENUE,VIRGIN MEDIA LTD,101831
North East Lincolnshire Council,http://statistics.data.gov.uk/id/local-authority/00FC,Resources,Commission & Information Sys,Information Technology,Communications And Computing,Computer H/Ware - Purchases,LF105,06/10/2011,49664,"2,875.07 ",REVENUE,NTL,101502
North East Lincolnshire Council,http://statistics.data.gov.uk/id/local-authority/00FC,Resources,Governance & Business Support,Customer Services,Communications And Computing,Computer S/Ware - Maintenance,LF102,10/10/2011,50440,"2,954.10 ",REVENUE,APD COMMUNICATIONS LTD,101972
North East Lincolnshire Council,http://statistics.data.gov.uk/id/local-authority/00FC,Resources,Commission & Information Sys,Information Technology,Communications And Computing,Computer H/Ware - Purchases,LF105,06/10/2011,49648,"3,143.84 ",REVENUE,NTL,101502
North East Lincolnshire Council,http://statistics.data.gov.uk/id/local-authority/00FC,Resources,Governance & Business Support,Health And Safety,Indirect Employee Expenses,Medical Expenses - Employees,EB112,20/10/2011,54290,"3,316.95 ",REVENUE,WELLWORK LTD,102362
North East Lincolnshire Council,http://statistics.data.gov.uk/id/local-authority/00FC,Resources,Finance & Assets,Valuation & Consultancy,Energy Costs,Electricity,GB102,04/10/2011,49338,"3,458.53 ",REVENUE,NPOWER LIMITED,101414
North East Lincolnshire Council,http://statistics.data.gov.uk/id/local-authority/00FC,Resources,Commission & Information Sys,Information Technology,Communications And Computing,Telephones,LF112,26/10/2011,57030,"3,477.35 ",REVENUE,NTL,101502
North East Lincolnshire Council,http://statistics.data.gov.uk/id/local-authority/00FC,Resources,Governance & Business Support,Coroners,Other Agencies,Post Mortems,PJ148,10/10/2011,51523,"3,510.00 ",REVENUE,NORTHERN LINCOLNSHIRE & GOOLE HOSPITALS,101242
North East Lincolnshire Council,http://statistics.data.gov.uk/id/local-authority/00FC,Resources,Finance & Assets,Cfs Assets & Pc Programme,Rep Alterations Maint Building,Buildings - Repairs And Maint,GA102,20/10/2011,53895,"3,785.00 ",REVENUE,ETON-LINCS LIMITED,101510
North East Lincolnshire Council,http://statistics.data.gov.uk/id/local-authority/00FC,Resources,Governance & Business Support,Coroners,Other Agencies,Post Mortems,PJ148,11/10/2011,51521,"3,943.00 ",REVENUE,NORTHERN LINCOLNSHIRE & GOOLE HOSPITALS,101242
North East Lincolnshire Council,http://statistics.data.gov.uk/id/local-authority/00FC,Resources,Commission & Information Sys,Information Technology,Communications And Computing,Computer H/Ware - Purchases,LF105,06/10/2011,49629,"4,024.11 ",REVENUE,NTL,101502
North East Lincolnshire Council,http://statistics.data.gov.uk/id/local-authority/00FC,Resources,Finance & Assets,Valuation & Consultancy,Energy Costs,Electricity,GB102,06/10/2011,49130,"4,245.42 ",REVENUE,BOURNE LEISURE LTD,102429
North East Lincolnshire Council,http://statistics.data.gov.uk/id/local-authority/00FC,Resources,Commission & Information Sys,Information Technology,Direct Employee Expenses,Agency Staff,EA105,03/10/2011,48225,"4,272.32 ",REVENUE,BADENOCH & CLARK,101427
North East Lincolnshire Council,http://statistics.data.gov.uk/id/local-authority/00FC,Resources,Commission & Information Sys,Information Technology,Direct Employee Expenses,Agency Staff,EA105,31/10/2011,58134,"4,272.32 ",REVENUE,BADENOCH & CLARK,101427
North East Lincolnshire Council,http://statistics.data.gov.uk/id/local-authority/00FC,Resources,Governance & Business Support,Policy & Partnerships,Miscellaneous Expenses,Hospitality,LL112,13/10/2011,52611,"4,647.50 ",REVENUE,BRIGGATE LODGE LTD T/A FOREST PINES HOTEL,101118
North East Lincolnshire Council,http://statistics.data.gov.uk/id/local-authority/00FC,Resources,Governance & Business Support,Coroners,Other Agencies,Post Mortems,PJ148,19/10/2011,54237,"4,973.00 ",REVENUE,NORTHERN LINCOLNSHIRE & GOOLE HOSPITALS,101242
North East Lincolnshire Council,http://statistics.data.gov.uk/id/local-authority/00FC,Resources,Commission & Information Sys,Information Technology,Communications And Computing,Telephones,LF112,21/10/2011,55955,"5,099.09 ",REVENUE,NTL,101502
North East Lincolnshire Council,http://statistics.data.gov.uk/id/local-authority/00FC,Resources,Governance & Business Support,Coroners,Other Agencies,Post Mortems,PJ148,13/10/2011,51474,"5,616.00 ",REVENUE,NORTHERN LINCOLNSHIRE & GOOLE HOSPITALS,101242
North East Lincolnshire Council,http://statistics.data.gov.uk/id/local-authority/00FC,Resources,Finance & Assets,Facilities Management,Rents,Rent,GC101,06/10/2011,49271,"5,625.00 ",REVENUE,WYKELAND PROPERTIES LTD,101729
North East Lincolnshire Council,http://statistics.data.gov.uk/id/local-authority/00FC,Resources,Finance & Assets,Facilities Management,Rents,Service Charge,GC102,03/10/2011,49344,"5,912.50 ",REVENUE,MARCUS KING & CO,101446
North East Lincolnshire Council,http://statistics.data.gov.uk/id/local-authority/00FC,Resources,Commission & Information Sys,Information Technology,Print Stationery / Gen Off Exp,Photocopier - Running Costs,LD102,06/10/2011,50116,"6,475.10 ",REVENUE,XEROX (UK) LIMITED,100953
North East Lincolnshire Council,http://statistics.data.gov.uk/id/local-authority/00FC,Resources,Governance & Business Support,Democratic Services,Communications And Computing,Postage,LF111,06/10/2011,50282,"6,503.75 ",REVENUE,ROYAL MAIL GROUP PLC,101082
North East Lincolnshire Council,http://statistics.data.gov.uk/id/local-authority/00FC,Resources,Governance & Business Support,Legal Services,Direct Employee Expenses,Agency Staff,EA105,05/10/2011,49893,"6,586.00 ",REVENUE,AD LITEM LEGAL SERVICES,104447
